Workbook

Sheet VAL_MONTHLY_ELECTRICITY
C1: Monthly Electricity Statistics Questionnaire
C2: Country: | E2: January | H2: February | K2: March | N2: April | Q2: May | T2: June | W2: July | Z2: August | AC2: September | AF2: October | AI2: November | AL2: December
C3: Year: | D3: 2021 | E3: Updated? | H3: Updated? | K3: Updated? | N3: Updated? | P3: Y | Q3: Updated? | S3: Y | T3: Updated? | W3: Updated? | Z3: Updated? | AC3: Updated? | AF3: Updated? | AH3: Y | AI3: Updated? | AK3: Y | AL3: Updated? | AN3: Y
E4: GWh | F4: Flag | G4: Conf | H4: GWh | I4: Flag | J4: Conf | K4: GWh | L4: Flag | M4: Conf | N4: GWh | O4: Flag | P4: Conf | Q4: GWh | R4: Flag | S4: Conf | T4: GWh | U4: Flag | V4: Conf | W4: GWh | X4: Flag | Y4: Conf | Z4: GWh | AA4: Flag | AB4: Conf | AC4: GWh | AD4: Flag | AE4: Conf | AF4: GWh | AG4: Flag | AH4: Conf | AI4: GWh | AJ4: Flag | AK4: Conf | AL4: GWh | AM4: Flag | AN4: Conf
C5: Table 1: NET ELECTRICITY PRODUCTION
A6: NELEPROD | C6: 1 | D6: Total net production | E6: =E7+E8+E14+E18+E21+E24+E25+E26 -> 5931.757846 | H6: =H7+H8+H14+H18+H21+H24+H25+H26 -> 5656.791102 | K6: =K7+K8+K14+K18+K21+K24+K25+K26 -> 6061.827382 | N6: =N7+N8+N14+N18+N21+N24+N25+N26 -> 5826.219845 | Q6: =Q7+Q8+Q14+Q18+Q21+Q24+Q25+Q26 -> 5997.792009 | T6: =T7+T8+T14+T18+T21+T24+T25+T26 -> 0 | W6: =W7+W8+W14+W18+W21+W24+W25+W26 -> 0 | Z6: =Z7+Z8+Z14+Z18+Z21+Z24+Z25+Z26 -> 0 | AC6: =AC7+AC8+AC14+AC18+AC21+AC24+AC25+AC26 -> 0 | AF6: =AF7+AF8+AF14+AF18+AF21+AF24+AF25+AF26 -> 0 | AI6: =AI7+AI8+AI14+AI18+AI21+AI24+AI25+AI26 -> 0 | AL6: =AL7+AL8+AL14+AL18+AL21+AL24+AL25+AL26 -> 0 | AO6: Total net production
A7: NUCLEAR | C7: 2 | D7: Nuclear | E7: 0 | H7: 0 | K7: 0 | N7: 0 | Q7: 0 | T7: 0 | W7: 0 | Z7: 0 | AC7: 0 | AF7: 0 | AI7: 0 | AO7: Nuclear
A8: COMBFUEL | C8: 3 | D8: Conventional thermal | E8: =+SUM(E9:E13) -> 1311.865602 | H8: =+SUM(H9:H13) -> 1620.042893 | K8: =+SUM(K9:K13) -> 1189.196408 | N8: =+SUM(N9:N13) -> 1017.860515 | Q8: =+SUM(Q9:Q13) -> 814.7917245 | T8: =+SUM(T9:T13) -> 0 | W8: =+SUM(W9:W13) -> 0 | Z8: =+SUM(Z9:Z13) -> 0 | AC8: =+SUM(AC9:AC13) -> 0 | AF8: =+SUM(AF9:AF13) -> 0 | AI8: =+SUM(AI9:AI13) -> 0 | AL8: =+SUM(AL9:AL13) -> 0 | AO8: Conventional thermal
A9: COAL | C9: 3.1 | D9: Coal | E9: 512.4312904 | H9: 817.834463 | K9: 426.1470519 | N9: 358.6722385 | Q9: 232.4157504 | AO9: Coal
A10: OIL | C10: 3.2 | D10: Oil | E10: 3.360387 | H10: 0.38403705 | K10: 0.56490577 | N10: 1.85556715 | Q10: 0 | AO10: Oil
A11: NATGAS | C11: 3.3 | D11: Natural gas | E11: 726.2758534 | H11: 731.3416012 | K11: 690.2179156 | N11: 587.9085676 | Q11: 562.1934536 | AO11: Natural gas
A12: COMBREN | C12: 3.4 | D12: Combustible renewables | E12: 69.79807073 | H12: 70.48279144 | K12: 72.26653527 | N12: 69.42414181 | Q12: 20.18252062 | AO12: Combustible renewables
A13: COMBNREN | C13: 3.5 | D13: Other combustible fuels (non-renewable) | E13: 0 | H13: 0 | K13: 0 | N13: 0 | Q13: 0 | AO13: Other combustible fuels (non-renewable)
A14: HYDRO | C14: 4 | D14: Hydro | E14: =+SUM(E15:E17) -> 4590.382546 | H14: =+SUM(H15:H17) -> 4006.633638 | K14: =+SUM(K15:K17) -> 4841.001127 | N14: =+SUM(N15:N17) -> 4778.251557 | Q14: =+SUM(Q15:Q17) -> 5154.030315 | T14: =+SUM(T15:T17) -> 0 | W14: =+SUM(W15:W17) -> 0 | Z14: =+SUM(Z15:Z17) -> 0 | AC14: =+SUM(AC15:AC17) -> 0 | AF14: =+SUM(AF15:AF17) -> 0 | AI14: =+SUM(AI15:AI17) -> 0 | AL14: =+SUM(AL15:AL17) -> 0 | AO14: Hydro
A15: HYDPURE | C15: 4.1 | D15: Pure hydro | E15: 4590.382546 | H15: 4006.633638 | K15: 4841.001127 | N15: 4778.251557 | Q15: 5154.030315 | AO15: Pure hydro
A16: HYDMIXED | C16: 4.2 | D16: Mixed hydro | E16: 0 | H16: 0 | K16: 0 | N16: 0 | Q16: 0 | AO16: Mixed hydro
A17: HYDPUMP | C17: 4.3 | D17: Pure pumped storage | E17: 0 | H17: 0 | K17: 0 | N17: 0 | Q17: 0 | AO17: Pure pumped storage
A18: WIND | C18: 5 | D18: Wind | E18: =+SUM(E19:E20) -> 4.37369393 | H18: =+SUM(H19:H20) -> 5.68241055 | K18: =+SUM(K19:K20) -> 6.21796118 | N18: =+SUM(N19:N20) -> 6.33975872 | Q18: =+SUM(Q19:Q20) -> 6.99224345 | T18: =+SUM(T19:T20) -> 0 | W18: =+SUM(W19:W20) -> 0 | Z18: =+SUM(Z19:Z20) -> 0 | AC18: =+SUM(AC19:AC20) -> 0 | AF18: =+SUM(AF19:AF20) -> 0 | AI18: =+SUM(AI19:AI20) -> 0 | AL18: =+SUM(AL19:AL20) -> 0 | AO18: Wind
A19: WINDON | C19: 5.1 | D19: Onshore | E19: 4.37369393 | H19: 5.68241055 | K19: 6.21796118 | N19: 6.33975872 | Q19: 6.99224345 | AO19: Onshore
A20: WINDOFF | C20: 5.2 | D20: Offshore | E20: 0 | H20: 0 | K20: 0 | N20: 0 | Q20: 0 | AO20: Offshore
A21: SOLAR | C21: 6 | D21: Solar | E21: =+SUM(E22:E23) -> 25.13600465 | H21: =+SUM(H22:H23) -> 24.43216066 | K21: =+SUM(K22:K23) -> 25.41188628 | N21: =+SUM(N22:N23) -> 23.768014 | Q21: =+SUM(Q22:Q23) -> 21.97772659 | T21: =+SUM(T22:T23) -> 0 | W21: =+SUM(W22:W23) -> 0 | Z21: =+SUM(Z22:Z23) -> 0 | AC21: =+SUM(AC22:AC23) -> 0 | AF21: =+SUM(AF22:AF23) -> 0 | AI21: =+SUM(AI22:AI23) -> 0 | AL21: =+SUM(AL22:AL23) -> 0 | AO21: Solar
A22: SOLARPV | C22: 6.1 | D22: Solar photovoltaic | E22: 25.13600465 | H22: 24.43216066 | K22: 25.41188628 | N22: 23.768014 | Q22: 21.97772659 | AO22: Solar photovoltaic
A23: SOLARTH | C23: 6.2 | D23: Solar thermal | E23: 0 | H23: 0 | K23: 0 | N23: 0 | Q23: 0 | AO23: Solar thermal
A24: GEOTHERM | C24: 7 | D24: Geothermal | E24: 0 | H24: 0 | K24: 0 | N24: 0 | Q24: 0 | T24: 0 | W24: 0 | Z24: 0 | AC24: 0 | AF24: 0 | AI24: 0 | AO24: Geothermal
A25: OTHERREN | C25: 8 | D25: Other renewable sources | E25: 0 | H25: 0 | K25: 0 | N25: 0 | Q25: 0 | T25: 0 | W25: 0 | Z25: 0 | AC25: 0 | AF25: 0 | AI25: 0 | AO25: Other renewable sources
A26: NONSPEC | C26: 9 | D26: Not specified | E26: 0 | H26: 0 | K26: 0 | N26: 0 | Q26: 0 | T26: 0 | W26: 0 | Z26: 0 | AC26: 0 | AF26: 0 | AI26: 0 | AO26: Not specified
C28: Table 2: SUMMARY OF PRODUCTION AND SUPPLY/CONSUMPTION (CALCULATED)
A29: NELEPROD | C29: 1 | D29: Total net production | E29: =E6 -> 5931.757846 | H29: =H6 -> 5656.791102 | K29: =K6 -> 6061.827382 | N29: =N6 -> 5826.219845 | Q29: =Q6 -> 5997.792009 | T29: =T6 -> 0 | W29: =W6 -> 0 | Z29: =Z6 -> 0 | AC29: =AC6 -> 0 | AF29: =AF6 -> 0 | AI29: =AI6 -> 0 | AL29: =AL6 -> 0 | AO29: Total net production
A30: TOTIMPSB | C30: 2 | D30: Total imports | E30: 3.00664208 | H30: 7.48918267 | K30: 165.5346295 | N30: 173.8107626 | Q30: 15.55523144 | AO30: Total imports
C31: 2a | D31: out of which from EU | E31: 0 | H31: 0 | K31: 0 | N31: 0 | Q31: 0 | AO31: out of which from EU
A32: TOTEXPSB | C32: 3 | D32: Total exports | E32: 0.22747911 | H32: 0.74721575 | K32: 0.1100081 | N32: 0.04258657 | Q32: 1.10984908 | AO32: Total exports
C33: 3a | D33: out of which to EU | E33: 0 | H33: 0 | K33: 0 | N33: 0 | Q33: 0 | AO33: out of which to EU
A34: EPUMPST | C34: 4 | D34: Used for pumped storage | E34: 0 | H34: 0 | K34: 0 | N34: 0 | Q34: 0 | AO34: Used for pumped storage
A35: DISTLOSS | C35: 5 | D35: Transmission and distribution losses | E35: 1268.798215 | F35: E | H35: 1002.380629 | I35: E | K35: 1431.07642 | L35: E | N35: 1110.881853 | O35: E | Q35: 1197.644691 | R35: E | AO35: Transmission and distribution losses
A36: TFCCALC | C36: 6 | D36: Total consumption (calculated) | E36: =E29+E30-E32-E34-E35 -> 4665.738793 | H36: =H29+H30-H32-H34-H35 -> 4661.15244 | K36: =K29+K30-K32-K34-K35 -> 4796.175584 | N36: =N29+N30-N32-N34-N35 -> 4889.106169 | Q36: =Q29+Q30-Q32-Q34-Q35 -> 4814.5927 | T36: =T29+T30-T32-T34-T35 -> 0 | W36: =W29+W30-W32-W34-W35 -> 0 | Z36: =Z29+Z30-Z32-Z34-Z35 -> 0 | AC36: =AC29+AC30-AC32-AC34-AC35 -> 0 | AF36: =AF29+AF30-AF32-AF34-AF35 -> 0 | AI36: =AI29+AI30-AI32-AI34-AI35 -> 0 | AL36: =AL29+AL30-AL32-AL34-AL35 -> 0 | AO36: Total consumption (calculated)

Sheet VAL_EXPLANATORY_NOTES
B2: Monthly Electricity Statistics Questionnaire - Explanatory notes
B4: Instructions:
B5: 1 | C5: Sheet setup
B6: 1.a | C6: Select country first, then the year.
B7: 1.b | C7: There is an event macro to safeguard against the deletion of any data when you change the year. If you choose to save your data under a different filename and restart the questionnaire on your own, you can use the "Clear Questionnaire" button.
B8: 1.c | C8: Please change the attribute "Updated?" to "Y" for the months for which you enter or revise data (reference months, previous months). The cell names for the updated months become "green highlighted".
B9: 1.d | C9: Reporting countries can edit cells highlighted in yellow, other cells are locked.
B10: 1.e | C10: Some cells have conditional formatting and turn red if basic relationships are not respected. Please try to correct those before data transmission to Eurostat and the IEA.
B11: 1.f | C11: All values shall be entered on sheet "VAL_MONTHLY_ELECTRICITY". Please do not modify other sheets.
B13: 2 | C13: Numerical data entry
B14: 2.a | C14: Enter values up to three decimal places in the column "GWh" for tables 1 and 2.
B15: 2.b | C15: The fields for "Total Net Production" and "Total consumption (calculated)" contain formulas that can't be directly edited.
B16: 2.c | C16: There is not an automatic formula for totals of "Conventional thermal", "Hydro", "Wind", or "Solar" so please enter all of the sub-categories available as well as the totals for these categories.
C17: NOTE: The sum of the sub-categories must be less than or equal to the totals. When this condition is not met, the totals will turn red. In many cases, the totals will be equal to the sum of the sub-categories. When sub-category data is not available on a monthly basis (for confidentiality or other reasons), please select the appropriate flags and leave the unavailable categories blank. Often the total will be known when the breakdown is unavailable, and this is why we allow the value for the total to be larger than the sum of the sub-categories.
B18: 2.d | C18: In Table 2, note that reporting rows 2.a (imports out of which from EU) and 3.a (exports out of which to EU) is mandatory for countries reporting to Eurostat.
B19: 2.e | C19: In Table 2, note that reporting row 5 (transmission and distribution losses) is not mandatory for countries reporting to Eurostat.
B21: 3 | C21: Observation status (Flag) and confidentiality status (Conf)
B22: 3.a | C22: Data observation status ("Flag" column in questionnaire) and data confidentiality status ("Conf" column in questionnaire) could be assigned to reported values.
B23: 3.b | C23: The default settings are null (empty) which mean "normal value" and "not confidential".
B24: 3.c | C24: If there is a form of electricity generation that does not exist in your country, the default entries (0 GWh, "normal value" and "not confidential") are appropriate.
C25: This means value 0 shall be entered and no selection shall be made for observation status and confidentiality status.
B26: 3.d | C26: If some data are not available on a monthly basis, please select "O" for "missing value".
B27: 3.e | C27: For very small values that are not known but are actually known to exist, report value zero and select "N" for "not significant".
B28: 3.f | C28: If a value is not filled in because of confidentiality please enter the confidentiality status "C".
B29: 3.g | C29: For estimated values, please select "E" for "estimated". You can use this flag also for provisional data.
B30: 3.h | C30: For estimated values where a solid reporting methodology is not yet implemented, please select "U" indicating "low reliability of reported values".
B31: 3.i | C31: If the collected data doesn’t comply with the definitions (difference in definition for a category or a difference in groupings of categories), please select "D" for "definition differs" and please inform Eurostat and the IEA.
B32: 3.j | C32: All empty observations (fields GWh, Flag and Conf are kept empty) are interpreted by Eurostat and the IEA as non-confidential value zero with observation status normal value.
B34: 4 | C34: Submittal
B35: 4.a | C35: Countries reporting to Eurostat please transmit as dataset ENERGY_ELEC3_M via EDAMIS within 3 months after the end of the reference month.
C36: Countries reporting to Eurostat are reminded about the agreement on data revision policy and the need to send revision announcement form if appropriate.
B37: 4.b | C37: Countries reporting to the IEA please transmit by email to CES@iea.org
B38: 4.c | C38: The IEA requests the full-year time series, even when there are no revisions.
B40: Definitions:
B41: Table 1: NET ELECTRICITY PRODUCTION
B42: Total Net Production | C42: The gross electricity production less the electrical energy absorbed by the generating auxiliaries and the losses in the main generator transformers.
C43: This is calculated as the sum of the electricity production by energy source (Nuclear + Conventional thermal + Hydro + Wind + Solar + Geothermal + Other Renewable Sources + Not Specified).
B44: Nuclear | C44: Energy released by nuclear fission or nuclear fusion.
B45: Conventional thermal | C45: Electricity production by combusting fuels capable of igniting or burning, i.e. reacting with oxygen to produce a significant rise in temperature.
B46: Coal | C46: Production from primary coal, coal products, peat and peat products, oil shale and oil sands, and manufactured gas (such as coke-oven gas, blast-furnace gas and gas works gas).
B47: Oil | C47: Production from crude oil, natural gas liquids, refinery feedstocks, and petroleum products (such as refinery gases and fuel oil).
B48: Natural Gas | C48: Production from natural gas (including gas distributed via the grid that may contain very little amounts of blended other gases).
B49: Combustible Renewables | C49: Production from combustible renewables (such as solid biofuels, biogases, liquid biofuels, municipal renewable waste).
B50: Other Combustible Fuels (non-renewables) | C50: Production from all other combustible fuels (such as industrial and non-renewable municipal solid waste).
B51: Hydro | C51: Electricity generated from the potential and kinetic energy of water converted into electricity in hydroelectric plants. Pumped storage should be included.
B52: Pure Hydro Plants | C52: Production of pure hydro plants (hydro plants that only use direct natural water inflow and have no capacity for hydro pump storage).
B53: Mixed Hydro Plants | C53: Production of mixed hydro plants (hydro plants with natural water inflow into an upper reservoir where part or all equipment can be used for pumping water uphill; the electricity generated is a consequence of both natural water inflow and water previously pumped into the upper reservoir).
B54: Pure Pumped Storage Hydro Plants | C54: Production of pure pumped storage hydro plants (hydro plants with no natural water inflow into the upper reservoir; the vast majority of water that generates electricity was previously pumped uphill; abstracting from the rainfall and snowfall).
B55: Wind | C55: Electricity generated in wind turbines using kinetic energy of wind.
B56: Onshore | C56: Production of electricity by wind in locations onshore (inland, including lakes and other bodies of water located inland).
B57: Offshore | C57: Production of electricity by wind in locations offshore (e.g. sea, ocean and artificial islands). In relation to offshore wind production outside of the territorial waters of the concerned territory, all installations located in the exclusive economic zone of a country shall be taken into account.
B58: Solar | C58: Electricity generated using solar radiation.
B59: Solar Photovoltaic | C59: Production from sunlight using solar cells - usually made of semi-conducting material - which exposed to light, will generate electricity.
B60: Solar Thermal | C60: Production of solar thermal-electric plants.
B61: Geothermal | C61: Electricity generated using heat emitted from within the earth’s crust, usually in the form of hot water or steam.
B62: Other Renewable Sources | C62: Electricity generated from tide, wave, ocean and other non-combustible sources.
B63: Not Specified | C63: Not elsewhere reported electricity generation.
B65: Table 2: SUMMARY OF PRODUCTION AND SUPPLY/CONSUMPTION (CALCULATED)
B66: Electricity Imports / Exports | C66: Amounts of electricity that have crossed political boundaries of the country, whether customs clearance has taken place or not. If electricity is transited through a country, the amount should be reported as both an import and an export.
B67: out of which from EU | C67: Electricity imported from countries of the EU (only mandatory for countries reporting to Eurostat).
B68: out of which to EU | C68: Electricity exported to countries in the EU (only mandatory for countries reporting to Eurostat).
B69: Used for pumped storage | C69: Electricity consumed by pumping water into a reservoir in mixed and pure pumped storage hydro plants.
B70: Transmission and distribution losses | C70: All losses due to transport and distribution of electrical energy. Losses in transformers which are not considered as integral parts of the power plants are also included. This value is not mandatory for countries reporting to Eurostat.
B71: Total consumption (calculated) | C71: Electricity available (calculated as: Indigenous production + Imports - Exports - used for pumped storage - Transmission and distribution losses)

Sheet VAL_LISTS
A1: Values for drop-down lists. PLEASE DO NOT MODIFY THIS SHEET.
A2: 2014 | C2: Albania | D2: AL | G2: normal value | J2: Not updated | M2: Not confidential
A3: 2015 | C3: Australia | D3: AU | F3: O | G3: missing value | I3: Y | J3: Updated | L3: C | M3: Confidential statistical information
A4: 2016 | C4: Austria | D4: AT | F4: N | G4: not significant
A5: 2017 | C5: Belarus | D5: BY | F5: E | G5: estimated value
A6: 2018 | C6: Belgium | D6: BE | F6: U | G6: low reliability
A7: 2019 | C7: Bosnia and Herzegovina | D7: BA | F7: D | G7: definition differs
A8: 2020 | C8: Bulgaria | D8: BG
A9: 2021 | C9: Canada | D9: CA
A10: 2022 | C10: Chile | D10: CL
A11: 2023 | C11: Croatia | D11: HR
A12: 2024 | C12: Cyprus | D12: CY
A13: 2025 | C13: Czech Republic | D13: CZ
A14: 2026 | C14: Denmark | D14: DK
A15: 2027 | C15: Estonia | D15: EE
A16: 2028 | C16: Finland | D16: FI
A17: 2029 | C17: France | D17: FR
A18: 2030 | C18: FYR of Macedonia | D18: MK
A19: 2031 | C19: Georgia | D19: GE
A20: 2032 | C20: Germany | D20: DE
A21: 2033 | C21: Greece | D21: GR
A22: 2034 | C22: Hungary | D22: HU
A23: 2035 | C23: Iceland | D23: IS
A24: 2036 | C24: Ireland | D24: IE
A25: 2037 | C25: Israel | D25: IL
A26: 2038 | C26: Italy | D26: IT
A27: 2039 | C27: Japan | D27: JP
A28: 2040 | C28: Korea | D28: KR
A29: 2041 | C29: Kosovo (UNSCR 1244/99) | D29: XK
A30: 2042 | C30: Latvia | D30: LV
A31: 2043 | C31: Liechtenstein | D31: LI
A32: 2044 | C32: Lithuania | D32: LT
A33: 2045 | C33: Luxembourg | D33: LU
A34: 2046 | C34: Malta | D34: MT
A35: 2047 | C35: Mexico | D35: MX
C36: Moldova | D36: MD
C37: Montenegro | D37: ME
C38: Netherlands | D38: NL
C39: New Zealand | D39: NZ
C40: Norway | D40: NO
C41: Poland | D41: PL
C42: Portugal | D42: PT
C43: Romania | D43: RO
C44: Serbia | D44: RS
C45: Slovakia | D45: SK
C46: Slovenia | D46: SI
C47: Spain | D47: ES
C48: Sweden | D48: SE
C49: Switzerland | D49: CH
C50: Turkey | D50: TR
C51: Ukraine | D51: UA
C52: United Kingdom | D52: GB
C53: United States | D53: US

Sheet Parameters
A1: Element | B1: Type | C1: PosType | D1: Position | F1: DataStart | G1: H10
A2: QUEST_SOURCE | B2: DIM | C2: FIX | D2: M_ELECT | F2: MaxEmptyRows | G2: 100
A3: FREQ | B3: DIM | C3: FIX | D3: M | F3: MaxEmptyColumns | G3: 100
A4: REF_AREA | B4: DIM | C4: CELL | D4: B2
A5: ENERGY_PRODUCT | B5: DIM | C5: FIX | D5: E7000
A6: MAIN_FLOW | B6: DIM | C6: COLUMN | D6: 3
A7: FLOW_BREAKDOWN | B7: DIM | C7: COLUMN | D7: 4
A8: PLANT_TECH | B8: DIM | C8: COLUMN | D8: 5
A9: PLANT_TYPE | B9: DIM | C9: FIX | D9: _T
A10: STOCKS | B10: DIM | C10: FIX | D10: _Z
A11: INFRASTRUCTURE_IND | B11: DIM | C11: FIX | D11: _Z
A12: VIS_A_VIS_AREA | B12: DIM | C12: COLUMN | D12: 6
A13: MEASURE_VALUE_TYPE | B13: DIM | C13: FIX | D13: ENERGY
A14: TIME_PERIOD | B14: DIM | C14: ROW | D14: 7
A15: FACILITY_ID | B15: DIM | C15: FIX | D15: _Z
A16: UNIT_MEASURE | B16: ATT | C16: FIX | D16: GWH
A17: OBS_STATUS | B17: ATT | C17: OBS_LEVEL | D17: 1
A18: CONF_STATUS | B18: ATT | C18: OBS_LEVEL | D18: 2
A19: SUBMISSION | B19: ATT | C19: SKIP
A20: COMMENT_OBS | B20: ATT | C20: SKIP
A21: FACILITY_TYPE | B21: ATT | C21: SKIP
A22: FACILITY_NAME | B22: ATT | C22: SKIP

Sheet ELEC3
A1: Input for SDMX converter. PLEASE DO NOT MODIFY THIS SHEET.
A2: REF_AREA | B2: =VLOOKUP(VAL_MONTHLY_ELECTRICITY!D2,VAL_LISTS!C2:D53,2) -> 
A3: YEAR | B3: =VAL_MONTHLY_ELECTRICITY!D3 -> 2021
H7: =VAL_MONTHLY_ELECTRICITY!D3&"-01" -> 2021-01 | K7: =VAL_MONTHLY_ELECTRICITY!D3&"-02" -> 2021-02 | N7: =VAL_MONTHLY_ELECTRICITY!D3&"-03" -> 2021-03 | Q7: =VAL_MONTHLY_ELECTRICITY!D3&"-04" -> 2021-04 | T7: =VAL_MONTHLY_ELECTRICITY!D3&"-05" -> 2021-05 | W7: =VAL_MONTHLY_ELECTRICITY!D3&"-06" -> 2021-06 | Z7: =VAL_MONTHLY_ELECTRICITY!D3&"-07" -> 2021-07 | AC7: =VAL_MONTHLY_ELECTRICITY!D3&"-08" -> 2021-08 | AF7: =VAL_MONTHLY_ELECTRICITY!D3&"-09" -> 2021-09 | AI7: =VAL_MONTHLY_ELECTRICITY!D3&"-10" -> 2021-10 | AL7: =VAL_MONTHLY_ELECTRICITY!D3&"-11" -> 2021-11 | AO7: =VAL_MONTHLY_ELECTRICITY!D3&"-12" -> 2021-12
H8: January | K8: February | N8: March | Q8: April | T8: May | W8: June | Z8: July | AC8: August | AF8: September | AI8: October | AL8: November | AO8: December
C9: MAIN_FLOW | D9: FLOW_BREAKDOWN | E9: PLANT_TECH | F9: VIS_A_VIS_AREA | H9: Value | I9: Flag | J9: Conf | K9: Value | L9: Flag | M9: Conf | N9: Value | O9: Flag | P9: Conf | Q9: Value | R9: Flag | S9: Conf | T9: Value | U9: Flag | V9: Conf | W9: Value | X9: Flag | Y9: Conf | Z9: Value | AA9: Flag | AB9: Conf | AC9: Value | AD9: Flag | AE9: Conf | AF9: Value | AG9: Flag | AH9: Conf | AI9: Value | AJ9: Flag | AK9: Conf | AL9: Value | AM9: Flag | AN9: Conf | AO9: Value | AP9: Flag | AQ9: Conf
C10: NETPROD | D10: _Z | E10: _T | F10: _Z | G10: Total net production | H10: =IF(VAL_MONTHLY_ELECTRICITY!G$3="Y",ROUND(VAL_MONTHLY_ELECTRICITY!E6,3),"") ->  | I10: =IF(VAL_MONTHLY_ELECTRICITY!G$3="Y",IF(VAL_MONTHLY_ELECTRICITY!F6="","A",VAL_MONTHLY_ELECTRICITY!F6),"") ->  | J10: =IF(VAL_MONTHLY_ELECTRICITY!G$3="Y",IF(VAL_MONTHLY_ELECTRICITY!G6="","F",VAL_MONTHLY_ELECTRICITY!G6),"") ->  | K10: =IF(VAL_MONTHLY_ELECTRICITY!J$3="Y",ROUND(VAL_MONTHLY_ELECTRICITY!H6,3),"") ->  | L10: =IF(VAL_MONTHLY_ELECTRICITY!J$3="Y",IF(VAL_MONTHLY_ELECTRICITY!I6="","A",VAL_MONTHLY_ELECTRICITY!I6),"") ->  | M10: =IF(VAL_MONTHLY_ELECTRICITY!J$3="Y",IF(VAL_MONTHLY_ELECTRICITY!J6="","F",VAL_MONTHLY_ELECTRICITY!J6),"") ->  | N10: =IF(VAL_MONTHLY_ELECTRICITY!M$3="Y",ROUND(VAL_MONTHLY_ELECTRICITY!K6,3),"") ->  | O10: =IF(VAL_MONTHLY_ELECTRICITY!M$3="Y",IF(VAL_MONTHLY_ELECTRICITY!L6="","A",VAL_MONTHLY_ELECTRICITY!L6),"") ->  | P10: =IF(VAL_MONTHLY_ELECTRICITY!M$3="Y",IF(VAL_MONTHLY_ELECTRICITY!M6="","F",VAL_MONTHLY_ELECTRICITY!M6),"") ->  | Q10: =IF(VAL_MONTHLY_ELECTRICITY!P$3="Y",ROUND(VAL_MONTHLY_ELECTRICITY!N6,3),"") -> 5826.22 | R10: =IF(VAL_MONTHLY_ELECTRICITY!P$3="Y",IF(VAL_MONTHLY_ELECTRICITY!O6="","A",VAL_MONTHLY_ELECTRICITY!O6),"") -> A | S10: =IF(VAL_MONTHLY_ELECTRICITY!P$3="Y",IF(VAL_MONTHLY_ELECTRICITY!P6="","F",VAL_MONTHLY_ELECTRICITY!P6),"") -> F | T10: =IF(VAL_MONTHLY_ELECTRICITY!S$3="Y",ROUND(VAL_MONTHLY_ELECTRICITY!Q6,3),"") -> 5997.792 | U10: =IF(VAL_MONTHLY_ELECTRICITY!S$3="Y",IF(VAL_MONTHLY_ELECTRICITY!R6="","A",VAL_MONTHLY_ELECTRICITY!R6),"") -> A | V10: =IF(VAL_MONTHLY_ELECTRICITY!S$3="Y",IF(VAL_MONTHLY_ELECTRICITY!S6="","F",VAL_MONTHLY_ELECTRICITY!S6),"") -> F | W10: =IF(VAL_MONTHLY_ELECTRICITY!V$3="Y",ROUND(VAL_MONTHLY_ELECTRICITY!T6,3),"") ->  | X10: =IF(VAL_MONTHLY_ELECTRICITY!V$3="Y",IF(VAL_MONTHLY_ELECTRICITY!U6="","A",VAL_MONTHLY_ELECTRICITY!U6),"") ->  | Y10: =IF(VAL_MONTHLY_ELECTRICITY!V$3="Y",IF(VAL_MONTHLY_ELECTRICITY!V6="","F",VAL_MONTHLY_ELECTRICITY!V6),"") ->  | Z10: =IF(VAL_MONTHLY_ELECTRICITY!Y$3="Y",ROUND(VAL_MONTHLY_ELECTRICITY!W6,3),"") ->  | AA10: =IF(VAL_MONTHLY_ELECTRICITY!Y$3="Y",IF(VAL_MONTHLY_ELECTRICITY!X6="","A",VAL_MONTHLY_ELECTRICITY!X6),"") ->  | AB10: =IF(VAL_MONTHLY_ELECTRICITY!Y$3="Y",IF(VAL_MONTHLY_ELECTRICITY!Y6="","F",VAL_MONTHLY_ELECTRICITY!Y6),"") ->  | AC10: =IF(VAL_MONTHLY_ELECTRICITY!AB$3="Y",ROUND(VAL_MONTHLY_ELECTRICITY!Z6,3),"") ->  | AD10: =IF(VAL_MONTHLY_ELECTRICITY!AB$3="Y",IF(VAL_MONTHLY_ELECTRICITY!AA6="","A",VAL_MONTHLY_ELECTRICITY!AA6),"") ->  | AE10: =IF(VAL_MONTHLY_ELECTRICITY!AB$3="Y",IF(VAL_MONTHLY_ELECTRICITY!AB6="","F",VAL_MONTHLY_ELECTRICITY!AB6),"") ->  | AF10: =IF(VAL_MONTHLY_ELECTRICITY!AE$3="Y",ROUND(VAL_MONTHLY_ELECTRICITY!AC6,3),"") ->  | AG10: =IF(VAL_MONTHLY_ELECTRICITY!AE$3="Y",IF(VAL_MONTHLY_ELECTRICITY!AD6="","A",VAL_MONTHLY_ELECTRICITY!AD6),"") ->  | AH10: =IF(VAL_MONTHLY_ELECTRICITY!AE$3="Y",IF(VAL_MONTHLY_ELECTRICITY!AE6="","F",VAL_MONTHLY_ELECTRICITY!AE6),"") ->  | AI10: =IF(VAL_MONTHLY_ELECTRICITY!AH$3="Y",ROUND(VAL_MONTHLY_ELECTRICITY!AF6,3),"") -> 0 | AJ10: =IF(VAL_MONTHLY_ELECTRICITY!AH$3="Y",IF(VAL_MONTHLY_ELECTRICITY!AG6="","A",VAL_MONTHLY_ELECTRICITY!AG6),"") -> A | AK10: =IF(VAL_MONTHLY_ELECTRICITY!AH$3="Y",IF(VAL_MONTHLY_ELECTRICITY!AH6="","F",VAL_MONTHLY_ELECTRICITY!AH6),"") -> F | AL10: =IF(VAL_MONTHLY_ELECTRICITY!AK$3="Y",ROUND(VAL_MONTHLY_ELECTRICITY!AI6,3),"") -> 0 | AM10: =IF(VAL_MONTHLY_ELECTRICITY!AK$3="Y",IF(VAL_MONTHLY_ELECTRICITY!AJ6="","A",VAL_MONTHLY_ELECTRICITY!AJ6),"") -> A | AN10: =IF(VAL_MONTHLY_ELECTRICITY!AK$3="Y",IF(VAL_MONTHLY_ELECTRICITY!AK6="","F",VAL_MONTHLY_ELECTRICITY!AK6),"") -> F | AO10: =IF(VAL_MONTHLY_ELECTRICITY!AN$3="Y",ROUND(VAL_MONTHLY_ELECTRICITY!AL6,3),"") -> 0 | AP10: =IF(VAL_MONTHLY_ELECTRICITY!AN$3="Y",IF(VAL_MONTHLY_ELECTRICITY!AM6="","A",VAL_MONTHLY_ELECTRICITY!AM6),"") -> A | AQ10: =IF(VAL_MONTHLY_ELECTRICITY!AN$3="Y",IF(VAL_MONTHLY_ELECTRICITY!AN6="","F",VAL_MONTHLY_ELECTRICITY!AN6),"") -> F
C11: NETPROD | D11: _Z | E11: NUCLEAR | F11: _Z | G11: Nuclear | H11: =IF(VAL_MONTHLY_ELECTRICITY!G$3="Y",ROUND(VAL_MONTHLY_ELECTRICITY!E7,3),"") ->  | I11: =IF(VAL_MONTHLY_ELECTRICITY!G$3="Y",IF(VAL_MONTHLY_ELECTRICITY!F7="","A",VAL_MONTHLY_ELECTRICITY!F7),"") ->  | J11: =IF(VAL_MONTHLY_ELECTRICITY!G$3="Y",IF(VAL_MONTHLY_ELECTRICITY!G7="","F",VAL_MONTHLY_ELECTRICITY!G7),"") ->  | K11: =IF(VAL_MONTHLY_ELECTRICITY!J$3="Y",ROUND(VAL_MONTHLY_ELECTRICITY!H7,3),"") ->  | L11: =IF(VAL_MONTHLY_ELECTRICITY!J$3="Y",IF(VAL_MONTHLY_ELECTRICITY!I7="","A",VAL_MONTHLY_ELECTRICITY!I7),"") ->  | M11: =IF(VAL_MONTHLY_ELECTRICITY!J$3="Y",IF(VAL_MONTHLY_ELECTRICITY!J7="","F",VAL_MONTHLY_ELECTRICITY!J7),"") ->  | N11: =IF(VAL_MONTHLY_ELECTRICITY!M$3="Y",ROUND(VAL_MONTHLY_ELECTRICITY!K7,3),"") ->  | O11: =IF(VAL_MONTHLY_ELECTRICITY!M$3="Y",IF(VAL_MONTHLY_ELECTRICITY!L7="","A",VAL_MONTHLY_ELECTRICITY!L7),"") ->  | P11: =IF(VAL_MONTHLY_ELECTRICITY!M$3="Y",IF(VAL_MONTHLY_ELECTRICITY!M7="","F",VAL_MONTHLY_ELECTRICITY!M7),"") ->  | Q11: =IF(VAL_MONTHLY_ELECTRICITY!P$3="Y",ROUND(VAL_MONTHLY_ELECTRICITY!N7,3),"") -> 0 | R11: =IF(VAL_MONTHLY_ELECTRICITY!P$3="Y",IF(VAL_MONTHLY_ELECTRICITY!O7="","A",VAL_MONTHLY_ELECTRICITY!O7),"") -> A | S11: =IF(VAL_MONTHLY_ELECTRICITY!P$3="Y",IF(VAL_MONTHLY_ELECTRICITY!P7="","F",VAL_MONTHLY_ELECTRICITY!P7),"") -> F | T11: =IF(VAL_MONTHLY_ELECTRICITY!S$3="Y",ROUND(VAL_MONTHLY_ELECTRICITY!Q7,3),"") -> 0 | U11: =IF(VAL_MONTHLY_ELECTRICITY!S$3="Y",IF(VAL_MONTHLY_ELECTRICITY!R7="","A",VAL_MONTHLY_ELECTRICITY!R7),"") -> A | V11: =IF(VAL_MONTHLY_ELECTRICITY!S$3="Y",IF(VAL_MONTHLY_ELECTRICITY!S7="","F",VAL_MONTHLY_ELECTRICITY!S7),"") -> F | W11: =IF(VAL_MONTHLY_ELECTRICITY!V$3="Y",ROUND(VAL_MONTHLY_ELECTRICITY!T7,3),"") ->  | X11: =IF(VAL_MONTHLY_ELECTRICITY!V$3="Y",IF(VAL_MONTHLY_ELECTRICITY!U7="","A",VAL_MONTHLY_ELECTRICITY!U7),"") ->  | Y11: =IF(VAL_MONTHLY_ELECTRICITY!V$3="Y",IF(VAL_MONTHLY_ELECTRICITY!V7="","F",VAL_MONTHLY_ELECTRICITY!V7),"") ->  | Z11: =IF(VAL_MONTHLY_ELECTRICITY!Y$3="Y",ROUND(VAL_MONTHLY_ELECTRICITY!W7,3),"") ->  | AA11: =IF(VAL_MONTHLY_ELECTRICITY!Y$3="Y",IF(VAL_MONTHLY_ELECTRICITY!X7="","A",VAL_MONTHLY_ELECTRICITY!X7),"") ->  | AB11: =IF(VAL_MONTHLY_ELECTRICITY!Y$3="Y",IF(VAL_MONTHLY_ELECTRICITY!Y7="","F",VAL_MONTHLY_ELECTRICITY!Y7),"") ->  | AC11: =IF(VAL_MONTHLY_ELECTRICITY!AB$3="Y",ROUND(VAL_MONTHLY_ELECTRICITY!Z7,3),"") ->  | AD11: =IF(VAL_MONTHLY_ELECTRICITY!AB$3="Y",IF(VAL_MONTHLY_ELECTRICITY!AA7="","A",VAL_MONTHLY_ELECTRICITY!AA7),"") ->  | AE11: =IF(VAL_MONTHLY_ELECTRICITY!AB$3="Y",IF(VAL_MONTHLY_ELECTRICITY!AB7="","F",VAL_MONTHLY_ELECTRICITY!AB7),"") ->  | AF11: =IF(VAL_MONTHLY_ELECTRICITY!AE$3="Y",ROUND(VAL_MONTHLY_ELECTRICITY!AC7,3),"") ->  | AG11: =IF(VAL_MONTHLY_ELECTRICITY!AE$3="Y",IF(VAL_MONTHLY_ELECTRICITY!AD7="","A",VAL_MONTHLY_ELECTRICITY!AD7),"") ->  | AH11: =IF(VAL_MONTHLY_ELECTRICITY!AE$3="Y",IF(VAL_MONTHLY_ELECTRICITY!AE7="","F",VAL_MONTHLY_ELECTRICITY!AE7),"") ->  | AI11: =IF(VAL_MONTHLY_ELECTRICITY!AH$3="Y",ROUND(VAL_MONTHLY_ELECTRICITY!AF7,3),"") -> 0 | AJ11: =IF(VAL_MONTHLY_ELECTRICITY!AH$3="Y",IF(VAL_MONTHLY_ELECTRICITY!AG7="","A",VAL_MONTHLY_ELECTRICITY!AG7),"") -> A | AK11: =IF(VAL_MONTHLY_ELECTRICITY!AH$3="Y",IF(VAL_MONTHLY_ELECTRICITY!AH7="","F",VAL_MONTHLY_ELECTRICITY!AH7),"") -> F | AL11: =IF(VAL_MONTHLY_ELECTRICITY!AK$3="Y",ROUND(VAL_MONTHLY_ELECTRICITY!AI7,3),"") -> 0 | AM11: =IF(VAL_MONTHLY_ELECTRICITY!AK$3="Y",IF(VAL_MONTHLY_ELECTRICITY!AJ7="","A",VAL_MONTHLY_ELECTRICITY!AJ7),"") -> A | AN11: =IF(VAL_MONTHLY_ELECTRICITY!AK$3="Y",IF(VAL_MONTHLY_ELECTRICITY!AK7="","F",VAL_MONTHLY_ELECTRICITY!AK7),"") -> F | AO11: =IF(VAL_MONTHLY_ELECTRICITY!AN$3="Y",ROUND(VAL_MONTHLY_ELECTRICITY!AL7,3),"") -> 0 | AP11: =IF(VAL_MONTHLY_ELECTRICITY!AN$3="Y",IF(VAL_MONTHLY_ELECTRICITY!AM7="","A",VAL_MONTHLY_ELECTRICITY!AM7),"") -> A | AQ11: =IF(VAL_MONTHLY_ELECTRICITY!AN$3="Y",IF(VAL_MONTHLY_ELECTRICITY!AN7="","F",VAL_MONTHLY_ELECTRICITY!AN7),"") -> F
C12: NETPROD | D12: _Z | E12: COMBFUEL | F12: _Z | G12: Conventional thermal | H12: =IF(VAL_MONTHLY_ELECTRICITY!G$3="Y",ROUND(VAL_MONTHLY_ELECTRICITY!E8,3),"") ->  | I12: =IF(VAL_MONTHLY_ELECTRICITY!G$3="Y",IF(VAL_MONTHLY_ELECTRICITY!F8="","A",VAL_MONTHLY_ELECTRICITY!F8),"") ->  | J12: =IF(VAL_MONTHLY_ELECTRICITY!G$3="Y",IF(VAL_MONTHLY_ELECTRICITY!G8="","F",VAL_MONTHLY_ELECTRICITY!G8),"") ->  | K12: =IF(VAL_MONTHLY_ELECTRICITY!J$3="Y",ROUND(VAL_MONTHLY_ELECTRICITY!H8,3),"") ->  | L12: =IF(VAL_MONTHLY_ELECTRICITY!J$3="Y",IF(VAL_MONTHLY_ELECTRICITY!I8="","A",VAL_MONTHLY_ELECTRICITY!I8),"") ->  | M12: =IF(VAL_MONTHLY_ELECTRICITY!J$3="Y",IF(VAL_MONTHLY_ELECTRICITY!J8="","F",VAL_MONTHLY_ELECTRICITY!J8),"") ->  | N12: =IF(VAL_MONTHLY_ELECTRICITY!M$3="Y",ROUND(VAL_MONTHLY_ELECTRICITY!K8,3),"") ->  | O12: =IF(VAL_MONTHLY_ELECTRICITY!M$3="Y",IF(VAL_MONTHLY_ELECTRICITY!L8="","A",VAL_MONTHLY_ELECTRICITY!L8),"") ->  | P12: =IF(VAL_MONTHLY_ELECTRICITY!M$3="Y",IF(VAL_MONTHLY_ELECTRICITY!M8="","F",VAL_MONTHLY_ELECTRICITY!M8),"") ->  | Q12: =IF(VAL_MONTHLY_ELECTRICITY!P$3="Y",ROUND(VAL_MONTHLY_ELECTRICITY!N8,3),"") -> 1017.861 | R12: =IF(VAL_MONTHLY_ELECTRICITY!P$3="Y",IF(VAL_MONTHLY_ELECTRICITY!O8="","A",VAL_MONTHLY_ELECTRICITY!O8),"") -> A | S12: =IF(VAL_MONTHLY_ELECTRICITY!P$3="Y",IF(VAL_MONTHLY_ELECTRICITY!P8="","F",VAL_MONTHLY_ELECTRICITY!P8),"") -> F | T12: =IF(VAL_MONTHLY_ELECTRICITY!S$3="Y",ROUND(VAL_MONTHLY_ELECTRICITY!Q8,3),"") -> 814.792 | U12: =IF(VAL_MONTHLY_ELECTRICITY!S$3="Y",IF(VAL_MONTHLY_ELECTRICITY!R8="","A",VAL_MONTHLY_ELECTRICITY!R8),"") -> A | V12: =IF(VAL_MONTHLY_ELECTRICITY!S$3="Y",IF(VAL_MONTHLY_ELECTRICITY!S8="","F",VAL_MONTHLY_ELECTRICITY!S8),"") -> F | W12: =IF(VAL_MONTHLY_ELECTRICITY!V$3="Y",ROUND(VAL_MONTHLY_ELECTRICITY!T8,3),"") ->  | X12: =IF(VAL_MONTHLY_ELECTRICITY!V$3="Y",IF(VAL_MONTHLY_ELECTRICITY!U8="","A",VAL_MONTHLY_ELECTRICITY!U8),"") ->  | Y12: =IF(VAL_MONTHLY_ELECTRICITY!V$3="Y",IF(VAL_MONTHLY_ELECTRICITY!V8="","F",VAL_MONTHLY_ELECTRICITY!V8),"") ->  | Z12: =IF(VAL_MONTHLY_ELECTRICITY!Y$3="Y",ROUND(VAL_MONTHLY_ELECTRICITY!W8,3),"") ->  | AA12: =IF(VAL_MONTHLY_ELECTRICITY!Y$3="Y",IF(VAL_MONTHLY_ELECTRICITY!X8="","A",VAL_MONTHLY_ELECTRICITY!X8),"") ->  | AB12: =IF(VAL_MONTHLY_ELECTRICITY!Y$3="Y",IF(VAL_MONTHLY_ELECTRICITY!Y8="","F",VAL_MONTHLY_ELECTRICITY!Y8),"") ->  | AC12: =IF(VAL_MONTHLY_ELECTRICITY!AB$3="Y",ROUND(VAL_MONTHLY_ELECTRICITY!Z8,3),"") ->  | AD12: =IF(VAL_MONTHLY_ELECTRICITY!AB$3="Y",IF(VAL_MONTHLY_ELECTRICITY!AA8="","A",VAL_MONTHLY_ELECTRICITY!AA8),"") ->  | AE12: =IF(VAL_MONTHLY_ELECTRICITY!AB$3="Y",IF(VAL_MONTHLY_ELECTRICITY!AB8="","F",VAL_MONTHLY_ELECTRICITY!AB8),"") ->  | AF12: =IF(VAL_MONTHLY_ELECTRICITY!AE$3="Y",ROUND(VAL_MONTHLY_ELECTRICITY!AC8,3),"") ->  | AG12: =IF(VAL_MONTHLY_ELECTRICITY!AE$3="Y",IF(VAL_MONTHLY_ELECTRICITY!AD8="","A",VAL_MONTHLY_ELECTRICITY!AD8),"") ->  | AH12: =IF(VAL_MONTHLY_ELECTRICITY!AE$3="Y",IF(VAL_MONTHLY_ELECTRICITY!AE8="","F",VAL_MONTHLY_ELECTRICITY!AE8),"") ->  | AI12: =IF(VAL_MONTHLY_ELECTRICITY!AH$3="Y",ROUND(VAL_MONTHLY_ELECTRICITY!AF8,3),"") -> 0 | AJ12: =IF(VAL_MONTHLY_ELECTRICITY!AH$3="Y",IF(VAL_MONTHLY_ELECTRICITY!AG8="","A",VAL_MONTHLY_ELECTRICITY!AG8),"") -> A | AK12: =IF(VAL_MONTHLY_ELECTRICITY!AH$3="Y",IF(VAL_MONTHLY_ELECTRICITY!AH8="","F",VAL_MONTHLY_ELECTRICITY!AH8),"") -> F | AL12: =IF(VAL_MONTHLY_ELECTRICITY!AK$3="Y",ROUND(VAL_MONTHLY_ELECTRICITY!AI8,3),"") -> 0 | AM12: =IF(VAL_MONTHLY_ELECTRICITY!AK$3="Y",IF(VAL_MONTHLY_ELECTRICITY!AJ8="","A",VAL_MONTHLY_ELECTRICITY!AJ8),"") -> A | AN12: =IF(VAL_MONTHLY_ELECTRICITY!AK$3="Y",IF(VAL_MONTHLY_ELECTRICITY!AK8="","F",VAL_MONTHLY_ELECTRICITY!AK8),"") -> F | AO12: =IF(VAL_MONTHLY_ELECTRICITY!AN$3="Y",ROUND(VAL_MONTHLY_ELECTRICITY!AL8,3),"") -> 0 | AP12: =IF(VAL_MONTHLY_ELECTRICITY!AN$3="Y",IF(VAL_MONTHLY_ELECTRICITY!AM8="","A",VAL_MONTHLY_ELECTRICITY!AM8),"") -> A | AQ12: =IF(VAL_MONTHLY_ELECTRICITY!AN$3="Y",IF(VAL_MONTHLY_ELECTRICITY!AN8="","F",VAL_MONTHLY_ELECTRICITY!AN8),"") -> F
C13: NETPROD | D13: _Z | E13: COMBCOAL | F13: _Z | G13: Coal | H13: =IF(VAL_MONTHLY_ELECTRICITY!G$3="Y",ROUND(VAL_MONTHLY_ELECTRICITY!E9,3),"") ->  | I13: =IF(VAL_MONTHLY_ELECTRICITY!G$3="Y",IF(VAL_MONTHLY_ELECTRICITY!F9="","A",VAL_MONTHLY_ELECTRICITY!F9),"") ->  | J13: =IF(VAL_MONTHLY_ELECTRICITY!G$3="Y",IF(VAL_MONTHLY_ELECTRICITY!G9="","F",VAL_MONTHLY_ELECTRICITY!G9),"") ->  | K13: =IF(VAL_MONTHLY_ELECTRICITY!J$3="Y",ROUND(VAL_MONTHLY_ELECTRICITY!H9,3),"") ->  | L13: =IF(VAL_MONTHLY_ELECTRICITY!J$3="Y",IF(VAL_MONTHLY_ELECTRICITY!I9="","A",VAL_MONTHLY_ELECTRICITY!I9),"") ->  | M13: =IF(VAL_MONTHLY_ELECTRICITY!J$3="Y",IF(VAL_MONTHLY_ELECTRICITY!J9="","F",VAL_MONTHLY_ELECTRICITY!J9),"") ->  | N13: =IF(VAL_MONTHLY_ELECTRICITY!M$3="Y",ROUND(VAL_MONTHLY_ELECTRICITY!K9,3),"") ->  | O13: =IF(VAL_MONTHLY_ELECTRICITY!M$3="Y",IF(VAL_MONTHLY_ELECTRICITY!L9="","A",VAL_MONTHLY_ELECTRICITY!L9),"") ->  | P13: =IF(VAL_MONTHLY_ELECTRICITY!M$3="Y",IF(VAL_MONTHLY_ELECTRICITY!M9="","F",VAL_MONTHLY_ELECTRICITY!M9),"") ->  | Q13: =IF(VAL_MONTHLY_ELECTRICITY!P$3="Y",ROUND(VAL_MONTHLY_ELECTRICITY!N9,3),"") -> 358.672 | R13: =IF(VAL_MONTHLY_ELECTRICITY!P$3="Y",IF(VAL_MONTHLY_ELECTRICITY!O9="","A",VAL_MONTHLY_ELECTRICITY!O9),"") -> A | S13: =IF(VAL_MONTHLY_ELECTRICITY!P$3="Y",IF(VAL_MONTHLY_ELECTRICITY!P9="","F",VAL_MONTHLY_ELECTRICITY!P9),"") -> F | T13: =IF(VAL_MONTHLY_ELECTRICITY!S$3="Y",ROUND(VAL_MONTHLY_ELECTRICITY!Q9,3),"") -> 232.416 | U13: =IF(VAL_MONTHLY_ELECTRICITY!S$3="Y",IF(VAL_MONTHLY_ELECTRICITY!R9="","A",VAL_MONTHLY_ELECTRICITY!R9),"") -> A | V13: =IF(VAL_MONTHLY_ELECTRICITY!S$3="Y",IF(VAL_MONTHLY_ELECTRICITY!S9="","F",VAL_MONTHLY_ELECTRICITY!S9),"") -> F | W13: =IF(VAL_MONTHLY_ELECTRICITY!V$3="Y",ROUND(VAL_MONTHLY_ELECTRICITY!T9,3),"") ->  | X13: =IF(VAL_MONTHLY_ELECTRICITY!V$3="Y",IF(VAL_MONTHLY_ELECTRICITY!U9="","A",VAL_MONTHLY_ELECTRICITY!U9),"") ->  | Y13: =IF(VAL_MONTHLY_ELECTRICITY!V$3="Y",IF(VAL_MONTHLY_ELECTRICITY!V9="","F",VAL_MONTHLY_ELECTRICITY!V9),"") ->  | Z13: =IF(VAL_MONTHLY_ELECTRICITY!Y$3="Y",ROUND(VAL_MONTHLY_ELECTRICITY!W9,3),"") ->  | AA13: =IF(VAL_MONTHLY_ELECTRICITY!Y$3="Y",IF(VAL_MONTHLY_ELECTRICITY!X9="","A",VAL_MONTHLY_ELECTRICITY!X9),"") ->  | AB13: =IF(VAL_MONTHLY_ELECTRICITY!Y$3="Y",IF(VAL_MONTHLY_ELECTRICITY!Y9="","F",VAL_MONTHLY_ELECTRICITY!Y9),"") ->  | AC13: =IF(VAL_MONTHLY_ELECTRICITY!AB$3="Y",ROUND(VAL_MONTHLY_ELECTRICITY!Z9,3),"") ->  | AD13: =IF(VAL_MONTHLY_ELECTRICITY!AB$3="Y",IF(VAL_MONTHLY_ELECTRICITY!AA9="","A",VAL_MONTHLY_ELECTRICITY!AA9),"") ->  | AE13: =IF(VAL_MONTHLY_ELECTRICITY!AB$3="Y",IF(VAL_MONTHLY_ELECTRICITY!AB9="","F",VAL_MONTHLY_ELECTRICITY!AB9),"") ->  | AF13: =IF(VAL_MONTHLY_ELECTRICITY!AE$3="Y",ROUND(VAL_MONTHLY_ELECTRICITY!AC9,3),"") ->  | AG13: =IF(VAL_MONTHLY_ELECTRICITY!AE$3="Y",IF(VAL_MONTHLY_ELECTRICITY!AD9="","A",VAL_MONTHLY_ELECTRICITY!AD9),"") ->  | AH13: =IF(VAL_MONTHLY_ELECTRICITY!AE$3="Y",IF(VAL_MONTHLY_ELECTRICITY!AE9="","F",VAL_MONTHLY_ELECTRICITY!AE9),"") ->  | AI13: =IF(VAL_MONTHLY_ELECTRICITY!AH$3="Y",ROUND(VAL_MONTHLY_ELECTRICITY!AF9,3),"") -> 0 | AJ13: =IF(VAL_MONTHLY_ELECTRICITY!AH$3="Y",IF(VAL_MONTHLY_ELECTRICITY!AG9="","A",VAL_MONTHLY_ELECTRICITY!AG9),"") -> A | AK13: =IF(VAL_MONTHLY_ELECTRICITY!AH$3="Y",IF(VAL_MONTHLY_ELECTRICITY!AH9="","F",VAL_MONTHLY_ELECTRICITY!AH9),"") -> F | AL13: =IF(VAL_MONTHLY_ELECTRICITY!AK$3="Y",ROUND(VAL_MONTHLY_ELECTRICITY!AI9,3),"") -> 0 | AM13: =IF(VAL_MONTHLY_ELECTRICITY!AK$3="Y",IF(VAL_MONTHLY_ELECTRICITY!AJ9="","A",VAL_MONTHLY_ELECTRICITY!AJ9),"") -> A | AN13: =IF(VAL_MONTHLY_ELECTRICITY!AK$3="Y",IF(VAL_MONTHLY_ELECTRICITY!AK9="","F",VAL_MONTHLY_ELECTRICITY!AK9),"") -> F | AO13: =IF(VAL_MONTHLY_ELECTRICITY!AN$3="Y",ROUND(VAL_MONTHLY_ELECTRICITY!AL9,3),"") -> 0 | AP13: =IF(VAL_MONTHLY_ELECTRICITY!AN$3="Y",IF(VAL_MONTHLY_ELECTRICITY!AM9="","A",VAL_MONTHLY_ELECTRICITY!AM9),"") -> A | AQ13: =IF(VAL_MONTHLY_ELECTRICITY!AN$3="Y",IF(VAL_MONTHLY_ELECTRICITY!AN9="","F",VAL_MONTHLY_ELECTRICITY!AN9),"") -> F
C14: NETPROD | D14: _Z | E14: COMBOIL | F14: _Z | G14: Oil | H14: =IF(VAL_MONTHLY_ELECTRICITY!G$3="Y",ROUND(VAL_MONTHLY_ELECTRICITY!E10,3),"") ->  | I14: =IF(VAL_MONTHLY_ELECTRICITY!G$3="Y",IF(VAL_MONTHLY_ELECTRICITY!F10="","A",VAL_MONTHLY_ELECTRICITY!F10),"") ->  | J14: =IF(VAL_MONTHLY_ELECTRICITY!G$3="Y",IF(VAL_MONTHLY_ELECTRICITY!G10="","F",VAL_MONTHLY_ELECTRICITY!G10),"") ->  | K14: =IF(VAL_MONTHLY_ELECTRICITY!J$3="Y",ROUND(VAL_MONTHLY_ELECTRICITY!H10,3),"") ->  | L14: =IF(VAL_MONTHLY_ELECTRICITY!J$3="Y",IF(VAL_MONTHLY_ELECTRICITY!I10="","A",VAL_MONTHLY_ELECTRICITY!I10),"") ->  | M14: =IF(VAL_MONTHLY_ELECTRICITY!J$3="Y",IF(VAL_MONTHLY_ELECTRICITY!J10="","F",VAL_MONTHLY_ELECTRICITY!J10),"") ->  | N14: =IF(VAL_MONTHLY_ELECTRICITY!M$3="Y",ROUND(VAL_MONTHLY_ELECTRICITY!K10,3),"") ->  | O14: =IF(VAL_MONTHLY_ELECTRICITY!M$3="Y",IF(VAL_MONTHLY_ELECTRICITY!L10="","A",VAL_MONTHLY_ELECTRICITY!L10),"") ->  | P14: =IF(VAL_MONTHLY_ELECTRICITY!M$3="Y",IF(VAL_MONTHLY_ELECTRICITY!M10="","F",VAL_MONTHLY_ELECTRICITY!M10),"") ->  | Q14: =IF(VAL_MONTHLY_ELECTRICITY!P$3="Y",ROUND(VAL_MONTHLY_ELECTRICITY!N10,3),"") -> 1.856 | R14: =IF(VAL_MONTHLY_ELECTRICITY!P$3="Y",IF(VAL_MONTHLY_ELECTRICITY!O10="","A",VAL_MONTHLY_ELECTRICITY!O10),"") -> A | S14: =IF(VAL_MONTHLY_ELECTRICITY!P$3="Y",IF(VAL_MONTHLY_ELECTRICITY!P10="","F",VAL_MONTHLY_ELECTRICITY!P10),"") -> F | T14: =IF(VAL_MONTHLY_ELECTRICITY!S$3="Y",ROUND(VAL_MONTHLY_ELECTRICITY!Q10,3),"") -> 0 | U14: =IF(VAL_MONTHLY_ELECTRICITY!S$3="Y",IF(VAL_MONTHLY_ELECTRICITY!R10="","A",VAL_MONTHLY_ELECTRICITY!R10),"") -> A | V14: =IF(VAL_MONTHLY_ELECTRICITY!S$3="Y",IF(VAL_MONTHLY_ELECTRICITY!S10="","F",VAL_MONTHLY_ELECTRICITY!S10),"") -> F | W14: =IF(VAL_MONTHLY_ELECTRICITY!V$3="Y",ROUND(VAL_MONTHLY_ELECTRICITY!T10,3),"") ->  | X14: =IF(VAL_MONTHLY_ELECTRICITY!V$3="Y",IF(VAL_MONTHLY_ELECTRICITY!U10="","A",VAL_MONTHLY_ELECTRICITY!U10),"") ->  | Y14: =IF(VAL_MONTHLY_ELECTRICITY!V$3="Y",IF(VAL_MONTHLY_ELECTRICITY!V10="","F",VAL_MONTHLY_ELECTRICITY!V10),"") ->  | Z14: =IF(VAL_MONTHLY_ELECTRICITY!Y$3="Y",ROUND(VAL_MONTHLY_ELECTRICITY!W10,3),"") ->  | AA14: =IF(VAL_MONTHLY_ELECTRICITY!Y$3="Y",IF(VAL_MONTHLY_ELECTRICITY!X10="","A",VAL_MONTHLY_ELECTRICITY!X10),"") ->  | AB14: =IF(VAL_MONTHLY_ELECTRICITY!Y$3="Y",IF(VAL_MONTHLY_ELECTRICITY!Y10="","F",VAL_MONTHLY_ELECTRICITY!Y10),"") ->  | AC14: =IF(VAL_MONTHLY_ELECTRICITY!AB$3="Y",ROUND(VAL_MONTHLY_ELECTRICITY!Z10,3),"") ->  | AD14: =IF(VAL_MONTHLY_ELECTRICITY!AB$3="Y",IF(VAL_MONTHLY_ELECTRICITY!AA10="","A",VAL_MONTHLY_ELECTRICITY!AA10),"") ->  | AE14: =IF(VAL_MONTHLY_ELECTRICITY!AB$3="Y",IF(VAL_MONTHLY_ELECTRICITY!AB10="","F",VAL_MONTHLY_ELECTRICITY!AB10),"") ->  | AF14: =IF(VAL_MONTHLY_ELECTRICITY!AE$3="Y",ROUND(VAL_MONTHLY_ELECTRICITY!AC10,3),"") ->  | AG14: =IF(VAL_MONTHLY_ELECTRICITY!AE$3="Y",IF(VAL_MONTHLY_ELECTRICITY!AD10="","A",VAL_MONTHLY_ELECTRICITY!AD10),"") ->  | AH14: =IF(VAL_MONTHLY_ELECTRICITY!AE$3="Y",IF(VAL_MONTHLY_ELECTRICITY!AE10="","F",VAL_MONTHLY_ELECTRICITY!AE10),"") ->  | AI14: =IF(VAL_MONTHLY_ELECTRICITY!AH$3="Y",ROUND(VAL_MONTHLY_ELECTRICITY!AF10,3),"") -> 0 | AJ14: =IF(VAL_MONTHLY_ELECTRICITY!AH$3="Y",IF(VAL_MONTHLY_ELECTRICITY!AG10="","A",VAL_MONTHLY_ELECTRICITY!AG10),"") -> A | AK14: =IF(VAL_MONTHLY_ELECTRICITY!AH$3="Y",IF(VAL_MONTHLY_ELECTRICITY!AH10="","F",VAL_MONTHLY_ELECTRICITY!AH10),"") -> F | AL14: =IF(VAL_MONTHLY_ELECTRICITY!AK$3="Y",ROUND(VAL_MONTHLY_ELECTRICITY!AI10,3),"") -> 0 | AM14: =IF(VAL_MONTHLY_ELECTRICITY!AK$3="Y",IF(VAL_MONTHLY_ELECTRICITY!AJ10="","A",VAL_MONTHLY_ELECTRICITY!AJ10),"") -> A | AN14: =IF(VAL_MONTHLY_ELECTRICITY!AK$3="Y",IF(VAL_MONTHLY_ELECTRICITY!AK10="","F",VAL_MONTHLY_ELECTRICITY!AK10),"") -> F | AO14: =IF(VAL_MONTHLY_ELECTRICITY!AN$3="Y",ROUND(VAL_MONTHLY_ELECTRICITY!AL10,3),"") -> 0 | AP14: =IF(VAL_MONTHLY_ELECTRICITY!AN$3="Y",IF(VAL_MONTHLY_ELECTRICITY!AM10="","A",VAL_MONTHLY_ELECTRICITY!AM10),"") -> A | AQ14: =IF(VAL_MONTHLY_ELECTRICITY!AN$3="Y",IF(VAL_MONTHLY_ELECTRICITY!AN10="","F",VAL_MONTHLY_ELECTRICITY!AN10),"") -> F
C15: NETPROD | D15: _Z | E15: COMBGAS | F15: _Z | G15: Natural gas | H15: =IF(VAL_MONTHLY_ELECTRICITY!G$3="Y",ROUND(VAL_MONTHLY_ELECTRICITY!E11,3),"") ->  | I15: =IF(VAL_MONTHLY_ELECTRICITY!G$3="Y",IF(VAL_MONTHLY_ELECTRICITY!F11="","A",VAL_MONTHLY_ELECTRICITY!F11),"") ->  | J15: =IF(VAL_MONTHLY_ELECTRICITY!G$3="Y",IF(VAL_MONTHLY_ELECTRICITY!G11="","F",VAL_MONTHLY_ELECTRICITY!G11),"") ->  | K15: =IF(VAL_MONTHLY_ELECTRICITY!J$3="Y",ROUND(VAL_MONTHLY_ELECTRICITY!H11,3),"") ->  | L15: =IF(VAL_MONTHLY_ELECTRICITY!J$3="Y",IF(VAL_MONTHLY_ELECTRICITY!I11="","A",VAL_MONTHLY_ELECTRICITY!I11),"") ->  | M15: =IF(VAL_MONTHLY_ELECTRICITY!J$3="Y",IF(VAL_MONTHLY_ELECTRICITY!J11="","F",VAL_MONTHLY_ELECTRICITY!J11),"") ->  | N15: =IF(VAL_MONTHLY_ELECTRICITY!M$3="Y",ROUND(VAL_MONTHLY_ELECTRICITY!K11,3),"") ->  | O15: =IF(VAL_MONTHLY_ELECTRICITY!M$3="Y",IF(VAL_MONTHLY_ELECTRICITY!L11="","A",VAL_MONTHLY_ELECTRICITY!L11),"") ->  | P15: =IF(VAL_MONTHLY_ELECTRICITY!M$3="Y",IF(VAL_MONTHLY_ELECTRICITY!M11="","F",VAL_MONTHLY_ELECTRICITY!M11),"") ->  | Q15: =IF(VAL_MONTHLY_ELECTRICITY!P$3="Y",ROUND(VAL_MONTHLY_ELECTRICITY!N11,3),"") -> 587.909 | R15: =IF(VAL_MONTHLY_ELECTRICITY!P$3="Y",IF(VAL_MONTHLY_ELECTRICITY!O11="","A",VAL_MONTHLY_ELECTRICITY!O11),"") -> A | S15: =IF(VAL_MONTHLY_ELECTRICITY!P$3="Y",IF(VAL_MONTHLY_ELECTRICITY!P11="","F",VAL_MONTHLY_ELECTRICITY!P11),"") -> F | T15: =IF(VAL_MONTHLY_ELECTRICITY!S$3="Y",ROUND(VAL_MONTHLY_ELECTRICITY!Q11,3),"") -> 562.193 | U15: =IF(VAL_MONTHLY_ELECTRICITY!S$3="Y",IF(VAL_MONTHLY_ELECTRICITY!R11="","A",VAL_MONTHLY_ELECTRICITY!R11),"") -> A | V15: =IF(VAL_MONTHLY_ELECTRICITY!S$3="Y",IF(VAL_MONTHLY_ELECTRICITY!S11="","F",VAL_MONTHLY_ELECTRICITY!S11),"") -> F | W15: =IF(VAL_MONTHLY_ELECTRICITY!V$3="Y",ROUND(VAL_MONTHLY_ELECTRICITY!T11,3),"") ->  | X15: =IF(VAL_MONTHLY_ELECTRICITY!V$3="Y",IF(VAL_MONTHLY_ELECTRICITY!U11="","A",VAL_MONTHLY_ELECTRICITY!U11),"") ->  | Y15: =IF(VAL_MONTHLY_ELECTRICITY!V$3="Y",IF(VAL_MONTHLY_ELECTRICITY!V11="","F",VAL_MONTHLY_ELECTRICITY!V11),"") ->  | Z15: =IF(VAL_MONTHLY_ELECTRICITY!Y$3="Y",ROUND(VAL_MONTHLY_ELECTRICITY!W11,3),"") ->  | AA15: =IF(VAL_MONTHLY_ELECTRICITY!Y$3="Y",IF(VAL_MONTHLY_ELECTRICITY!X11="","A",VAL_MONTHLY_ELECTRICITY!X11),"") ->  | AB15: =IF(VAL_MONTHLY_ELECTRICITY!Y$3="Y",IF(VAL_MONTHLY_ELECTRICITY!Y11="","F",VAL_MONTHLY_ELECTRICITY!Y11),"") ->  | AC15: =IF(VAL_MONTHLY_ELECTRICITY!AB$3="Y",ROUND(VAL_MONTHLY_ELECTRICITY!Z11,3),"") ->  | AD15: =IF(VAL_MONTHLY_ELECTRICITY!AB$3="Y",IF(VAL_MONTHLY_ELECTRICITY!AA11="","A",VAL_MONTHLY_ELECTRICITY!AA11),"") ->  | AE15: =IF(VAL_MONTHLY_ELECTRICITY!AB$3="Y",IF(VAL_MONTHLY_ELECTRICITY!AB11="","F",VAL_MONTHLY_ELECTRICITY!AB11),"") ->  | AF15: =IF(VAL_MONTHLY_ELECTRICITY!AE$3="Y",ROUND(VAL_MONTHLY_ELECTRICITY!AC11,3),"") ->  | AG15: =IF(VAL_MONTHLY_ELECTRICITY!AE$3="Y",IF(VAL_MONTHLY_ELECTRICITY!AD11="","A",VAL_MONTHLY_ELECTRICITY!AD11),"") ->  | AH15: =IF(VAL_MONTHLY_ELECTRICITY!AE$3="Y",IF(VAL_MONTHLY_ELECTRICITY!AE11="","F",VAL_MONTHLY_ELECTRICITY!AE11),"") ->  | AI15: =IF(VAL_MONTHLY_ELECTRICITY!AH$3="Y",ROUND(VAL_MONTHLY_ELECTRICITY!AF11,3),"") -> 0 | AJ15: =IF(VAL_MONTHLY_ELECTRICITY!AH$3="Y",IF(VAL_MONTHLY_ELECTRICITY!AG11="","A",VAL_MONTHLY_ELECTRICITY!AG11),"") -> A | AK15: =IF(VAL_MONTHLY_ELECTRICITY!AH$3="Y",IF(VAL_MONTHLY_ELECTRICITY!AH11="","F",VAL_MONTHLY_ELECTRICITY!AH11),"") -> F | AL15: =IF(VAL_MONTHLY_ELECTRICITY!AK$3="Y",ROUND(VAL_MONTHLY_ELECTRICITY!AI11,3),"") -> 0 | AM15: =IF(VAL_MONTHLY_ELECTRICITY!AK$3="Y",IF(VAL_MONTHLY_ELECTRICITY!AJ11="","A",VAL_MONTHLY_ELECTRICITY!AJ11),"") -> A | AN15: =IF(VAL_MONTHLY_ELECTRICITY!AK$3="Y",IF(VAL_MONTHLY_ELECTRICITY!AK11="","F",VAL_MONTHLY_ELECTRICITY!AK11),"") -> F | AO15: =IF(VAL_MONTHLY_ELECTRICITY!AN$3="Y",ROUND(VAL_MONTHLY_ELECTRICITY!AL11,3),"") -> 0 | AP15: =IF(VAL_MONTHLY_ELECTRICITY!AN$3="Y",IF(VAL_MONTHLY_ELECTRICITY!AM11="","A",VAL_MONTHLY_ELECTRICITY!AM11),"") -> A | AQ15: =IF(VAL_MONTHLY_ELECTRICITY!AN$3="Y",IF(VAL_MONTHLY_ELECTRICITY!AN11="","F",VAL_MONTHLY_ELECTRICITY!AN11),"") -> F
C16: NETPROD | D16: _Z | E16: COMBREN | F16: _Z | G16: Combustible renewables | H16: =IF(VAL_MONTHLY_ELECTRICITY!G$3="Y",ROUND(VAL_MONTHLY_ELECTRICITY!E12,3),"") ->  | I16: =IF(VAL_MONTHLY_ELECTRICITY!G$3="Y",IF(VAL_MONTHLY_ELECTRICITY!F12="","A",VAL_MONTHLY_ELECTRICITY!F12),"") ->  | J16: =IF(VAL_MONTHLY_ELECTRICITY!G$3="Y",IF(VAL_MONTHLY_ELECTRICITY!G12="","F",VAL_MONTHLY_ELECTRICITY!G12),"") ->  | K16: =IF(VAL_MONTHLY_ELECTRICITY!J$3="Y",ROUND(VAL_MONTHLY_ELECTRICITY!H12,3),"") ->  | L16: =IF(VAL_MONTHLY_ELECTRICITY!J$3="Y",IF(VAL_MONTHLY_ELECTRICITY!I12="","A",VAL_MONTHLY_ELECTRICITY!I12),"") ->  | M16: =IF(VAL_MONTHLY_ELECTRICITY!J$3="Y",IF(VAL_MONTHLY_ELECTRICITY!J12="","F",VAL_MONTHLY_ELECTRICITY!J12),"") ->  | N16: =IF(VAL_MONTHLY_ELECTRICITY!M$3="Y",ROUND(VAL_MONTHLY_ELECTRICITY!K12,3),"") ->  | O16: =IF(VAL_MONTHLY_ELECTRICITY!M$3="Y",IF(VAL_MONTHLY_ELECTRICITY!L12="","A",VAL_MONTHLY_ELECTRICITY!L12),"") ->  | P16: =IF(VAL_MONTHLY_ELECTRICITY!M$3="Y",IF(VAL_MONTHLY_ELECTRICITY!M12="","F",VAL_MONTHLY_ELECTRICITY!M12),"") ->  | Q16: =IF(VAL_MONTHLY_ELECTRICITY!P$3="Y",ROUND(VAL_MONTHLY_ELECTRICITY!N12,3),"") -> 69.424 | R16: =IF(VAL_MONTHLY_ELECTRICITY!P$3="Y",IF(VAL_MONTHLY_ELECTRICITY!O12="","A",VAL_MONTHLY_ELECTRICITY!O12),"") -> A | S16: =IF(VAL_MONTHLY_ELECTRICITY!P$3="Y",IF(VAL_MONTHLY_ELECTRICITY!P12="","F",VAL_MONTHLY_ELECTRICITY!P12),"") -> F | T16: =IF(VAL_MONTHLY_ELECTRICITY!S$3="Y",ROUND(VAL_MONTHLY_ELECTRICITY!Q12,3),"") -> 20.183 | U16: =IF(VAL_MONTHLY_ELECTRICITY!S$3="Y",IF(VAL_MONTHLY_ELECTRICITY!R12="","A",VAL_MONTHLY_ELECTRICITY!R12),"") -> A | V16: =IF(VAL_MONTHLY_ELECTRICITY!S$3="Y",IF(VAL_MONTHLY_ELECTRICITY!S12="","F",VAL_MONTHLY_ELECTRICITY!S12),"") -> F | W16: =IF(VAL_MONTHLY_ELECTRICITY!V$3="Y",ROUND(VAL_MONTHLY_ELECTRICITY!T12,3),"") ->  | X16: =IF(VAL_MONTHLY_ELECTRICITY!V$3="Y",IF(VAL_MONTHLY_ELECTRICITY!U12="","A",VAL_MONTHLY_ELECTRICITY!U12),"") ->  | Y16: =IF(VAL_MONTHLY_ELECTRICITY!V$3="Y",IF(VAL_MONTHLY_ELECTRICITY!V12="","F",VAL_MONTHLY_ELECTRICITY!V12),"") ->  | Z16: =IF(VAL_MONTHLY_ELECTRICITY!Y$3="Y",ROUND(VAL_MONTHLY_ELECTRICITY!W12,3),"") ->  | AA16: =IF(VAL_MONTHLY_ELECTRICITY!Y$3="Y",IF(VAL_MONTHLY_ELECTRICITY!X12="","A",VAL_MONTHLY_ELECTRICITY!X12),"") ->  | AB16: =IF(VAL_MONTHLY_ELECTRICITY!Y$3="Y",IF(VAL_MONTHLY_ELECTRICITY!Y12="","F",VAL_MONTHLY_ELECTRICITY!Y12),"") ->  | AC16: =IF(VAL_MONTHLY_ELECTRICITY!AB$3="Y",ROUND(VAL_MONTHLY_ELECTRICITY!Z12,3),"") ->  | AD16: =IF(VAL_MONTHLY_ELECTRICITY!AB$3="Y",IF(VAL_MONTHLY_ELECTRICITY!AA12="","A",VAL_MONTHLY_ELECTRICITY!AA12),"") ->  | AE16: =IF(VAL_MONTHLY_ELECTRICITY!AB$3="Y",IF(VAL_MONTHLY_ELECTRICITY!AB12="","F",VAL_MONTHLY_ELECTRICITY!AB12),"") ->  | AF16: =IF(VAL_MONTHLY_ELECTRICITY!AE$3="Y",ROUND(VAL_MONTHLY_ELECTRICITY!AC12,3),"") ->  | AG16: =IF(VAL_MONTHLY_ELECTRICITY!AE$3="Y",IF(VAL_MONTHLY_ELECTRICITY!AD12="","A",VAL_MONTHLY_ELECTRICITY!AD12),"") ->  | AH16: =IF(VAL_MONTHLY_ELECTRICITY!AE$3="Y",IF(VAL_MONTHLY_ELECTRICITY!AE12="","F",VAL_MONTHLY_ELECTRICITY!AE12),"") ->  | AI16: =IF(VAL_MONTHLY_ELECTRICITY!AH$3="Y",ROUND(VAL_MONTHLY_ELECTRICITY!AF12,3),"") -> 0 | AJ16: =IF(VAL_MONTHLY_ELECTRICITY!AH$3="Y",IF(VAL_MONTHLY_ELECTRICITY!AG12="","A",VAL_MONTHLY_ELECTRICITY!AG12),"") -> A | AK16: =IF(VAL_MONTHLY_ELECTRICITY!AH$3="Y",IF(VAL_MONTHLY_ELECTRICITY!AH12="","F",VAL_MONTHLY_ELECTRICITY!AH12),"") -> F | AL16: =IF(VAL_MONTHLY_ELECTRICITY!AK$3="Y",ROUND(VAL_MONTHLY_ELECTRICITY!AI12,3),"") -> 0 | AM16: =IF(VAL_MONTHLY_ELECTRICITY!AK$3="Y",IF(VAL_MONTHLY_ELECTRICITY!AJ12="","A",VAL_MONTHLY_ELECTRICITY!AJ12),"") -> A | AN16: =IF(VAL_MONTHLY_ELECTRICITY!AK$3="Y",IF(VAL_MONTHLY_ELECTRICITY!AK12="","F",VAL_MONTHLY_ELECTRICITY!AK12),"") -> F | AO16: =IF(VAL_MONTHLY_ELECTRICITY!AN$3="Y",ROUND(VAL_MONTHLY_ELECTRICITY!AL12,3),"") -> 0 | AP16: =IF(VAL_MONTHLY_ELECTRICITY!AN$3="Y",IF(VAL_MONTHLY_ELECTRICITY!AM12="","A",VAL_MONTHLY_ELECTRICITY!AM12),"") -> A | AQ16: =IF(VAL_MONTHLY_ELECTRICITY!AN$3="Y",IF(VAL_MONTHLY_ELECTRICITY!AN12="","F",VAL_MONTHLY_ELECTRICITY!AN12),"") -> F
C17: NETPROD | D17: _Z | E17: COMBOTH | F17: _Z | G17: Other combustible fuels (non-renewable) | H17: =IF(VAL_MONTHLY_ELECTRICITY!G$3="Y",ROUND(VAL_MONTHLY_ELECTRICITY!E13,3),"") ->  | I17: =IF(VAL_MONTHLY_ELECTRICITY!G$3="Y",IF(VAL_MONTHLY_ELECTRICITY!F13="","A",VAL_MONTHLY_ELECTRICITY!F13),"") ->  | J17: =IF(VAL_MONTHLY_ELECTRICITY!G$3="Y",IF(VAL_MONTHLY_ELECTRICITY!G13="","F",VAL_MONTHLY_ELECTRICITY!G13),"") ->  | K17: =IF(VAL_MONTHLY_ELECTRICITY!J$3="Y",ROUND(VAL_MONTHLY_ELECTRICITY!H13,3),"") ->  | L17: =IF(VAL_MONTHLY_ELECTRICITY!J$3="Y",IF(VAL_MONTHLY_ELECTRICITY!I13="","A",VAL_MONTHLY_ELECTRICITY!I13),"") ->  | M17: =IF(VAL_MONTHLY_ELECTRICITY!J$3="Y",IF(VAL_MONTHLY_ELECTRICITY!J13="","F",VAL_MONTHLY_ELECTRICITY!J13),"") ->  | N17: =IF(VAL_MONTHLY_ELECTRICITY!M$3="Y",ROUND(VAL_MONTHLY_ELECTRICITY!K13,3),"") ->  | O17: =IF(VAL_MONTHLY_ELECTRICITY!M$3="Y",IF(VAL_MONTHLY_ELECTRICITY!L13="","A",VAL_MONTHLY_ELECTRICITY!L13),"") ->  | P17: =IF(VAL_MONTHLY_ELECTRICITY!M$3="Y",IF(VAL_MONTHLY_ELECTRICITY!M13="","F",VAL_MONTHLY_ELECTRICITY!M13),"") ->  | Q17: =IF(VAL_MONTHLY_ELECTRICITY!P$3="Y",ROUND(VAL_MONTHLY_ELECTRICITY!N13,3),"") -> 0 | R17: =IF(VAL_MONTHLY_ELECTRICITY!P$3="Y",IF(VAL_MONTHLY_ELECTRICITY!O13="","A",VAL_MONTHLY_ELECTRICITY!O13),"") -> A | S17: =IF(VAL_MONTHLY_ELECTRICITY!P$3="Y",IF(VAL_MONTHLY_ELECTRICITY!P13="","F",VAL_MONTHLY_ELECTRICITY!P13),"") -> F | T17: =IF(VAL_MONTHLY_ELECTRICITY!S$3="Y",ROUND(VAL_MONTHLY_ELECTRICITY!Q13,3),"") -> 0 | U17: =IF(VAL_MONTHLY_ELECTRICITY!S$3="Y",IF(VAL_MONTHLY_ELECTRICITY!R13="","A",VAL_MONTHLY_ELECTRICITY!R13),"") -> A | V17: =IF(VAL_MONTHLY_ELECTRICITY!S$3="Y",IF(VAL_MONTHLY_ELECTRICITY!S13="","F",VAL_MONTHLY_ELECTRICITY!S13),"") -> F | W17: =IF(VAL_MONTHLY_ELECTRICITY!V$3="Y",ROUND(VAL_MONTHLY_ELECTRICITY!T13,3),"") ->  | X17: =IF(VAL_MONTHLY_ELECTRICITY!V$3="Y",IF(VAL_MONTHLY_ELECTRICITY!U13="","A",VAL_MONTHLY_ELECTRICITY!U13),"") ->  | Y17: =IF(VAL_MONTHLY_ELECTRICITY!V$3="Y",IF(VAL_MONTHLY_ELECTRICITY!V13="","F",VAL_MONTHLY_ELECTRICITY!V13),"") ->  | Z17: =IF(VAL_MONTHLY_ELECTRICITY!Y$3="Y",ROUND(VAL_MONTHLY_ELECTRICITY!W13,3),"") ->  | AA17: =IF(VAL_MONTHLY_ELECTRICITY!Y$3="Y",IF(VAL_MONTHLY_ELECTRICITY!X13="","A",VAL_MONTHLY_ELECTRICITY!X13),"") ->  | AB17: =IF(VAL_MONTHLY_ELECTRICITY!Y$3="Y",IF(VAL_MONTHLY_ELECTRICITY!Y13="","F",VAL_MONTHLY_ELECTRICITY!Y13),"") ->  | AC17: =IF(VAL_MONTHLY_ELECTRICITY!AB$3="Y",ROUND(VAL_MONTHLY_ELECTRICITY!Z13,3),"") ->  | AD17: =IF(VAL_MONTHLY_ELECTRICITY!AB$3="Y",IF(VAL_MONTHLY_ELECTRICITY!AA13="","A",VAL_MONTHLY_ELECTRICITY!AA13),"") ->  | AE17: =IF(VAL_MONTHLY_ELECTRICITY!AB$3="Y",IF(VAL_MONTHLY_ELECTRICITY!AB13="","F",VAL_MONTHLY_ELECTRICITY!AB13),"") ->  | AF17: =IF(VAL_MONTHLY_ELECTRICITY!AE$3="Y",ROUND(VAL_MONTHLY_ELECTRICITY!AC13,3),"") ->  | AG17: =IF(VAL_MONTHLY_ELECTRICITY!AE$3="Y",IF(VAL_MONTHLY_ELECTRICITY!AD13="","A",VAL_MONTHLY_ELECTRICITY!AD13),"") ->  | AH17: =IF(VAL_MONTHLY_ELECTRICITY!AE$3="Y",IF(VAL_MONTHLY_ELECTRICITY!AE13="","F",VAL_MONTHLY_ELECTRICITY!AE13),"") ->  | AI17: =IF(VAL_MONTHLY_ELECTRICITY!AH$3="Y",ROUND(VAL_MONTHLY_ELECTRICITY!AF13,3),"") -> 0 | AJ17: =IF(VAL_MONTHLY_ELECTRICITY!AH$3="Y",IF(VAL_MONTHLY_ELECTRICITY!AG13="","A",VAL_MONTHLY_ELECTRICITY!AG13),"") -> A | AK17: =IF(VAL_MONTHLY_ELECTRICITY!AH$3="Y",IF(VAL_MONTHLY_ELECTRICITY!AH13="","F",VAL_MONTHLY_ELECTRICITY!AH13),"") -> F | AL17: =IF(VAL_MONTHLY_ELECTRICITY!AK$3="Y",ROUND(VAL_MONTHLY_ELECTRICITY!AI13,3),"") -> 0 | AM17: =IF(VAL_MONTHLY_ELECTRICITY!AK$3="Y",IF(VAL_MONTHLY_ELECTRICITY!AJ13="","A",VAL_MONTHLY_ELECTRICITY!AJ13),"") -> A | AN17: =IF(VAL_MONTHLY_ELECTRICITY!AK$3="Y",IF(VAL_MONTHLY_ELECTRICITY!AK13="","F",VAL_MONTHLY_ELECTRICITY!AK13),"") -> F | AO17: =IF(VAL_MONTHLY_ELECTRICITY!AN$3="Y",ROUND(VAL_MONTHLY_ELECTRICITY!AL13,3),"") -> 0 | AP17: =IF(VAL_MONTHLY_ELECTRICITY!AN$3="Y",IF(VAL_MONTHLY_ELECTRICITY!AM13="","A",VAL_MONTHLY_ELECTRICITY!AM13),"") -> A | AQ17: =IF(VAL_MONTHLY_ELECTRICITY!AN$3="Y",IF(VAL_MONTHLY_ELECTRICITY!AN13="","F",VAL_MONTHLY_ELECTRICITY!AN13),"") -> F
C18: NETPROD | D18: _Z | E18: HYDRO | F18: _Z | G18: Hydro | H18: =IF(VAL_MONTHLY_ELECTRICITY!G$3="Y",ROUND(VAL_MONTHLY_ELECTRICITY!E14,3),"") ->  | I18: =IF(VAL_MONTHLY_ELECTRICITY!G$3="Y",IF(VAL_MONTHLY_ELECTRICITY!F14="","A",VAL_MONTHLY_ELECTRICITY!F14),"") ->  | J18: =IF(VAL_MONTHLY_ELECTRICITY!G$3="Y",IF(VAL_MONTHLY_ELECTRICITY!G14="","F",VAL_MONTHLY_ELECTRICITY!G14),"") ->  | K18: =IF(VAL_MONTHLY_ELECTRICITY!J$3="Y",ROUND(VAL_MONTHLY_ELECTRICITY!H14,3),"") ->  | L18: =IF(VAL_MONTHLY_ELECTRICITY!J$3="Y",IF(VAL_MONTHLY_ELECTRICITY!I14="","A",VAL_MONTHLY_ELECTRICITY!I14),"") ->  | M18: =IF(VAL_MONTHLY_ELECTRICITY!J$3="Y",IF(VAL_MONTHLY_ELECTRICITY!J14="","F",VAL_MONTHLY_ELECTRICITY!J14),"") ->  | N18: =IF(VAL_MONTHLY_ELECTRICITY!M$3="Y",ROUND(VAL_MONTHLY_ELECTRICITY!K14,3),"") ->  | O18: =IF(VAL_MONTHLY_ELECTRICITY!M$3="Y",IF(VAL_MONTHLY_ELECTRICITY!L14="","A",VAL_MONTHLY_ELECTRICITY!L14),"") ->  | P18: =IF(VAL_MONTHLY_ELECTRICITY!M$3="Y",IF(VAL_MONTHLY_ELECTRICITY!M14="","F",VAL_MONTHLY_ELECTRICITY!M14),"") ->  | Q18: =IF(VAL_MONTHLY_ELECTRICITY!P$3="Y",ROUND(VAL_MONTHLY_ELECTRICITY!N14,3),"") -> 4778.252 | R18: =IF(VAL_MONTHLY_ELECTRICITY!P$3="Y",IF(VAL_MONTHLY_ELECTRICITY!O14="","A",VAL_MONTHLY_ELECTRICITY!O14),"") -> A | S18: =IF(VAL_MONTHLY_ELECTRICITY!P$3="Y",IF(VAL_MONTHLY_ELECTRICITY!P14="","F",VAL_MONTHLY_ELECTRICITY!P14),"") -> F | T18: =IF(VAL_MONTHLY_ELECTRICITY!S$3="Y",ROUND(VAL_MONTHLY_ELECTRICITY!Q14,3),"") -> 5154.03 | U18: =IF(VAL_MONTHLY_ELECTRICITY!S$3="Y",IF(VAL_MONTHLY_ELECTRICITY!R14="","A",VAL_MONTHLY_ELECTRICITY!R14),"") -> A | V18: =IF(VAL_MONTHLY_ELECTRICITY!S$3="Y",IF(VAL_MONTHLY_ELECTRICITY!S14="","F",VAL_MONTHLY_ELECTRICITY!S14),"") -> F | W18: =IF(VAL_MONTHLY_ELECTRICITY!V$3="Y",ROUND(VAL_MONTHLY_ELECTRICITY!T14,3),"") ->  | X18: =IF(VAL_MONTHLY_ELECTRICITY!V$3="Y",IF(VAL_MONTHLY_ELECTRICITY!U14="","A",VAL_MONTHLY_ELECTRICITY!U14),"") ->  | Y18: =IF(VAL_MONTHLY_ELECTRICITY!V$3="Y",IF(VAL_MONTHLY_ELECTRICITY!V14="","F",VAL_MONTHLY_ELECTRICITY!V14),"") ->  | Z18: =IF(VAL_MONTHLY_ELECTRICITY!Y$3="Y",ROUND(VAL_MONTHLY_ELECTRICITY!W14,3),"") ->  | AA18: =IF(VAL_MONTHLY_ELECTRICITY!Y$3="Y",IF(VAL_MONTHLY_ELECTRICITY!X14="","A",VAL_MONTHLY_ELECTRICITY!X14),"") ->  | AB18: =IF(VAL_MONTHLY_ELECTRICITY!Y$3="Y",IF(VAL_MONTHLY_ELECTRICITY!Y14="","F",VAL_MONTHLY_ELECTRICITY!Y14),"") ->  | AC18: =IF(VAL_MONTHLY_ELECTRICITY!AB$3="Y",ROUND(VAL_MONTHLY_ELECTRICITY!Z14,3),"") ->  | AD18: =IF(VAL_MONTHLY_ELECTRICITY!AB$3="Y",IF(VAL_MONTHLY_ELECTRICITY!AA14="","A",VAL_MONTHLY_ELECTRICITY!AA14),"") ->  | AE18: =IF(VAL_MONTHLY_ELECTRICITY!AB$3="Y",IF(VAL_MONTHLY_ELECTRICITY!AB14="","F",VAL_MONTHLY_ELECTRICITY!AB14),"") ->  | AF18: =IF(VAL_MONTHLY_ELECTRICITY!AE$3="Y",ROUND(VAL_MONTHLY_ELECTRICITY!AC14,3),"") ->  | AG18: =IF(VAL_MONTHLY_ELECTRICITY!AE$3="Y",IF(VAL_MONTHLY_ELECTRICITY!AD14="","A",VAL_MONTHLY_ELECTRICITY!AD14),"") ->  | AH18: =IF(VAL_MONTHLY_ELECTRICITY!AE$3="Y",IF(VAL_MONTHLY_ELECTRICITY!AE14="","F",VAL_MONTHLY_ELECTRICITY!AE14),"") ->  | AI18: =IF(VAL_MONTHLY_ELECTRICITY!AH$3="Y",ROUND(VAL_MONTHLY_ELECTRICITY!AF14,3),"") -> 0 | AJ18: =IF(VAL_MONTHLY_ELECTRICITY!AH$3="Y",IF(VAL_MONTHLY_ELECTRICITY!AG14="","A",VAL_MONTHLY_ELECTRICITY!AG14),"") -> A | AK18: =IF(VAL_MONTHLY_ELECTRICITY!AH$3="Y",IF(VAL_MONTHLY_ELECTRICITY!AH14="","F",VAL_MONTHLY_ELECTRICITY!AH14),"") -> F | AL18: =IF(VAL_MONTHLY_ELECTRICITY!AK$3="Y",ROUND(VAL_MONTHLY_ELECTRICITY!AI14,3),"") -> 0 | AM18: =IF(VAL_MONTHLY_ELECTRICITY!AK$3="Y",IF(VAL_MONTHLY_ELECTRICITY!AJ14="","A",VAL_MONTHLY_ELECTRICITY!AJ14),"") -> A | AN18: =IF(VAL_MONTHLY_ELECTRICITY!AK$3="Y",IF(VAL_MONTHLY_ELECTRICITY!AK14="","F",VAL_MONTHLY_ELECTRICITY!AK14),"") -> F | AO18: =IF(VAL_MONTHLY_ELECTRICITY!AN$3="Y",ROUND(VAL_MONTHLY_ELECTRICITY!AL14,3),"") -> 0 | AP18: =IF(VAL_MONTHLY_ELECTRICITY!AN$3="Y",IF(VAL_MONTHLY_ELECTRICITY!AM14="","A",VAL_MONTHLY_ELECTRICITY!AM14),"") -> A | AQ18: =IF(VAL_MONTHLY_ELECTRICITY!AN$3="Y",IF(VAL_MONTHLY_ELECTRICITY!AN14="","F",VAL_MONTHLY_ELECTRICITY!AN14),"") -> F
C19: NETPROD | D19: _Z | E19: PURHYDRO | F19: _Z | G19: Pure hydro | H19: =IF(VAL_MONTHLY_ELECTRICITY!G$3="Y",ROUND(VAL_MONTHLY_ELECTRICITY!E15,3),"") ->  | I19: =IF(VAL_MONTHLY_ELECTRICITY!G$3="Y",IF(VAL_MONTHLY_ELECTRICITY!F15="","A",VAL_MONTHLY_ELECTRICITY!F15),"") ->  | J19: =IF(VAL_MONTHLY_ELECTRICITY!G$3="Y",IF(VAL_MONTHLY_ELECTRICITY!G15="","F",VAL_MONTHLY_ELECTRICITY!G15),"") ->  | K19: =IF(VAL_MONTHLY_ELECTRICITY!J$3="Y",ROUND(VAL_MONTHLY_ELECTRICITY!H15,3),"") ->  | L19: =IF(VAL_MONTHLY_ELECTRICITY!J$3="Y",IF(VAL_MONTHLY_ELECTRICITY!I15="","A",VAL_MONTHLY_ELECTRICITY!I15),"") ->  | M19: =IF(VAL_MONTHLY_ELECTRICITY!J$3="Y",IF(VAL_MONTHLY_ELECTRICITY!J15="","F",VAL_MONTHLY_ELECTRICITY!J15),"") ->  | N19: =IF(VAL_MONTHLY_ELECTRICITY!M$3="Y",ROUND(VAL_MONTHLY_ELECTRICITY!K15,3),"") ->  | O19: =IF(VAL_MONTHLY_ELECTRICITY!M$3="Y",IF(VAL_MONTHLY_ELECTRICITY!L15="","A",VAL_MONTHLY_ELECTRICITY!L15),"") ->  | P19: =IF(VAL_MONTHLY_ELECTRICITY!M$3="Y",IF(VAL_MONTHLY_ELECTRICITY!M15="","F",VAL_MONTHLY_ELECTRICITY!M15),"") ->  | Q19: =IF(VAL_MONTHLY_ELECTRICITY!P$3="Y",ROUND(VAL_MONTHLY_ELECTRICITY!N15,3),"") -> 4778.252 | R19: =IF(VAL_MONTHLY_ELECTRICITY!P$3="Y",IF(VAL_MONTHLY_ELECTRICITY!O15="","A",VAL_MONTHLY_ELECTRICITY!O15),"") -> A | S19: =IF(VAL_MONTHLY_ELECTRICITY!P$3="Y",IF(VAL_MONTHLY_ELECTRICITY!P15="","F",VAL_MONTHLY_ELECTRICITY!P15),"") -> F | T19: =IF(VAL_MONTHLY_ELECTRICITY!S$3="Y",ROUND(VAL_MONTHLY_ELECTRICITY!Q15,3),"") -> 5154.03 | U19: =IF(VAL_MONTHLY_ELECTRICITY!S$3="Y",IF(VAL_MONTHLY_ELECTRICITY!R15="","A",VAL_MONTHLY_ELECTRICITY!R15),"") -> A | V19: =IF(VAL_MONTHLY_ELECTRICITY!S$3="Y",IF(VAL_MONTHLY_ELECTRICITY!S15="","F",VAL_MONTHLY_ELECTRICITY!S15),"") -> F | W19: =IF(VAL_MONTHLY_ELECTRICITY!V$3="Y",ROUND(VAL_MONTHLY_ELECTRICITY!T15,3),"") ->  | X19: =IF(VAL_MONTHLY_ELECTRICITY!V$3="Y",IF(VAL_MONTHLY_ELECTRICITY!U15="","A",VAL_MONTHLY_ELECTRICITY!U15),"") ->  | Y19: =IF(VAL_MONTHLY_ELECTRICITY!V$3="Y",IF(VAL_MONTHLY_ELECTRICITY!V15="","F",VAL_MONTHLY_ELECTRICITY!V15),"") ->  | Z19: =IF(VAL_MONTHLY_ELECTRICITY!Y$3="Y",ROUND(VAL_MONTHLY_ELECTRICITY!W15,3),"") ->  | AA19: =IF(VAL_MONTHLY_ELECTRICITY!Y$3="Y",IF(VAL_MONTHLY_ELECTRICITY!X15="","A",VAL_MONTHLY_ELECTRICITY!X15),"") ->  | AB19: =IF(VAL_MONTHLY_ELECTRICITY!Y$3="Y",IF(VAL_MONTHLY_ELECTRICITY!Y15="","F",VAL_MONTHLY_ELECTRICITY!Y15),"") ->  | AC19: =IF(VAL_MONTHLY_ELECTRICITY!AB$3="Y",ROUND(VAL_MONTHLY_ELECTRICITY!Z15,3),"") ->  | AD19: =IF(VAL_MONTHLY_ELECTRICITY!AB$3="Y",IF(VAL_MONTHLY_ELECTRICITY!AA15="","A",VAL_MONTHLY_ELECTRICITY!AA15),"") ->  | AE19: =IF(VAL_MONTHLY_ELECTRICITY!AB$3="Y",IF(VAL_MONTHLY_ELECTRICITY!AB15="","F",VAL_MONTHLY_ELECTRICITY!AB15),"") ->  | AF19: =IF(VAL_MONTHLY_ELECTRICITY!AE$3="Y",ROUND(VAL_MONTHLY_ELECTRICITY!AC15,3),"") ->  | AG19: =IF(VAL_MONTHLY_ELECTRICITY!AE$3="Y",IF(VAL_MONTHLY_ELECTRICITY!AD15="","A",VAL_MONTHLY_ELECTRICITY!AD15),"") ->  | AH19: =IF(VAL_MONTHLY_ELECTRICITY!AE$3="Y",IF(VAL_MONTHLY_ELECTRICITY!AE15="","F",VAL_MONTHLY_ELECTRICITY!AE15),"") ->  | AI19: =IF(VAL_MONTHLY_ELECTRICITY!AH$3="Y",ROUND(VAL_MONTHLY_ELECTRICITY!AF15,3),"") -> 0 | AJ19: =IF(VAL_MONTHLY_ELECTRICITY!AH$3="Y",IF(VAL_MONTHLY_ELECTRICITY!AG15="","A",VAL_MONTHLY_ELECTRICITY!AG15),"") -> A | AK19: =IF(VAL_MONTHLY_ELECTRICITY!AH$3="Y",IF(VAL_MONTHLY_ELECTRICITY!AH15="","F",VAL_MONTHLY_ELECTRICITY!AH15),"") -> F | AL19: =IF(VAL_MONTHLY_ELECTRICITY!AK$3="Y",ROUND(VAL_MONTHLY_ELECTRICITY!AI15,3),"") -> 0 | AM19: =IF(VAL_MONTHLY_ELECTRICITY!AK$3="Y",IF(VAL_MONTHLY_ELECTRICITY!AJ15="","A",VAL_MONTHLY_ELECTRICITY!AJ15),"") -> A | AN19: =IF(VAL_MONTHLY_ELECTRICITY!AK$3="Y",IF(VAL_MONTHLY_ELECTRICITY!AK15="","F",VAL_MONTHLY_ELECTRICITY!AK15),"") -> F | AO19: =IF(VAL_MONTHLY_ELECTRICITY!AN$3="Y",ROUND(VAL_MONTHLY_ELECTRICITY!AL15,3),"") -> 0 | AP19: =IF(VAL_MONTHLY_ELECTRICITY!AN$3="Y",IF(VAL_MONTHLY_ELECTRICITY!AM15="","A",VAL_MONTHLY_ELECTRICITY!AM15),"") -> A | AQ19: =IF(VAL_MONTHLY_ELECTRICITY!AN$3="Y",IF(VAL_MONTHLY_ELECTRICITY!AN15="","F",VAL_MONTHLY_ELECTRICITY!AN15),"") -> F
C20: NETPROD | D20: _Z | E20: MIXHYDRO | F20: _Z | G20: Mixed hydro | H20: =IF(VAL_MONTHLY_ELECTRICITY!G$3="Y",ROUND(VAL_MONTHLY_ELECTRICITY!E16,3),"") ->  | I20: =IF(VAL_MONTHLY_ELECTRICITY!G$3="Y",IF(VAL_MONTHLY_ELECTRICITY!F16="","A",VAL_MONTHLY_ELECTRICITY!F16),"") ->  | J20: =IF(VAL_MONTHLY_ELECTRICITY!G$3="Y",IF(VAL_MONTHLY_ELECTRICITY!G16="","F",VAL_MONTHLY_ELECTRICITY!G16),"") ->  | K20: =IF(VAL_MONTHLY_ELECTRICITY!J$3="Y",ROUND(VAL_MONTHLY_ELECTRICITY!H16,3),"") ->  | L20: =IF(VAL_MONTHLY_ELECTRICITY!J$3="Y",IF(VAL_MONTHLY_ELECTRICITY!I16="","A",VAL_MONTHLY_ELECTRICITY!I16),"") ->  | M20: =IF(VAL_MONTHLY_ELECTRICITY!J$3="Y",IF(VAL_MONTHLY_ELECTRICITY!J16="","F",VAL_MONTHLY_ELECTRICITY!J16),"") ->  | N20: =IF(VAL_MONTHLY_ELECTRICITY!M$3="Y",ROUND(VAL_MONTHLY_ELECTRICITY!K16,3),"") ->  | O20: =IF(VAL_MONTHLY_ELECTRICITY!M$3="Y",IF(VAL_MONTHLY_ELECTRICITY!L16="","A",VAL_MONTHLY_ELECTRICITY!L16),"") ->  | P20: =IF(VAL_MONTHLY_ELECTRICITY!M$3="Y",IF(VAL_MONTHLY_ELECTRICITY!M16="","F",VAL_MONTHLY_ELECTRICITY!M16),"") ->  | Q20: =IF(VAL_MONTHLY_ELECTRICITY!P$3="Y",ROUND(VAL_MONTHLY_ELECTRICITY!N16,3),"") -> 0 | R20: =IF(VAL_MONTHLY_ELECTRICITY!P$3="Y",IF(VAL_MONTHLY_ELECTRICITY!O16="","A",VAL_MONTHLY_ELECTRICITY!O16),"") -> A | S20: =IF(VAL_MONTHLY_ELECTRICITY!P$3="Y",IF(VAL_MONTHLY_ELECTRICITY!P16="","F",VAL_MONTHLY_ELECTRICITY!P16),"") -> F | T20: =IF(VAL_MONTHLY_ELECTRICITY!S$3="Y",ROUND(VAL_MONTHLY_ELECTRICITY!Q16,3),"") -> 0 | U20: =IF(VAL_MONTHLY_ELECTRICITY!S$3="Y",IF(VAL_MONTHLY_ELECTRICITY!R16="","A",VAL_MONTHLY_ELECTRICITY!R16),"") -> A | V20: =IF(VAL_MONTHLY_ELECTRICITY!S$3="Y",IF(VAL_MONTHLY_ELECTRICITY!S16="","F",VAL_MONTHLY_ELECTRICITY!S16),"") -> F | W20: =IF(VAL_MONTHLY_ELECTRICITY!V$3="Y",ROUND(VAL_MONTHLY_ELECTRICITY!T16,3),"") ->  | X20: =IF(VAL_MONTHLY_ELECTRICITY!V$3="Y",IF(VAL_MONTHLY_ELECTRICITY!U16="","A",VAL_MONTHLY_ELECTRICITY!U16),"") ->  | Y20: =IF(VAL_MONTHLY_ELECTRICITY!V$3="Y",IF(VAL_MONTHLY_ELECTRICITY!V16="","F",VAL_MONTHLY_ELECTRICITY!V16),"") ->  | Z20: =IF(VAL_MONTHLY_ELECTRICITY!Y$3="Y",ROUND(VAL_MONTHLY_ELECTRICITY!W16,3),"") ->  | AA20: =IF(VAL_MONTHLY_ELECTRICITY!Y$3="Y",IF(VAL_MONTHLY_ELECTRICITY!X16="","A",VAL_MONTHLY_ELECTRICITY!X16),"") ->  | AB20: =IF(VAL_MONTHLY_ELECTRICITY!Y$3="Y",IF(VAL_MONTHLY_ELECTRICITY!Y16="","F",VAL_MONTHLY_ELECTRICITY!Y16),"") ->  | AC20: =IF(VAL_MONTHLY_ELECTRICITY!AB$3="Y",ROUND(VAL_MONTHLY_ELECTRICITY!Z16,3),"") ->  | AD20: =IF(VAL_MONTHLY_ELECTRICITY!AB$3="Y",IF(VAL_MONTHLY_ELECTRICITY!AA16="","A",VAL_MONTHLY_ELECTRICITY!AA16),"") ->  | AE20: =IF(VAL_MONTHLY_ELECTRICITY!AB$3="Y",IF(VAL_MONTHLY_ELECTRICITY!AB16="","F",VAL_MONTHLY_ELECTRICITY!AB16),"") ->  | AF20: =IF(VAL_MONTHLY_ELECTRICITY!AE$3="Y",ROUND(VAL_MONTHLY_ELECTRICITY!AC16,3),"") ->  | AG20: =IF(VAL_MONTHLY_ELECTRICITY!AE$3="Y",IF(VAL_MONTHLY_ELECTRICITY!AD16="","A",VAL_MONTHLY_ELECTRICITY!AD16),"") ->  | AH20: =IF(VAL_MONTHLY_ELECTRICITY!AE$3="Y",IF(VAL_MONTHLY_ELECTRICITY!AE16="","F",VAL_MONTHLY_ELECTRICITY!AE16),"") ->  | AI20: =IF(VAL_MONTHLY_ELECTRICITY!AH$3="Y",ROUND(VAL_MONTHLY_ELECTRICITY!AF16,3),"") -> 0 | AJ20: =IF(VAL_MONTHLY_ELECTRICITY!AH$3="Y",IF(VAL_MONTHLY_ELECTRICITY!AG16="","A",VAL_MONTHLY_ELECTRICITY!AG16),"") -> A | AK20: =IF(VAL_MONTHLY_ELECTRICITY!AH$3="Y",IF(VAL_MONTHLY_ELECTRICITY!AH16="","F",VAL_MONTHLY_ELECTRICITY!AH16),"") -> F | AL20: =IF(VAL_MONTHLY_ELECTRICITY!AK$3="Y",ROUND(VAL_MONTHLY_ELECTRICITY!AI16,3),"") -> 0 | AM20: =IF(VAL_MONTHLY_ELECTRICITY!AK$3="Y",IF(VAL_MONTHLY_ELECTRICITY!AJ16="","A",VAL_MONTHLY_ELECTRICITY!AJ16),"") -> A | AN20: =IF(VAL_MONTHLY_ELECTRICITY!AK$3="Y",IF(VAL_MONTHLY_ELECTRICITY!AK16="","F",VAL_MONTHLY_ELECTRICITY!AK16),"") -> F | AO20: =IF(VAL_MONTHLY_ELECTRICITY!AN$3="Y",ROUND(VAL_MONTHLY_ELECTRICITY!AL16,3),"") -> 0 | AP20: =IF(VAL_MONTHLY_ELECTRICITY!AN$3="Y",IF(VAL_MONTHLY_ELECTRICITY!AM16="","A",VAL_MONTHLY_ELECTRICITY!AM16),"") -> A | AQ20: =IF(VAL_MONTHLY_ELECTRICITY!AN$3="Y",IF(VAL_MONTHLY_ELECTRICITY!AN16="","F",VAL_MONTHLY_ELECTRICITY!AN16),"") -> F
C21: NETPROD | D21: _Z | E21: HYDPUMP | F21: _Z | G21: Pure pumped storage | H21: =IF(VAL_MONTHLY_ELECTRICITY!G$3="Y",ROUND(VAL_MONTHLY_ELECTRICITY!E17,3),"") ->  | I21: =IF(VAL_MONTHLY_ELECTRICITY!G$3="Y",IF(VAL_MONTHLY_ELECTRICITY!F17="","A",VAL_MONTHLY_ELECTRICITY!F17),"") ->  | J21: =IF(VAL_MONTHLY_ELECTRICITY!G$3="Y",IF(VAL_MONTHLY_ELECTRICITY!G17="","F",VAL_MONTHLY_ELECTRICITY!G17),"") ->  | K21: =IF(VAL_MONTHLY_ELECTRICITY!J$3="Y",ROUND(VAL_MONTHLY_ELECTRICITY!H17,3),"") ->  | L21: =IF(VAL_MONTHLY_ELECTRICITY!J$3="Y",IF(VAL_MONTHLY_ELECTRICITY!I17="","A",VAL_MONTHLY_ELECTRICITY!I17),"") ->  | M21: =IF(VAL_MONTHLY_ELECTRICITY!J$3="Y",IF(VAL_MONTHLY_ELECTRICITY!J17="","F",VAL_MONTHLY_ELECTRICITY!J17),"") ->  | N21: =IF(VAL_MONTHLY_ELECTRICITY!M$3="Y",ROUND(VAL_MONTHLY_ELECTRICITY!K17,3),"") ->  | O21: =IF(VAL_MONTHLY_ELECTRICITY!M$3="Y",IF(VAL_MONTHLY_ELECTRICITY!L17="","A",VAL_MONTHLY_ELECTRICITY!L17),"") ->  | P21: =IF(VAL_MONTHLY_ELECTRICITY!M$3="Y",IF(VAL_MONTHLY_ELECTRICITY!M17="","F",VAL_MONTHLY_ELECTRICITY!M17),"") ->  | Q21: =IF(VAL_MONTHLY_ELECTRICITY!P$3="Y",ROUND(VAL_MONTHLY_ELECTRICITY!N17,3),"") -> 0 | R21: =IF(VAL_MONTHLY_ELECTRICITY!P$3="Y",IF(VAL_MONTHLY_ELECTRICITY!O17="","A",VAL_MONTHLY_ELECTRICITY!O17),"") -> A | S21: =IF(VAL_MONTHLY_ELECTRICITY!P$3="Y",IF(VAL_MONTHLY_ELECTRICITY!P17="","F",VAL_MONTHLY_ELECTRICITY!P17),"") -> F | T21: =IF(VAL_MONTHLY_ELECTRICITY!S$3="Y",ROUND(VAL_MONTHLY_ELECTRICITY!Q17,3),"") -> 0 | U21: =IF(VAL_MONTHLY_ELECTRICITY!S$3="Y",IF(VAL_MONTHLY_ELECTRICITY!R17="","A",VAL_MONTHLY_ELECTRICITY!R17),"") -> A | V21: =IF(VAL_MONTHLY_ELECTRICITY!S$3="Y",IF(VAL_MONTHLY_ELECTRICITY!S17="","F",VAL_MONTHLY_ELECTRICITY!S17),"") -> F | W21: =IF(VAL_MONTHLY_ELECTRICITY!V$3="Y",ROUND(VAL_MONTHLY_ELECTRICITY!T17,3),"") ->  | X21: =IF(VAL_MONTHLY_ELECTRICITY!V$3="Y",IF(VAL_MONTHLY_ELECTRICITY!U17="","A",VAL_MONTHLY_ELECTRICITY!U17),"") ->  | Y21: =IF(VAL_MONTHLY_ELECTRICITY!V$3="Y",IF(VAL_MONTHLY_ELECTRICITY!V17="","F",VAL_MONTHLY_ELECTRICITY!V17),"") ->  | Z21: =IF(VAL_MONTHLY_ELECTRICITY!Y$3="Y",ROUND(VAL_MONTHLY_ELECTRICITY!W17,3),"") ->  | AA21: =IF(VAL_MONTHLY_ELECTRICITY!Y$3="Y",IF(VAL_MONTHLY_ELECTRICITY!X17="","A",VAL_MONTHLY_ELECTRICITY!X17),"") ->  | AB21: =IF(VAL_MONTHLY_ELECTRICITY!Y$3="Y",IF(VAL_MONTHLY_ELECTRICITY!Y17="","F",VAL_MONTHLY_ELECTRICITY!Y17),"") ->  | AC21: =IF(VAL_MONTHLY_ELECTRICITY!AB$3="Y",ROUND(VAL_MONTHLY_ELECTRICITY!Z17,3),"") ->  | AD21: =IF(VAL_MONTHLY_ELECTRICITY!AB$3="Y",IF(VAL_MONTHLY_ELECTRICITY!AA17="","A",VAL_MONTHLY_ELECTRICITY!AA17),"") ->  | AE21: =IF(VAL_MONTHLY_ELECTRICITY!AB$3="Y",IF(VAL_MONTHLY_ELECTRICITY!AB17="","F",VAL_MONTHLY_ELECTRICITY!AB17),"") ->  | AF21: =IF(VAL_MONTHLY_ELECTRICITY!AE$3="Y",ROUND(VAL_MONTHLY_ELECTRICITY!AC17,3),"") ->  | AG21: =IF(VAL_MONTHLY_ELECTRICITY!AE$3="Y",IF(VAL_MONTHLY_ELECTRICITY!AD17="","A",VAL_MONTHLY_ELECTRICITY!AD17),"") ->  | AH21: =IF(VAL_MONTHLY_ELECTRICITY!AE$3="Y",IF(VAL_MONTHLY_ELECTRICITY!AE17="","F",VAL_MONTHLY_ELECTRICITY!AE17),"") ->  | AI21: =IF(VAL_MONTHLY_ELECTRICITY!AH$3="Y",ROUND(VAL_MONTHLY_ELECTRICITY!AF17,3),"") -> 0 | AJ21: =IF(VAL_MONTHLY_ELECTRICITY!AH$3="Y",IF(VAL_MONTHLY_ELECTRICITY!AG17="","A",VAL_MONTHLY_ELECTRICITY!AG17),"") -> A | AK21: =IF(VAL_MONTHLY_ELECTRICITY!AH$3="Y",IF(VAL_MONTHLY_ELECTRICITY!AH17="","F",VAL_MONTHLY_ELECTRICITY!AH17),"") -> F | AL21: =IF(VAL_MONTHLY_ELECTRICITY!AK$3="Y",ROUND(VAL_MONTHLY_ELECTRICITY!AI17,3),"") -> 0 | AM21: =IF(VAL_MONTHLY_ELECTRICITY!AK$3="Y",IF(VAL_MONTHLY_ELECTRICITY!AJ17="","A",VAL_MONTHLY_ELECTRICITY!AJ17),"") -> A | AN21: =IF(VAL_MONTHLY_ELECTRICITY!AK$3="Y",IF(VAL_MONTHLY_ELECTRICITY!AK17="","F",VAL_MONTHLY_ELECTRICITY!AK17),"") -> F | AO21: =IF(VAL_MONTHLY_ELECTRICITY!AN$3="Y",ROUND(VAL_MONTHLY_ELECTRICITY!AL17,3),"") -> 0 | AP21: =IF(VAL_MONTHLY_ELECTRICITY!AN$3="Y",IF(VAL_MONTHLY_ELECTRICITY!AM17="","A",VAL_MONTHLY_ELECTRICITY!AM17),"") -> A | AQ21: =IF(VAL_MONTHLY_ELECTRICITY!AN$3="Y",IF(VAL_MONTHLY_ELECTRICITY!AN17="","F",VAL_MONTHLY_ELECTRICITY!AN17),"") -> F
C22: NETPROD | D22: _Z | E22: WIND | F22: _Z | G22: Wind | H22: =IF(VAL_MONTHLY_ELECTRICITY!G$3="Y",ROUND(VAL_MONTHLY_ELECTRICITY!E18,3),"") ->  | I22: =IF(VAL_MONTHLY_ELECTRICITY!G$3="Y",IF(VAL_MONTHLY_ELECTRICITY!F18="","A",VAL_MONTHLY_ELECTRICITY!F18),"") ->  | J22: =IF(VAL_MONTHLY_ELECTRICITY!G$3="Y",IF(VAL_MONTHLY_ELECTRICITY!G18="","F",VAL_MONTHLY_ELECTRICITY!G18),"") ->  | K22: =IF(VAL_MONTHLY_ELECTRICITY!J$3="Y",ROUND(VAL_MONTHLY_ELECTRICITY!H18,3),"") ->  | L22: =IF(VAL_MONTHLY_ELECTRICITY!J$3="Y",IF(VAL_MONTHLY_ELECTRICITY!I18="","A",VAL_MONTHLY_ELECTRICITY!I18),"") ->  | M22: =IF(VAL_MONTHLY_ELECTRICITY!J$3="Y",IF(VAL_MONTHLY_ELECTRICITY!J18="","F",VAL_MONTHLY_ELECTRICITY!J18),"") ->  | N22: =IF(VAL_MONTHLY_ELECTRICITY!M$3="Y",ROUND(VAL_MONTHLY_ELECTRICITY!K18,3),"") ->  | O22: =IF(VAL_MONTHLY_ELECTRICITY!M$3="Y",IF(VAL_MONTHLY_ELECTRICITY!L18="","A",VAL_MONTHLY_ELECTRICITY!L18),"") ->  | P22: =IF(VAL_MONTHLY_ELECTRICITY!M$3="Y",IF(VAL_MONTHLY_ELECTRICITY!M18="","F",VAL_MONTHLY_ELECTRICITY!M18),"") ->  | Q22: =IF(VAL_MONTHLY_ELECTRICITY!P$3="Y",ROUND(VAL_MONTHLY_ELECTRICITY!N18,3),"") -> 6.34 | R22: =IF(VAL_MONTHLY_ELECTRICITY!P$3="Y",IF(VAL_MONTHLY_ELECTRICITY!O18="","A",VAL_MONTHLY_ELECTRICITY!O18),"") -> A | S22: =IF(VAL_MONTHLY_ELECTRICITY!P$3="Y",IF(VAL_MONTHLY_ELECTRICITY!P18="","F",VAL_MONTHLY_ELECTRICITY!P18),"") -> F | T22: =IF(VAL_MONTHLY_ELECTRICITY!S$3="Y",ROUND(VAL_MONTHLY_ELECTRICITY!Q18,3),"") -> 6.992 | U22: =IF(VAL_MONTHLY_ELECTRICITY!S$3="Y",IF(VAL_MONTHLY_ELECTRICITY!R18="","A",VAL_MONTHLY_ELECTRICITY!R18),"") -> A | V22: =IF(VAL_MONTHLY_ELECTRICITY!S$3="Y",IF(VAL_MONTHLY_ELECTRICITY!S18="","F",VAL_MONTHLY_ELECTRICITY!S18),"") -> F | W22: =IF(VAL_MONTHLY_ELECTRICITY!V$3="Y",ROUND(VAL_MONTHLY_ELECTRICITY!T18,3),"") ->  | X22: =IF(VAL_MONTHLY_ELECTRICITY!V$3="Y",IF(VAL_MONTHLY_ELECTRICITY!U18="","A",VAL_MONTHLY_ELECTRICITY!U18),"") ->  | Y22: =IF(VAL_MONTHLY_ELECTRICITY!V$3="Y",IF(VAL_MONTHLY_ELECTRICITY!V18="","F",VAL_MONTHLY_ELECTRICITY!V18),"") ->  | Z22: =IF(VAL_MONTHLY_ELECTRICITY!Y$3="Y",ROUND(VAL_MONTHLY_ELECTRICITY!W18,3),"") ->  | AA22: =IF(VAL_MONTHLY_ELECTRICITY!Y$3="Y",IF(VAL_MONTHLY_ELECTRICITY!X18="","A",VAL_MONTHLY_ELECTRICITY!X18),"") ->  | AB22: =IF(VAL_MONTHLY_ELECTRICITY!Y$3="Y",IF(VAL_MONTHLY_ELECTRICITY!Y18="","F",VAL_MONTHLY_ELECTRICITY!Y18),"") ->  | AC22: =IF(VAL_MONTHLY_ELECTRICITY!AB$3="Y",ROUND(VAL_MONTHLY_ELECTRICITY!Z18,3),"") ->  | AD22: =IF(VAL_MONTHLY_ELECTRICITY!AB$3="Y",IF(VAL_MONTHLY_ELECTRICITY!AA18="","A",VAL_MONTHLY_ELECTRICITY!AA18),"") ->  | AE22: =IF(VAL_MONTHLY_ELECTRICITY!AB$3="Y",IF(VAL_MONTHLY_ELECTRICITY!AB18="","F",VAL_MONTHLY_ELECTRICITY!AB18),"") ->  | AF22: =IF(VAL_MONTHLY_ELECTRICITY!AE$3="Y",ROUND(VAL_MONTHLY_ELECTRICITY!AC18,3),"") ->  | AG22: =IF(VAL_MONTHLY_ELECTRICITY!AE$3="Y",IF(VAL_MONTHLY_ELECTRICITY!AD18="","A",VAL_MONTHLY_ELECTRICITY!AD18),"") ->  | AH22: =IF(VAL_MONTHLY_ELECTRICITY!AE$3="Y",IF(VAL_MONTHLY_ELECTRICITY!AE18="","F",VAL_MONTHLY_ELECTRICITY!AE18),"") ->  | AI22: =IF(VAL_MONTHLY_ELECTRICITY!AH$3="Y",ROUND(VAL_MONTHLY_ELECTRICITY!AF18,3),"") -> 0 | AJ22: =IF(VAL_MONTHLY_ELECTRICITY!AH$3="Y",IF(VAL_MONTHLY_ELECTRICITY!AG18="","A",VAL_MONTHLY_ELECTRICITY!AG18),"") -> A | AK22: =IF(VAL_MONTHLY_ELECTRICITY!AH$3="Y",IF(VAL_MONTHLY_ELECTRICITY!AH18="","F",VAL_MONTHLY_ELECTRICITY!AH18),"") -> F | AL22: =IF(VAL_MONTHLY_ELECTRICITY!AK$3="Y",ROUND(VAL_MONTHLY_ELECTRICITY!AI18,3),"") -> 0 | AM22: =IF(VAL_MONTHLY_ELECTRICITY!AK$3="Y",IF(VAL_MONTHLY_ELECTRICITY!AJ18="","A",VAL_MONTHLY_ELECTRICITY!AJ18),"") -> A | AN22: =IF(VAL_MONTHLY_ELECTRICITY!AK$3="Y",IF(VAL_MONTHLY_ELECTRICITY!AK18="","F",VAL_MONTHLY_ELECTRICITY!AK18),"") -> F | AO22: =IF(VAL_MONTHLY_ELECTRICITY!AN$3="Y",ROUND(VAL_MONTHLY_ELECTRICITY!AL18,3),"") -> 0 | AP22: =IF(VAL_MONTHLY_ELECTRICITY!AN$3="Y",IF(VAL_MONTHLY_ELECTRICITY!AM18="","A",VAL_MONTHLY_ELECTRICITY!AM18),"") -> A | AQ22: =IF(VAL_MONTHLY_ELECTRICITY!AN$3="Y",IF(VAL_MONTHLY_ELECTRICITY!AN18="","F",VAL_MONTHLY_ELECTRICITY!AN18),"") -> F
C23: NETPROD | D23: _Z | E23: WINDON | F23: _Z | G23: Onshore | H23: =IF(VAL_MONTHLY_ELECTRICITY!G$3="Y",ROUND(VAL_MONTHLY_ELECTRICITY!E19,3),"") ->  | I23: =IF(VAL_MONTHLY_ELECTRICITY!G$3="Y",IF(VAL_MONTHLY_ELECTRICITY!F19="","A",VAL_MONTHLY_ELECTRICITY!F19),"") ->  | J23: =IF(VAL_MONTHLY_ELECTRICITY!G$3="Y",IF(VAL_MONTHLY_ELECTRICITY!G19="","F",VAL_MONTHLY_ELECTRICITY!G19),"") ->  | K23: =IF(VAL_MONTHLY_ELECTRICITY!J$3="Y",ROUND(VAL_MONTHLY_ELECTRICITY!H19,3),"") ->  | L23: =IF(VAL_MONTHLY_ELECTRICITY!J$3="Y",IF(VAL_MONTHLY_ELECTRICITY!I19="","A",VAL_MONTHLY_ELECTRICITY!I19),"") ->  | M23: =IF(VAL_MONTHLY_ELECTRICITY!J$3="Y",IF(VAL_MONTHLY_ELECTRICITY!J19="","F",VAL_MONTHLY_ELECTRICITY!J19),"") ->  | N23: =IF(VAL_MONTHLY_ELECTRICITY!M$3="Y",ROUND(VAL_MONTHLY_ELECTRICITY!K19,3),"") ->  | O23: =IF(VAL_MONTHLY_ELECTRICITY!M$3="Y",IF(VAL_MONTHLY_ELECTRICITY!L19="","A",VAL_MONTHLY_ELECTRICITY!L19),"") ->  | P23: =IF(VAL_MONTHLY_ELECTRICITY!M$3="Y",IF(VAL_MONTHLY_ELECTRICITY!M19="","F",VAL_MONTHLY_ELECTRICITY!M19),"") ->  | Q23: =IF(VAL_MONTHLY_ELECTRICITY!P$3="Y",ROUND(VAL_MONTHLY_ELECTRICITY!N19,3),"") -> 6.34 | R23: =IF(VAL_MONTHLY_ELECTRICITY!P$3="Y",IF(VAL_MONTHLY_ELECTRICITY!O19="","A",VAL_MONTHLY_ELECTRICITY!O19),"") -> A | S23: =IF(VAL_MONTHLY_ELECTRICITY!P$3="Y",IF(VAL_MONTHLY_ELECTRICITY!P19="","F",VAL_MONTHLY_ELECTRICITY!P19),"") -> F | T23: =IF(VAL_MONTHLY_ELECTRICITY!S$3="Y",ROUND(VAL_MONTHLY_ELECTRICITY!Q19,3),"") -> 6.992 | U23: =IF(VAL_MONTHLY_ELECTRICITY!S$3="Y",IF(VAL_MONTHLY_ELECTRICITY!R19="","A",VAL_MONTHLY_ELECTRICITY!R19),"") -> A | V23: =IF(VAL_MONTHLY_ELECTRICITY!S$3="Y",IF(VAL_MONTHLY_ELECTRICITY!S19="","F",VAL_MONTHLY_ELECTRICITY!S19),"") -> F | W23: =IF(VAL_MONTHLY_ELECTRICITY!V$3="Y",ROUND(VAL_MONTHLY_ELECTRICITY!T19,3),"") ->  | X23: =IF(VAL_MONTHLY_ELECTRICITY!V$3="Y",IF(VAL_MONTHLY_ELECTRICITY!U19="","A",VAL_MONTHLY_ELECTRICITY!U19),"") ->  | Y23: =IF(VAL_MONTHLY_ELECTRICITY!V$3="Y",IF(VAL_MONTHLY_ELECTRICITY!V19="","F",VAL_MONTHLY_ELECTRICITY!V19),"") ->  | Z23: =IF(VAL_MONTHLY_ELECTRICITY!Y$3="Y",ROUND(VAL_MONTHLY_ELECTRICITY!W19,3),"") ->  | AA23: =IF(VAL_MONTHLY_ELECTRICITY!Y$3="Y",IF(VAL_MONTHLY_ELECTRICITY!X19="","A",VAL_MONTHLY_ELECTRICITY!X19),"") ->  | AB23: =IF(VAL_MONTHLY_ELECTRICITY!Y$3="Y",IF(VAL_MONTHLY_ELECTRICITY!Y19="","F",VAL_MONTHLY_ELECTRICITY!Y19),"") ->  | AC23: =IF(VAL_MONTHLY_ELECTRICITY!AB$3="Y",ROUND(VAL_MONTHLY_ELECTRICITY!Z19,3),"") ->  | AD23: =IF(VAL_MONTHLY_ELECTRICITY!AB$3="Y",IF(VAL_MONTHLY_ELECTRICITY!AA19="","A",VAL_MONTHLY_ELECTRICITY!AA19),"") ->  | AE23: =IF(VAL_MONTHLY_ELECTRICITY!AB$3="Y",IF(VAL_MONTHLY_ELECTRICITY!AB19="","F",VAL_MONTHLY_ELECTRICITY!AB19),"") ->  | AF23: =IF(VAL_MONTHLY_ELECTRICITY!AE$3="Y",ROUND(VAL_MONTHLY_ELECTRICITY!AC19,3),"") ->  | AG23: =IF(VAL_MONTHLY_ELECTRICITY!AE$3="Y",IF(VAL_MONTHLY_ELECTRICITY!AD19="","A",VAL_MONTHLY_ELECTRICITY!AD19),"") ->  | AH23: =IF(VAL_MONTHLY_ELECTRICITY!AE$3="Y",IF(VAL_MONTHLY_ELECTRICITY!AE19="","F",VAL_MONTHLY_ELECTRICITY!AE19),"") ->  | AI23: =IF(VAL_MONTHLY_ELECTRICITY!AH$3="Y",ROUND(VAL_MONTHLY_ELECTRICITY!AF19,3),"") -> 0 | AJ23: =IF(VAL_MONTHLY_ELECTRICITY!AH$3="Y",IF(VAL_MONTHLY_ELECTRICITY!AG19="","A",VAL_MONTHLY_ELECTRICITY!AG19),"") -> A | AK23: =IF(VAL_MONTHLY_ELECTRICITY!AH$3="Y",IF(VAL_MONTHLY_ELECTRICITY!AH19="","F",VAL_MONTHLY_ELECTRICITY!AH19),"") -> F | AL23: =IF(VAL_MONTHLY_ELECTRICITY!AK$3="Y",ROUND(VAL_MONTHLY_ELECTRICITY!AI19,3),"") -> 0 | AM23: =IF(VAL_MONTHLY_ELECTRICITY!AK$3="Y",IF(VAL_MONTHLY_ELECTRICITY!AJ19="","A",VAL_MONTHLY_ELECTRICITY!AJ19),"") -> A | AN23: =IF(VAL_MONTHLY_ELECTRICITY!AK$3="Y",IF(VAL_MONTHLY_ELECTRICITY!AK19="","F",VAL_MONTHLY_ELECTRICITY!AK19),"") -> F | AO23: =IF(VAL_MONTHLY_ELECTRICITY!AN$3="Y",ROUND(VAL_MONTHLY_ELECTRICITY!AL19,3),"") -> 0 | AP23: =IF(VAL_MONTHLY_ELECTRICITY!AN$3="Y",IF(VAL_MONTHLY_ELECTRICITY!AM19="","A",VAL_MONTHLY_ELECTRICITY!AM19),"") -> A | AQ23: =IF(VAL_MONTHLY_ELECTRICITY!AN$3="Y",IF(VAL_MONTHLY_ELECTRICITY!AN19="","F",VAL_MONTHLY_ELECTRICITY!AN19),"") -> F
C24: NETPROD | D24: _Z | E24: WINDOFF | F24: _Z | G24: Offshore | H24: =IF(VAL_MONTHLY_ELECTRICITY!G$3="Y",ROUND(VAL_MONTHLY_ELECTRICITY!E20,3),"") ->  | I24: =IF(VAL_MONTHLY_ELECTRICITY!G$3="Y",IF(VAL_MONTHLY_ELECTRICITY!F20="","A",VAL_MONTHLY_ELECTRICITY!F20),"") ->  | J24: =IF(VAL_MONTHLY_ELECTRICITY!G$3="Y",IF(VAL_MONTHLY_ELECTRICITY!G20="","F",VAL_MONTHLY_ELECTRICITY!G20),"") ->  | K24: =IF(VAL_MONTHLY_ELECTRICITY!J$3="Y",ROUND(VAL_MONTHLY_ELECTRICITY!H20,3),"") ->  | L24: =IF(VAL_MONTHLY_ELECTRICITY!J$3="Y",IF(VAL_MONTHLY_ELECTRICITY!I20="","A",VAL_MONTHLY_ELECTRICITY!I20),"") ->  | M24: =IF(VAL_MONTHLY_ELECTRICITY!J$3="Y",IF(VAL_MONTHLY_ELECTRICITY!J20="","F",VAL_MONTHLY_ELECTRICITY!J20),"") ->  | N24: =IF(VAL_MONTHLY_ELECTRICITY!M$3="Y",ROUND(VAL_MONTHLY_ELECTRICITY!K20,3),"") ->  | O24: =IF(VAL_MONTHLY_ELECTRICITY!M$3="Y",IF(VAL_MONTHLY_ELECTRICITY!L20="","A",VAL_MONTHLY_ELECTRICITY!L20),"") ->  | P24: =IF(VAL_MONTHLY_ELECTRICITY!M$3="Y",IF(VAL_MONTHLY_ELECTRICITY!M20="","F",VAL_MONTHLY_ELECTRICITY!M20),"") ->  | Q24: =IF(VAL_MONTHLY_ELECTRICITY!P$3="Y",ROUND(VAL_MONTHLY_ELECTRICITY!N20,3),"") -> 0 | R24: =IF(VAL_MONTHLY_ELECTRICITY!P$3="Y",IF(VAL_MONTHLY_ELECTRICITY!O20="","A",VAL_MONTHLY_ELECTRICITY!O20),"") -> A | S24: =IF(VAL_MONTHLY_ELECTRICITY!P$3="Y",IF(VAL_MONTHLY_ELECTRICITY!P20="","F",VAL_MONTHLY_ELECTRICITY!P20),"") -> F | T24: =IF(VAL_MONTHLY_ELECTRICITY!S$3="Y",ROUND(VAL_MONTHLY_ELECTRICITY!Q20,3),"") -> 0 | U24: =IF(VAL_MONTHLY_ELECTRICITY!S$3="Y",IF(VAL_MONTHLY_ELECTRICITY!R20="","A",VAL_MONTHLY_ELECTRICITY!R20),"") -> A | V24: =IF(VAL_MONTHLY_ELECTRICITY!S$3="Y",IF(VAL_MONTHLY_ELECTRICITY!S20="","F",VAL_MONTHLY_ELECTRICITY!S20),"") -> F | W24: =IF(VAL_MONTHLY_ELECTRICITY!V$3="Y",ROUND(VAL_MONTHLY_ELECTRICITY!T20,3),"") ->  | X24: =IF(VAL_MONTHLY_ELECTRICITY!V$3="Y",IF(VAL_MONTHLY_ELECTRICITY!U20="","A",VAL_MONTHLY_ELECTRICITY!U20),"") ->  | Y24: =IF(VAL_MONTHLY_ELECTRICITY!V$3="Y",IF(VAL_MONTHLY_ELECTRICITY!V20="","F",VAL_MONTHLY_ELECTRICITY!V20),"") ->  | Z24: =IF(VAL_MONTHLY_ELECTRICITY!Y$3="Y",ROUND(VAL_MONTHLY_ELECTRICITY!W20,3),"") ->  | AA24: =IF(VAL_MONTHLY_ELECTRICITY!Y$3="Y",IF(VAL_MONTHLY_ELECTRICITY!X20="","A",VAL_MONTHLY_ELECTRICITY!X20),"") ->  | AB24: =IF(VAL_MONTHLY_ELECTRICITY!Y$3="Y",IF(VAL_MONTHLY_ELECTRICITY!Y20="","F",VAL_MONTHLY_ELECTRICITY!Y20),"") ->  | AC24: =IF(VAL_MONTHLY_ELECTRICITY!AB$3="Y",ROUND(VAL_MONTHLY_ELECTRICITY!Z20,3),"") ->  | AD24: =IF(VAL_MONTHLY_ELECTRICITY!AB$3="Y",IF(VAL_MONTHLY_ELECTRICITY!AA20="","A",VAL_MONTHLY_ELECTRICITY!AA20),"") ->  | AE24: =IF(VAL_MONTHLY_ELECTRICITY!AB$3="Y",IF(VAL_MONTHLY_ELECTRICITY!AB20="","F",VAL_MONTHLY_ELECTRICITY!AB20),"") ->  | AF24: =IF(VAL_MONTHLY_ELECTRICITY!AE$3="Y",ROUND(VAL_MONTHLY_ELECTRICITY!AC20,3),"") ->  | AG24: =IF(VAL_MONTHLY_ELECTRICITY!AE$3="Y",IF(VAL_MONTHLY_ELECTRICITY!AD20="","A",VAL_MONTHLY_ELECTRICITY!AD20),"") ->  | AH24: =IF(VAL_MONTHLY_ELECTRICITY!AE$3="Y",IF(VAL_MONTHLY_ELECTRICITY!AE20="","F",VAL_MONTHLY_ELECTRICITY!AE20),"") ->  | AI24: =IF(VAL_MONTHLY_ELECTRICITY!AH$3="Y",ROUND(VAL_MONTHLY_ELECTRICITY!AF20,3),"") -> 0 | AJ24: =IF(VAL_MONTHLY_ELECTRICITY!AH$3="Y",IF(VAL_MONTHLY_ELECTRICITY!AG20="","A",VAL_MONTHLY_ELECTRICITY!AG20),"") -> A | AK24: =IF(VAL_MONTHLY_ELECTRICITY!AH$3="Y",IF(VAL_MONTHLY_ELECTRICITY!AH20="","F",VAL_MONTHLY_ELECTRICITY!AH20),"") -> F | AL24: =IF(VAL_MONTHLY_ELECTRICITY!AK$3="Y",ROUND(VAL_MONTHLY_ELECTRICITY!AI20,3),"") -> 0 | AM24: =IF(VAL_MONTHLY_ELECTRICITY!AK$3="Y",IF(VAL_MONTHLY_ELECTRICITY!AJ20="","A",VAL_MONTHLY_ELECTRICITY!AJ20),"") -> A | AN24: =IF(VAL_MONTHLY_ELECTRICITY!AK$3="Y",IF(VAL_MONTHLY_ELECTRICITY!AK20="","F",VAL_MONTHLY_ELECTRICITY!AK20),"") -> F | AO24: =IF(VAL_MONTHLY_ELECTRICITY!AN$3="Y",ROUND(VAL_MONTHLY_ELECTRICITY!AL20,3),"") -> 0 | AP24: =IF(VAL_MONTHLY_ELECTRICITY!AN$3="Y",IF(VAL_MONTHLY_ELECTRICITY!AM20="","A",VAL_MONTHLY_ELECTRICITY!AM20),"") -> A | AQ24: =IF(VAL_MONTHLY_ELECTRICITY!AN$3="Y",IF(VAL_MONTHLY_ELECTRICITY!AN20="","F",VAL_MONTHLY_ELECTRICITY!AN20),"") -> F
C25: NETPROD | D25: _Z | E25: SOLAR | F25: _Z | G25: Solar | H25: =IF(VAL_MONTHLY_ELECTRICITY!G$3="Y",ROUND(VAL_MONTHLY_ELECTRICITY!E21,3),"") ->  | I25: =IF(VAL_MONTHLY_ELECTRICITY!G$3="Y",IF(VAL_MONTHLY_ELECTRICITY!F21="","A",VAL_MONTHLY_ELECTRICITY!F21),"") ->  | J25: =IF(VAL_MONTHLY_ELECTRICITY!G$3="Y",IF(VAL_MONTHLY_ELECTRICITY!G21="","F",VAL_MONTHLY_ELECTRICITY!G21),"") ->  | K25: =IF(VAL_MONTHLY_ELECTRICITY!J$3="Y",ROUND(VAL_MONTHLY_ELECTRICITY!H21,3),"") ->  | L25: =IF(VAL_MONTHLY_ELECTRICITY!J$3="Y",IF(VAL_MONTHLY_ELECTRICITY!I21="","A",VAL_MONTHLY_ELECTRICITY!I21),"") ->  | M25: =IF(VAL_MONTHLY_ELECTRICITY!J$3="Y",IF(VAL_MONTHLY_ELECTRICITY!J21="","F",VAL_MONTHLY_ELECTRICITY!J21),"") ->  | N25: =IF(VAL_MONTHLY_ELECTRICITY!M$3="Y",ROUND(VAL_MONTHLY_ELECTRICITY!K21,3),"") ->  | O25: =IF(VAL_MONTHLY_ELECTRICITY!M$3="Y",IF(VAL_MONTHLY_ELECTRICITY!L21="","A",VAL_MONTHLY_ELECTRICITY!L21),"") ->  | P25: =IF(VAL_MONTHLY_ELECTRICITY!M$3="Y",IF(VAL_MONTHLY_ELECTRICITY!M21="","F",VAL_MONTHLY_ELECTRICITY!M21),"") ->  | Q25: =IF(VAL_MONTHLY_ELECTRICITY!P$3="Y",ROUND(VAL_MONTHLY_ELECTRICITY!N21,3),"") -> 23.768 | R25: =IF(VAL_MONTHLY_ELECTRICITY!P$3="Y",IF(VAL_MONTHLY_ELECTRICITY!O21="","A",VAL_MONTHLY_ELECTRICITY!O21),"") -> A | S25: =IF(VAL_MONTHLY_ELECTRICITY!P$3="Y",IF(VAL_MONTHLY_ELECTRICITY!P21="","F",VAL_MONTHLY_ELECTRICITY!P21),"") -> F | T25: =IF(VAL_MONTHLY_ELECTRICITY!S$3="Y",ROUND(VAL_MONTHLY_ELECTRICITY!Q21,3),"") -> 21.978 | U25: =IF(VAL_MONTHLY_ELECTRICITY!S$3="Y",IF(VAL_MONTHLY_ELECTRICITY!R21="","A",VAL_MONTHLY_ELECTRICITY!R21),"") -> A | V25: =IF(VAL_MONTHLY_ELECTRICITY!S$3="Y",IF(VAL_MONTHLY_ELECTRICITY!S21="","F",VAL_MONTHLY_ELECTRICITY!S21),"") -> F | W25: =IF(VAL_MONTHLY_ELECTRICITY!V$3="Y",ROUND(VAL_MONTHLY_ELECTRICITY!T21,3),"") ->  | X25: =IF(VAL_MONTHLY_ELECTRICITY!V$3="Y",IF(VAL_MONTHLY_ELECTRICITY!U21="","A",VAL_MONTHLY_ELECTRICITY!U21),"") ->  | Y25: =IF(VAL_MONTHLY_ELECTRICITY!V$3="Y",IF(VAL_MONTHLY_ELECTRICITY!V21="","F",VAL_MONTHLY_ELECTRICITY!V21),"") ->  | Z25: =IF(VAL_MONTHLY_ELECTRICITY!Y$3="Y",ROUND(VAL_MONTHLY_ELECTRICITY!W21,3),"") ->  | AA25: =IF(VAL_MONTHLY_ELECTRICITY!Y$3="Y",IF(VAL_MONTHLY_ELECTRICITY!X21="","A",VAL_MONTHLY_ELECTRICITY!X21),"") ->  | AB25: =IF(VAL_MONTHLY_ELECTRICITY!Y$3="Y",IF(VAL_MONTHLY_ELECTRICITY!Y21="","F",VAL_MONTHLY_ELECTRICITY!Y21),"") ->  | AC25: =IF(VAL_MONTHLY_ELECTRICITY!AB$3="Y",ROUND(VAL_MONTHLY_ELECTRICITY!Z21,3),"") ->  | AD25: =IF(VAL_MONTHLY_ELECTRICITY!AB$3="Y",IF(VAL_MONTHLY_ELECTRICITY!AA21="","A",VAL_MONTHLY_ELECTRICITY!AA21),"") ->  | AE25: =IF(VAL_MONTHLY_ELECTRICITY!AB$3="Y",IF(VAL_MONTHLY_ELECTRICITY!AB21="","F",VAL_MONTHLY_ELECTRICITY!AB21),"") ->  | AF25: =IF(VAL_MONTHLY_ELECTRICITY!AE$3="Y",ROUND(VAL_MONTHLY_ELECTRICITY!AC21,3),"") ->  | AG25: =IF(VAL_MONTHLY_ELECTRICITY!AE$3="Y",IF(VAL_MONTHLY_ELECTRICITY!AD21="","A",VAL_MONTHLY_ELECTRICITY!AD21),"") ->  | AH25: =IF(VAL_MONTHLY_ELECTRICITY!AE$3="Y",IF(VAL_MONTHLY_ELECTRICITY!AE21="","F",VAL_MONTHLY_ELECTRICITY!AE21),"") ->  | AI25: =IF(VAL_MONTHLY_ELECTRICITY!AH$3="Y",ROUND(VAL_MONTHLY_ELECTRICITY!AF21,3),"") -> 0 | AJ25: =IF(VAL_MONTHLY_ELECTRICITY!AH$3="Y",IF(VAL_MONTHLY_ELECTRICITY!AG21="","A",VAL_MONTHLY_ELECTRICITY!AG21),"") -> A | AK25: =IF(VAL_MONTHLY_ELECTRICITY!AH$3="Y",IF(VAL_MONTHLY_ELECTRICITY!AH21="","F",VAL_MONTHLY_ELECTRICITY!AH21),"") -> F | AL25: =IF(VAL_MONTHLY_ELECTRICITY!AK$3="Y",ROUND(VAL_MONTHLY_ELECTRICITY!AI21,3),"") -> 0 | AM25: =IF(VAL_MONTHLY_ELECTRICITY!AK$3="Y",IF(VAL_MONTHLY_ELECTRICITY!AJ21="","A",VAL_MONTHLY_ELECTRICITY!AJ21),"") -> A | AN25: =IF(VAL_MONTHLY_ELECTRICITY!AK$3="Y",IF(VAL_MONTHLY_ELECTRICITY!AK21="","F",VAL_MONTHLY_ELECTRICITY!AK21),"") -> F | AO25: =IF(VAL_MONTHLY_ELECTRICITY!AN$3="Y",ROUND(VAL_MONTHLY_ELECTRICITY!AL21,3),"") -> 0 | AP25: =IF(VAL_MONTHLY_ELECTRICITY!AN$3="Y",IF(VAL_MONTHLY_ELECTRICITY!AM21="","A",VAL_MONTHLY_ELECTRICITY!AM21),"") -> A | AQ25: =IF(VAL_MONTHLY_ELECTRICITY!AN$3="Y",IF(VAL_MONTHLY_ELECTRICITY!AN21="","F",VAL_MONTHLY_ELECTRICITY!AN21),"") -> F
C26: NETPROD | D26: _Z | E26: SOLARPV | F26: _Z | G26: Solar photovoltaic | H26: =IF(VAL_MONTHLY_ELECTRICITY!G$3="Y",ROUND(VAL_MONTHLY_ELECTRICITY!E22,3),"") ->  | I26: =IF(VAL_MONTHLY_ELECTRICITY!G$3="Y",IF(VAL_MONTHLY_ELECTRICITY!F22="","A",VAL_MONTHLY_ELECTRICITY!F22),"") ->  | J26: =IF(VAL_MONTHLY_ELECTRICITY!G$3="Y",IF(VAL_MONTHLY_ELECTRICITY!G22="","F",VAL_MONTHLY_ELECTRICITY!G22),"") ->  | K26: =IF(VAL_MONTHLY_ELECTRICITY!J$3="Y",ROUND(VAL_MONTHLY_ELECTRICITY!H22,3),"") ->  | L26: =IF(VAL_MONTHLY_ELECTRICITY!J$3="Y",IF(VAL_MONTHLY_ELECTRICITY!I22="","A",VAL_MONTHLY_ELECTRICITY!I22),"") ->  | M26: =IF(VAL_MONTHLY_ELECTRICITY!J$3="Y",IF(VAL_MONTHLY_ELECTRICITY!J22="","F",VAL_MONTHLY_ELECTRICITY!J22),"") ->  | N26: =IF(VAL_MONTHLY_ELECTRICITY!M$3="Y",ROUND(VAL_MONTHLY_ELECTRICITY!K22,3),"") ->  | O26: =IF(VAL_MONTHLY_ELECTRICITY!M$3="Y",IF(VAL_MONTHLY_ELECTRICITY!L22="","A",VAL_MONTHLY_ELECTRICITY!L22),"") ->  | P26: =IF(VAL_MONTHLY_ELECTRICITY!M$3="Y",IF(VAL_MONTHLY_ELECTRICITY!M22="","F",VAL_MONTHLY_ELECTRICITY!M22),"") ->  | Q26: =IF(VAL_MONTHLY_ELECTRICITY!P$3="Y",ROUND(VAL_MONTHLY_ELECTRICITY!N22,3),"") -> 23.768 | R26: =IF(VAL_MONTHLY_ELECTRICITY!P$3="Y",IF(VAL_MONTHLY_ELECTRICITY!O22="","A",VAL_MONTHLY_ELECTRICITY!O22),"") -> A | S26: =IF(VAL_MONTHLY_ELECTRICITY!P$3="Y",IF(VAL_MONTHLY_ELECTRICITY!P22="","F",VAL_MONTHLY_ELECTRICITY!P22),"") -> F | T26: =IF(VAL_MONTHLY_ELECTRICITY!S$3="Y",ROUND(VAL_MONTHLY_ELECTRICITY!Q22,3),"") -> 21.978 | U26: =IF(VAL_MONTHLY_ELECTRICITY!S$3="Y",IF(VAL_MONTHLY_ELECTRICITY!R22="","A",VAL_MONTHLY_ELECTRICITY!R22),"") -> A | V26: =IF(VAL_MONTHLY_ELECTRICITY!S$3="Y",IF(VAL_MONTHLY_ELECTRICITY!S22="","F",VAL_MONTHLY_ELECTRICITY!S22),"") -> F | W26: =IF(VAL_MONTHLY_ELECTRICITY!V$3="Y",ROUND(VAL_MONTHLY_ELECTRICITY!T22,3),"") ->  | X26: =IF(VAL_MONTHLY_ELECTRICITY!V$3="Y",IF(VAL_MONTHLY_ELECTRICITY!U22="","A",VAL_MONTHLY_ELECTRICITY!U22),"") ->  | Y26: =IF(VAL_MONTHLY_ELECTRICITY!V$3="Y",IF(VAL_MONTHLY_ELECTRICITY!V22="","F",VAL_MONTHLY_ELECTRICITY!V22),"") ->  | Z26: =IF(VAL_MONTHLY_ELECTRICITY!Y$3="Y",ROUND(VAL_MONTHLY_ELECTRICITY!W22,3),"") ->  | AA26: =IF(VAL_MONTHLY_ELECTRICITY!Y$3="Y",IF(VAL_MONTHLY_ELECTRICITY!X22="","A",VAL_MONTHLY_ELECTRICITY!X22),"") ->  | AB26: =IF(VAL_MONTHLY_ELECTRICITY!Y$3="Y",IF(VAL_MONTHLY_ELECTRICITY!Y22="","F",VAL_MONTHLY_ELECTRICITY!Y22),"") ->  | AC26: =IF(VAL_MONTHLY_ELECTRICITY!AB$3="Y",ROUND(VAL_MONTHLY_ELECTRICITY!Z22,3),"") ->  | AD26: =IF(VAL_MONTHLY_ELECTRICITY!AB$3="Y",IF(VAL_MONTHLY_ELECTRICITY!AA22="","A",VAL_MONTHLY_ELECTRICITY!AA22),"") ->  | AE26: =IF(VAL_MONTHLY_ELECTRICITY!AB$3="Y",IF(VAL_MONTHLY_ELECTRICITY!AB22="","F",VAL_MONTHLY_ELECTRICITY!AB22),"") ->  | AF26: =IF(VAL_MONTHLY_ELECTRICITY!AE$3="Y",ROUND(VAL_MONTHLY_ELECTRICITY!AC22,3),"") ->  | AG26: =IF(VAL_MONTHLY_ELECTRICITY!AE$3="Y",IF(VAL_MONTHLY_ELECTRICITY!AD22="","A",VAL_MONTHLY_ELECTRICITY!AD22),"") ->  | AH26: =IF(VAL_MONTHLY_ELECTRICITY!AE$3="Y",IF(VAL_MONTHLY_ELECTRICITY!AE22="","F",VAL_MONTHLY_ELECTRICITY!AE22),"") ->  | AI26: =IF(VAL_MONTHLY_ELECTRICITY!AH$3="Y",ROUND(VAL_MONTHLY_ELECTRICITY!AF22,3),"") -> 0 | AJ26: =IF(VAL_MONTHLY_ELECTRICITY!AH$3="Y",IF(VAL_MONTHLY_ELECTRICITY!AG22="","A",VAL_MONTHLY_ELECTRICITY!AG22),"") -> A | AK26: =IF(VAL_MONTHLY_ELECTRICITY!AH$3="Y",IF(VAL_MONTHLY_ELECTRICITY!AH22="","F",VAL_MONTHLY_ELECTRICITY!AH22),"") -> F | AL26: =IF(VAL_MONTHLY_ELECTRICITY!AK$3="Y",ROUND(VAL_MONTHLY_ELECTRICITY!AI22,3),"") -> 0 | AM26: =IF(VAL_MONTHLY_ELECTRICITY!AK$3="Y",IF(VAL_MONTHLY_ELECTRICITY!AJ22="","A",VAL_MONTHLY_ELECTRICITY!AJ22),"") -> A | AN26: =IF(VAL_MONTHLY_ELECTRICITY!AK$3="Y",IF(VAL_MONTHLY_ELECTRICITY!AK22="","F",VAL_MONTHLY_ELECTRICITY!AK22),"") -> F | AO26: =IF(VAL_MONTHLY_ELECTRICITY!AN$3="Y",ROUND(VAL_MONTHLY_ELECTRICITY!AL22,3),"") -> 0 | AP26: =IF(VAL_MONTHLY_ELECTRICITY!AN$3="Y",IF(VAL_MONTHLY_ELECTRICITY!AM22="","A",VAL_MONTHLY_ELECTRICITY!AM22),"") -> A | AQ26: =IF(VAL_MONTHLY_ELECTRICITY!AN$3="Y",IF(VAL_MONTHLY_ELECTRICITY!AN22="","F",VAL_MONTHLY_ELECTRICITY!AN22),"") -> F
C27: NETPROD | D27: _Z | E27: SOLARTH | F27: _Z | G27: Solar thermal | H27: =IF(VAL_MONTHLY_ELECTRICITY!G$3="Y",ROUND(VAL_MONTHLY_ELECTRICITY!E23,3),"") ->  | I27: =IF(VAL_MONTHLY_ELECTRICITY!G$3="Y",IF(VAL_MONTHLY_ELECTRICITY!F23="","A",VAL_MONTHLY_ELECTRICITY!F23),"") ->  | J27: =IF(VAL_MONTHLY_ELECTRICITY!G$3="Y",IF(VAL_MONTHLY_ELECTRICITY!G23="","F",VAL_MONTHLY_ELECTRICITY!G23),"") ->  | K27: =IF(VAL_MONTHLY_ELECTRICITY!J$3="Y",ROUND(VAL_MONTHLY_ELECTRICITY!H23,3),"") ->  | L27: =IF(VAL_MONTHLY_ELECTRICITY!J$3="Y",IF(VAL_MONTHLY_ELECTRICITY!I23="","A",VAL_MONTHLY_ELECTRICITY!I23),"") ->  | M27: =IF(VAL_MONTHLY_ELECTRICITY!J$3="Y",IF(VAL_MONTHLY_ELECTRICITY!J23="","F",VAL_MONTHLY_ELECTRICITY!J23),"") ->  | N27: =IF(VAL_MONTHLY_ELECTRICITY!M$3="Y",ROUND(VAL_MONTHLY_ELECTRICITY!K23,3),"") ->  | O27: =IF(VAL_MONTHLY_ELECTRICITY!M$3="Y",IF(VAL_MONTHLY_ELECTRICITY!L23="","A",VAL_MONTHLY_ELECTRICITY!L23),"") ->  | P27: =IF(VAL_MONTHLY_ELECTRICITY!M$3="Y",IF(VAL_MONTHLY_ELECTRICITY!M23="","F",VAL_MONTHLY_ELECTRICITY!M23),"") ->  | Q27: =IF(VAL_MONTHLY_ELECTRICITY!P$3="Y",ROUND(VAL_MONTHLY_ELECTRICITY!N23,3),"") -> 0 | R27: =IF(VAL_MONTHLY_ELECTRICITY!P$3="Y",IF(VAL_MONTHLY_ELECTRICITY!O23="","A",VAL_MONTHLY_ELECTRICITY!O23),"") -> A | S27: =IF(VAL_MONTHLY_ELECTRICITY!P$3="Y",IF(VAL_MONTHLY_ELECTRICITY!P23="","F",VAL_MONTHLY_ELECTRICITY!P23),"") -> F | T27: =IF(VAL_MONTHLY_ELECTRICITY!S$3="Y",ROUND(VAL_MONTHLY_ELECTRICITY!Q23,3),"") -> 0 | U27: =IF(VAL_MONTHLY_ELECTRICITY!S$3="Y",IF(VAL_MONTHLY_ELECTRICITY!R23="","A",VAL_MONTHLY_ELECTRICITY!R23),"") -> A | V27: =IF(VAL_MONTHLY_ELECTRICITY!S$3="Y",IF(VAL_MONTHLY_ELECTRICITY!S23="","F",VAL_MONTHLY_ELECTRICITY!S23),"") -> F | W27: =IF(VAL_MONTHLY_ELECTRICITY!V$3="Y",ROUND(VAL_MONTHLY_ELECTRICITY!T23,3),"") ->  | X27: =IF(VAL_MONTHLY_ELECTRICITY!V$3="Y",IF(VAL_MONTHLY_ELECTRICITY!U23="","A",VAL_MONTHLY_ELECTRICITY!U23),"") ->  | Y27: =IF(VAL_MONTHLY_ELECTRICITY!V$3="Y",IF(VAL_MONTHLY_ELECTRICITY!V23="","F",VAL_MONTHLY_ELECTRICITY!V23),"") ->  | Z27: =IF(VAL_MONTHLY_ELECTRICITY!Y$3="Y",ROUND(VAL_MONTHLY_ELECTRICITY!W23,3),"") ->  | AA27: =IF(VAL_MONTHLY_ELECTRICITY!Y$3="Y",IF(VAL_MONTHLY_ELECTRICITY!X23="","A",VAL_MONTHLY_ELECTRICITY!X23),"") ->  | AB27: =IF(VAL_MONTHLY_ELECTRICITY!Y$3="Y",IF(VAL_MONTHLY_ELECTRICITY!Y23="","F",VAL_MONTHLY_ELECTRICITY!Y23),"") ->  | AC27: =IF(VAL_MONTHLY_ELECTRICITY!AB$3="Y",ROUND(VAL_MONTHLY_ELECTRICITY!Z23,3),"") ->  | AD27: =IF(VAL_MONTHLY_ELECTRICITY!AB$3="Y",IF(VAL_MONTHLY_ELECTRICITY!AA23="","A",VAL_MONTHLY_ELECTRICITY!AA23),"") ->  | AE27: =IF(VAL_MONTHLY_ELECTRICITY!AB$3="Y",IF(VAL_MONTHLY_ELECTRICITY!AB23="","F",VAL_MONTHLY_ELECTRICITY!AB23),"") ->  | AF27: =IF(VAL_MONTHLY_ELECTRICITY!AE$3="Y",ROUND(VAL_MONTHLY_ELECTRICITY!AC23,3),"") ->  | AG27: =IF(VAL_MONTHLY_ELECTRICITY!AE$3="Y",IF(VAL_MONTHLY_ELECTRICITY!AD23="","A",VAL_MONTHLY_ELECTRICITY!AD23),"") ->  | AH27: =IF(VAL_MONTHLY_ELECTRICITY!AE$3="Y",IF(VAL_MONTHLY_ELECTRICITY!AE23="","F",VAL_MONTHLY_ELECTRICITY!AE23),"") ->  | AI27: =IF(VAL_MONTHLY_ELECTRICITY!AH$3="Y",ROUND(VAL_MONTHLY_ELECTRICITY!AF23,3),"") -> 0 | AJ27: =IF(VAL_MONTHLY_ELECTRICITY!AH$3="Y",IF(VAL_MONTHLY_ELECTRICITY!AG23="","A",VAL_MONTHLY_ELECTRICITY!AG23),"") -> A | AK27: =IF(VAL_MONTHLY_ELECTRICITY!AH$3="Y",IF(VAL_MONTHLY_ELECTRICITY!AH23="","F",VAL_MONTHLY_ELECTRICITY!AH23),"") -> F | AL27: =IF(VAL_MONTHLY_ELECTRICITY!AK$3="Y",ROUND(VAL_MONTHLY_ELECTRICITY!AI23,3),"") -> 0 | AM27: =IF(VAL_MONTHLY_ELECTRICITY!AK$3="Y",IF(VAL_MONTHLY_ELECTRICITY!AJ23="","A",VAL_MONTHLY_ELECTRICITY!AJ23),"") -> A | AN27: =IF(VAL_MONTHLY_ELECTRICITY!AK$3="Y",IF(VAL_MONTHLY_ELECTRICITY!AK23="","F",VAL_MONTHLY_ELECTRICITY!AK23),"") -> F | AO27: =IF(VAL_MONTHLY_ELECTRICITY!AN$3="Y",ROUND(VAL_MONTHLY_ELECTRICITY!AL23,3),"") -> 0 | AP27: =IF(VAL_MONTHLY_ELECTRICITY!AN$3="Y",IF(VAL_MONTHLY_ELECTRICITY!AM23="","A",VAL_MONTHLY_ELECTRICITY!AM23),"") -> A | AQ27: =IF(VAL_MONTHLY_ELECTRICITY!AN$3="Y",IF(VAL_MONTHLY_ELECTRICITY!AN23="","F",VAL_MONTHLY_ELECTRICITY!AN23),"") -> F
C28: NETPROD | D28: _Z | E28: GEOTHERM | F28: _Z | G28: Geothermal | H28: =IF(VAL_MONTHLY_ELECTRICITY!G$3="Y",ROUND(VAL_MONTHLY_ELECTRICITY!E24,3),"") ->  | I28: =IF(VAL_MONTHLY_ELECTRICITY!G$3="Y",IF(VAL_MONTHLY_ELECTRICITY!F24="","A",VAL_MONTHLY_ELECTRICITY!F24),"") ->  | J28: =IF(VAL_MONTHLY_ELECTRICITY!G$3="Y",IF(VAL_MONTHLY_ELECTRICITY!G24="","F",VAL_MONTHLY_ELECTRICITY!G24),"") ->  | K28: =IF(VAL_MONTHLY_ELECTRICITY!J$3="Y",ROUND(VAL_MONTHLY_ELECTRICITY!H24,3),"") ->  | L28: =IF(VAL_MONTHLY_ELECTRICITY!J$3="Y",IF(VAL_MONTHLY_ELECTRICITY!I24="","A",VAL_MONTHLY_ELECTRICITY!I24),"") ->  | M28: =IF(VAL_MONTHLY_ELECTRICITY!J$3="Y",IF(VAL_MONTHLY_ELECTRICITY!J24="","F",VAL_MONTHLY_ELECTRICITY!J24),"") ->  | N28: =IF(VAL_MONTHLY_ELECTRICITY!M$3="Y",ROUND(VAL_MONTHLY_ELECTRICITY!K24,3),"") ->  | O28: =IF(VAL_MONTHLY_ELECTRICITY!M$3="Y",IF(VAL_MONTHLY_ELECTRICITY!L24="","A",VAL_MONTHLY_ELECTRICITY!L24),"") ->  | P28: =IF(VAL_MONTHLY_ELECTRICITY!M$3="Y",IF(VAL_MONTHLY_ELECTRICITY!M24="","F",VAL_MONTHLY_ELECTRICITY!M24),"") ->  | Q28: =IF(VAL_MONTHLY_ELECTRICITY!P$3="Y",ROUND(VAL_MONTHLY_ELECTRICITY!N24,3),"") -> 0 | R28: =IF(VAL_MONTHLY_ELECTRICITY!P$3="Y",IF(VAL_MONTHLY_ELECTRICITY!O24="","A",VAL_MONTHLY_ELECTRICITY!O24),"") -> A | S28: =IF(VAL_MONTHLY_ELECTRICITY!P$3="Y",IF(VAL_MONTHLY_ELECTRICITY!P24="","F",VAL_MONTHLY_ELECTRICITY!P24),"") -> F | T28: =IF(VAL_MONTHLY_ELECTRICITY!S$3="Y",ROUND(VAL_MONTHLY_ELECTRICITY!Q24,3),"") -> 0 | U28: =IF(VAL_MONTHLY_ELECTRICITY!S$3="Y",IF(VAL_MONTHLY_ELECTRICITY!R24="","A",VAL_MONTHLY_ELECTRICITY!R24),"") -> A | V28: =IF(VAL_MONTHLY_ELECTRICITY!S$3="Y",IF(VAL_MONTHLY_ELECTRICITY!S24="","F",VAL_MONTHLY_ELECTRICITY!S24),"") -> F | W28: =IF(VAL_MONTHLY_ELECTRICITY!V$3="Y",ROUND(VAL_MONTHLY_ELECTRICITY!T24,3),"") ->  | X28: =IF(VAL_MONTHLY_ELECTRICITY!V$3="Y",IF(VAL_MONTHLY_ELECTRICITY!U24="","A",VAL_MONTHLY_ELECTRICITY!U24),"") ->  | Y28: =IF(VAL_MONTHLY_ELECTRICITY!V$3="Y",IF(VAL_MONTHLY_ELECTRICITY!V24="","F",VAL_MONTHLY_ELECTRICITY!V24),"") ->  | Z28: =IF(VAL_MONTHLY_ELECTRICITY!Y$3="Y",ROUND(VAL_MONTHLY_ELECTRICITY!W24,3),"") ->  | AA28: =IF(VAL_MONTHLY_ELECTRICITY!Y$3="Y",IF(VAL_MONTHLY_ELECTRICITY!X24="","A",VAL_MONTHLY_ELECTRICITY!X24),"") ->  | AB28: =IF(VAL_MONTHLY_ELECTRICITY!Y$3="Y",IF(VAL_MONTHLY_ELECTRICITY!Y24="","F",VAL_MONTHLY_ELECTRICITY!Y24),"") ->  | AC28: =IF(VAL_MONTHLY_ELECTRICITY!AB$3="Y",ROUND(VAL_MONTHLY_ELECTRICITY!Z24,3),"") ->  | AD28: =IF(VAL_MONTHLY_ELECTRICITY!AB$3="Y",IF(VAL_MONTHLY_ELECTRICITY!AA24="","A",VAL_MONTHLY_ELECTRICITY!AA24),"") ->  | AE28: =IF(VAL_MONTHLY_ELECTRICITY!AB$3="Y",IF(VAL_MONTHLY_ELECTRICITY!AB24="","F",VAL_MONTHLY_ELECTRICITY!AB24),"") ->  | AF28: =IF(VAL_MONTHLY_ELECTRICITY!AE$3="Y",ROUND(VAL_MONTHLY_ELECTRICITY!AC24,3),"") ->  | AG28: =IF(VAL_MONTHLY_ELECTRICITY!AE$3="Y",IF(VAL_MONTHLY_ELECTRICITY!AD24="","A",VAL_MONTHLY_ELECTRICITY!AD24),"") ->  | AH28: =IF(VAL_MONTHLY_ELECTRICITY!AE$3="Y",IF(VAL_MONTHLY_ELECTRICITY!AE24="","F",VAL_MONTHLY_ELECTRICITY!AE24),"") ->  | AI28: =IF(VAL_MONTHLY_ELECTRICITY!AH$3="Y",ROUND(VAL_MONTHLY_ELECTRICITY!AF24,3),"") -> 0 | AJ28: =IF(VAL_MONTHLY_ELECTRICITY!AH$3="Y",IF(VAL_MONTHLY_ELECTRICITY!AG24="","A",VAL_MONTHLY_ELECTRICITY!AG24),"") -> A | AK28: =IF(VAL_MONTHLY_ELECTRICITY!AH$3="Y",IF(VAL_MONTHLY_ELECTRICITY!AH24="","F",VAL_MONTHLY_ELECTRICITY!AH24),"") -> F | AL28: =IF(VAL_MONTHLY_ELECTRICITY!AK$3="Y",ROUND(VAL_MONTHLY_ELECTRICITY!AI24,3),"") -> 0 | AM28: =IF(VAL_MONTHLY_ELECTRICITY!AK$3="Y",IF(VAL_MONTHLY_ELECTRICITY!AJ24="","A",VAL_MONTHLY_ELECTRICITY!AJ24),"") -> A | AN28: =IF(VAL_MONTHLY_ELECTRICITY!AK$3="Y",IF(VAL_MONTHLY_ELECTRICITY!AK24="","F",VAL_MONTHLY_ELECTRICITY!AK24),"") -> F | AO28: =IF(VAL_MONTHLY_ELECTRICITY!AN$3="Y",ROUND(VAL_MONTHLY_ELECTRICITY!AL24,3),"") -> 0 | AP28: =IF(VAL_MONTHLY_ELECTRICITY!AN$3="Y",IF(VAL_MONTHLY_ELECTRICITY!AM24="","A",VAL_MONTHLY_ELECTRICITY!AM24),"") -> A | AQ28: =IF(VAL_MONTHLY_ELECTRICITY!AN$3="Y",IF(VAL_MONTHLY_ELECTRICITY!AN24="","F",VAL_MONTHLY_ELECTRICITY!AN24),"") -> F
C29: NETPROD | D29: _Z | E29: TIDE | F29: _Z | G29: Other renewable sources | H29: =IF(VAL_MONTHLY_ELECTRICITY!G$3="Y",ROUND(VAL_MONTHLY_ELECTRICITY!E25,3),"") ->  | I29: =IF(VAL_MONTHLY_ELECTRICITY!G$3="Y",IF(VAL_MONTHLY_ELECTRICITY!F25="","A",VAL_MONTHLY_ELECTRICITY!F25),"") ->  | J29: =IF(VAL_MONTHLY_ELECTRICITY!G$3="Y",IF(VAL_MONTHLY_ELECTRICITY!G25="","F",VAL_MONTHLY_ELECTRICITY!G25),"") ->  | K29: =IF(VAL_MONTHLY_ELECTRICITY!J$3="Y",ROUND(VAL_MONTHLY_ELECTRICITY!H25,3),"") ->  | L29: =IF(VAL_MONTHLY_ELECTRICITY!J$3="Y",IF(VAL_MONTHLY_ELECTRICITY!I25="","A",VAL_MONTHLY_ELECTRICITY!I25),"") ->  | M29: =IF(VAL_MONTHLY_ELECTRICITY!J$3="Y",IF(VAL_MONTHLY_ELECTRICITY!J25="","F",VAL_MONTHLY_ELECTRICITY!J25),"") ->  | N29: =IF(VAL_MONTHLY_ELECTRICITY!M$3="Y",ROUND(VAL_MONTHLY_ELECTRICITY!K25,3),"") ->  | O29: =IF(VAL_MONTHLY_ELECTRICITY!M$3="Y",IF(VAL_MONTHLY_ELECTRICITY!L25="","A",VAL_MONTHLY_ELECTRICITY!L25),"") ->  | P29: =IF(VAL_MONTHLY_ELECTRICITY!M$3="Y",IF(VAL_MONTHLY_ELECTRICITY!M25="","F",VAL_MONTHLY_ELECTRICITY!M25),"") ->  | Q29: =IF(VAL_MONTHLY_ELECTRICITY!P$3="Y",ROUND(VAL_MONTHLY_ELECTRICITY!N25,3),"") -> 0 | R29: =IF(VAL_MONTHLY_ELECTRICITY!P$3="Y",IF(VAL_MONTHLY_ELECTRICITY!O25="","A",VAL_MONTHLY_ELECTRICITY!O25),"") -> A | S29: =IF(VAL_MONTHLY_ELECTRICITY!P$3="Y",IF(VAL_MONTHLY_ELECTRICITY!P25="","F",VAL_MONTHLY_ELECTRICITY!P25),"") -> F | T29: =IF(VAL_MONTHLY_ELECTRICITY!S$3="Y",ROUND(VAL_MONTHLY_ELECTRICITY!Q25,3),"") -> 0 | U29: =IF(VAL_MONTHLY_ELECTRICITY!S$3="Y",IF(VAL_MONTHLY_ELECTRICITY!R25="","A",VAL_MONTHLY_ELECTRICITY!R25),"") -> A | V29: =IF(VAL_MONTHLY_ELECTRICITY!S$3="Y",IF(VAL_MONTHLY_ELECTRICITY!S25="","F",VAL_MONTHLY_ELECTRICITY!S25),"") -> F | W29: =IF(VAL_MONTHLY_ELECTRICITY!V$3="Y",ROUND(VAL_MONTHLY_ELECTRICITY!T25,3),"") ->  | X29: =IF(VAL_MONTHLY_ELECTRICITY!V$3="Y",IF(VAL_MONTHLY_ELECTRICITY!U25="","A",VAL_MONTHLY_ELECTRICITY!U25),"") ->  | Y29: =IF(VAL_MONTHLY_ELECTRICITY!V$3="Y",IF(VAL_MONTHLY_ELECTRICITY!V25="","F",VAL_MONTHLY_ELECTRICITY!V25),"") ->  | Z29: =IF(VAL_MONTHLY_ELECTRICITY!Y$3="Y",ROUND(VAL_MONTHLY_ELECTRICITY!W25,3),"") ->  | AA29: =IF(VAL_MONTHLY_ELECTRICITY!Y$3="Y",IF(VAL_MONTHLY_ELECTRICITY!X25="","A",VAL_MONTHLY_ELECTRICITY!X25),"") ->  | AB29: =IF(VAL_MONTHLY_ELECTRICITY!Y$3="Y",IF(VAL_MONTHLY_ELECTRICITY!Y25="","F",VAL_MONTHLY_ELECTRICITY!Y25),"") ->  | AC29: =IF(VAL_MONTHLY_ELECTRICITY!AB$3="Y",ROUND(VAL_MONTHLY_ELECTRICITY!Z25,3),"") ->  | AD29: =IF(VAL_MONTHLY_ELECTRICITY!AB$3="Y",IF(VAL_MONTHLY_ELECTRICITY!AA25="","A",VAL_MONTHLY_ELECTRICITY!AA25),"") ->  | AE29: =IF(VAL_MONTHLY_ELECTRICITY!AB$3="Y",IF(VAL_MONTHLY_ELECTRICITY!AB25="","F",VAL_MONTHLY_ELECTRICITY!AB25),"") ->  | AF29: =IF(VAL_MONTHLY_ELECTRICITY!AE$3="Y",ROUND(VAL_MONTHLY_ELECTRICITY!AC25,3),"") ->  | AG29: =IF(VAL_MONTHLY_ELECTRICITY!AE$3="Y",IF(VAL_MONTHLY_ELECTRICITY!AD25="","A",VAL_MONTHLY_ELECTRICITY!AD25),"") ->  | AH29: =IF(VAL_MONTHLY_ELECTRICITY!AE$3="Y",IF(VAL_MONTHLY_ELECTRICITY!AE25="","F",VAL_MONTHLY_ELECTRICITY!AE25),"") ->  | AI29: =IF(VAL_MONTHLY_ELECTRICITY!AH$3="Y",ROUND(VAL_MONTHLY_ELECTRICITY!AF25,3),"") -> 0 | AJ29: =IF(VAL_MONTHLY_ELECTRICITY!AH$3="Y",IF(VAL_MONTHLY_ELECTRICITY!AG25="","A",VAL_MONTHLY_ELECTRICITY!AG25),"") -> A | AK29: =IF(VAL_MONTHLY_ELECTRICITY!AH$3="Y",IF(VAL_MONTHLY_ELECTRICITY!AH25="","F",VAL_MONTHLY_ELECTRICITY!AH25),"") -> F | AL29: =IF(VAL_MONTHLY_ELECTRICITY!AK$3="Y",ROUND(VAL_MONTHLY_ELECTRICITY!AI25,3),"") -> 0 | AM29: =IF(VAL_MONTHLY_ELECTRICITY!AK$3="Y",IF(VAL_MONTHLY_ELECTRICITY!AJ25="","A",VAL_MONTHLY_ELECTRICITY!AJ25),"") -> A | AN29: =IF(VAL_MONTHLY_ELECTRICITY!AK$3="Y",IF(VAL_MONTHLY_ELECTRICITY!AK25="","F",VAL_MONTHLY_ELECTRICITY!AK25),"") -> F | AO29: =IF(VAL_MONTHLY_ELECTRICITY!AN$3="Y",ROUND(VAL_MONTHLY_ELECTRICITY!AL25,3),"") -> 0 | AP29: =IF(VAL_MONTHLY_ELECTRICITY!AN$3="Y",IF(VAL_MONTHLY_ELECTRICITY!AM25="","A",VAL_MONTHLY_ELECTRICITY!AM25),"") -> A | AQ29: =IF(VAL_MONTHLY_ELECTRICITY!AN$3="Y",IF(VAL_MONTHLY_ELECTRICITY!AN25="","F",VAL_MONTHLY_ELECTRICITY!AN25),"") -> F
C30: NETPROD | D30: _Z | E30: OTHGEN | F30: _Z | G30: Not specified | H30: =IF(VAL_MONTHLY_ELECTRICITY!G$3="Y",ROUND(VAL_MONTHLY_ELECTRICITY!E26,3),"") ->  | I30: =IF(VAL_MONTHLY_ELECTRICITY!G$3="Y",IF(VAL_MONTHLY_ELECTRICITY!F26="","A",VAL_MONTHLY_ELECTRICITY!F26),"") ->  | J30: =IF(VAL_MONTHLY_ELECTRICITY!G$3="Y",IF(VAL_MONTHLY_ELECTRICITY!G26="","F",VAL_MONTHLY_ELECTRICITY!G26),"") ->  | K30: =IF(VAL_MONTHLY_ELECTRICITY!J$3="Y",ROUND(VAL_MONTHLY_ELECTRICITY!H26,3),"") ->  | L30: =IF(VAL_MONTHLY_ELECTRICITY!J$3="Y",IF(VAL_MONTHLY_ELECTRICITY!I26="","A",VAL_MONTHLY_ELECTRICITY!I26),"") ->  | M30: =IF(VAL_MONTHLY_ELECTRICITY!J$3="Y",IF(VAL_MONTHLY_ELECTRICITY!J26="","F",VAL_MONTHLY_ELECTRICITY!J26),"") ->  | N30: =IF(VAL_MONTHLY_ELECTRICITY!M$3="Y",ROUND(VAL_MONTHLY_ELECTRICITY!K26,3),"") ->  | O30: =IF(VAL_MONTHLY_ELECTRICITY!M$3="Y",IF(VAL_MONTHLY_ELECTRICITY!L26="","A",VAL_MONTHLY_ELECTRICITY!L26),"") ->  | P30: =IF(VAL_MONTHLY_ELECTRICITY!M$3="Y",IF(VAL_MONTHLY_ELECTRICITY!M26="","F",VAL_MONTHLY_ELECTRICITY!M26),"") ->  | Q30: =IF(VAL_MONTHLY_ELECTRICITY!P$3="Y",ROUND(VAL_MONTHLY_ELECTRICITY!N26,3),"") -> 0 | R30: =IF(VAL_MONTHLY_ELECTRICITY!P$3="Y",IF(VAL_MONTHLY_ELECTRICITY!O26="","A",VAL_MONTHLY_ELECTRICITY!O26),"") -> A | S30: =IF(VAL_MONTHLY_ELECTRICITY!P$3="Y",IF(VAL_MONTHLY_ELECTRICITY!P26="","F",VAL_MONTHLY_ELECTRICITY!P26),"") -> F | T30: =IF(VAL_MONTHLY_ELECTRICITY!S$3="Y",ROUND(VAL_MONTHLY_ELECTRICITY!Q26,3),"") -> 0 | U30: =IF(VAL_MONTHLY_ELECTRICITY!S$3="Y",IF(VAL_MONTHLY_ELECTRICITY!R26="","A",VAL_MONTHLY_ELECTRICITY!R26),"") -> A | V30: =IF(VAL_MONTHLY_ELECTRICITY!S$3="Y",IF(VAL_MONTHLY_ELECTRICITY!S26="","F",VAL_MONTHLY_ELECTRICITY!S26),"") -> F | W30: =IF(VAL_MONTHLY_ELECTRICITY!V$3="Y",ROUND(VAL_MONTHLY_ELECTRICITY!T26,3),"") ->  | X30: =IF(VAL_MONTHLY_ELECTRICITY!V$3="Y",IF(VAL_MONTHLY_ELECTRICITY!U26="","A",VAL_MONTHLY_ELECTRICITY!U26),"") ->  | Y30: =IF(VAL_MONTHLY_ELECTRICITY!V$3="Y",IF(VAL_MONTHLY_ELECTRICITY!V26="","F",VAL_MONTHLY_ELECTRICITY!V26),"") ->  | Z30: =IF(VAL_MONTHLY_ELECTRICITY!Y$3="Y",ROUND(VAL_MONTHLY_ELECTRICITY!W26,3),"") ->  | AA30: =IF(VAL_MONTHLY_ELECTRICITY!Y$3="Y",IF(VAL_MONTHLY_ELECTRICITY!X26="","A",VAL_MONTHLY_ELECTRICITY!X26),"") ->  | AB30: =IF(VAL_MONTHLY_ELECTRICITY!Y$3="Y",IF(VAL_MONTHLY_ELECTRICITY!Y26="","F",VAL_MONTHLY_ELECTRICITY!Y26),"") ->  | AC30: =IF(VAL_MONTHLY_ELECTRICITY!AB$3="Y",ROUND(VAL_MONTHLY_ELECTRICITY!Z26,3),"") ->  | AD30: =IF(VAL_MONTHLY_ELECTRICITY!AB$3="Y",IF(VAL_MONTHLY_ELECTRICITY!AA26="","A",VAL_MONTHLY_ELECTRICITY!AA26),"") ->  | AE30: =IF(VAL_MONTHLY_ELECTRICITY!AB$3="Y",IF(VAL_MONTHLY_ELECTRICITY!AB26="","F",VAL_MONTHLY_ELECTRICITY!AB26),"") ->  | AF30: =IF(VAL_MONTHLY_ELECTRICITY!AE$3="Y",ROUND(VAL_MONTHLY_ELECTRICITY!AC26,3),"") ->  | AG30: =IF(VAL_MONTHLY_ELECTRICITY!AE$3="Y",IF(VAL_MONTHLY_ELECTRICITY!AD26="","A",VAL_MONTHLY_ELECTRICITY!AD26),"") ->  | AH30: =IF(VAL_MONTHLY_ELECTRICITY!AE$3="Y",IF(VAL_MONTHLY_ELECTRICITY!AE26="","F",VAL_MONTHLY_ELECTRICITY!AE26),"") ->  | AI30: =IF(VAL_MONTHLY_ELECTRICITY!AH$3="Y",ROUND(VAL_MONTHLY_ELECTRICITY!AF26,3),"") -> 0 | AJ30: =IF(VAL_MONTHLY_ELECTRICITY!AH$3="Y",IF(VAL_MONTHLY_ELECTRICITY!AG26="","A",VAL_MONTHLY_ELECTRICITY!AG26),"") -> A | AK30: =IF(VAL_MONTHLY_ELECTRICITY!AH$3="Y",IF(VAL_MONTHLY_ELECTRICITY!AH26="","F",VAL_MONTHLY_ELECTRICITY!AH26),"") -> F | AL30: =IF(VAL_MONTHLY_ELECTRICITY!AK$3="Y",ROUND(VAL_MONTHLY_ELECTRICITY!AI26,3),"") -> 0 | AM30: =IF(VAL_MONTHLY_ELECTRICITY!AK$3="Y",IF(VAL_MONTHLY_ELECTRICITY!AJ26="","A",VAL_MONTHLY_ELECTRICITY!AJ26),"") -> A | AN30: =IF(VAL_MONTHLY_ELECTRICITY!AK$3="Y",IF(VAL_MONTHLY_ELECTRICITY!AK26="","F",VAL_MONTHLY_ELECTRICITY!AK26),"") -> F | AO30: =IF(VAL_MONTHLY_ELECTRICITY!AN$3="Y",ROUND(VAL_MONTHLY_ELECTRICITY!AL26,3),"") -> 0 | AP30: =IF(VAL_MONTHLY_ELECTRICITY!AN$3="Y",IF(VAL_MONTHLY_ELECTRICITY!AM26="","A",VAL_MONTHLY_ELECTRICITY!AM26),"") -> A | AQ30: =IF(VAL_MONTHLY_ELECTRICITY!AN$3="Y",IF(VAL_MONTHLY_ELECTRICITY!AN26="","F",VAL_MONTHLY_ELECTRICITY!AN26),"") -> F
C31: IMPORTS | D31: TOTIMPSB | E31: _Z | F31: _Z | G31: Total imports | H31: =IF(VAL_MONTHLY_ELECTRICITY!G$3="Y",ROUND(VAL_MONTHLY_ELECTRICITY!E30,3),"") ->  | I31: =IF(VAL_MONTHLY_ELECTRICITY!G$3="Y",IF(VAL_MONTHLY_ELECTRICITY!F30="","A",VAL_MONTHLY_ELECTRICITY!F30),"") ->  | J31: =IF(VAL_MONTHLY_ELECTRICITY!G$3="Y",IF(VAL_MONTHLY_ELECTRICITY!G30="","F",VAL_MONTHLY_ELECTRICITY!G30),"") ->  | K31: =IF(VAL_MONTHLY_ELECTRICITY!J$3="Y",ROUND(VAL_MONTHLY_ELECTRICITY!H30,3),"") ->  | L31: =IF(VAL_MONTHLY_ELECTRICITY!J$3="Y",IF(VAL_MONTHLY_ELECTRICITY!I30="","A",VAL_MONTHLY_ELECTRICITY!I30),"") ->  | M31: =IF(VAL_MONTHLY_ELECTRICITY!J$3="Y",IF(VAL_MONTHLY_ELECTRICITY!J30="","F",VAL_MONTHLY_ELECTRICITY!J30),"") ->  | N31: =IF(VAL_MONTHLY_ELECTRICITY!M$3="Y",ROUND(VAL_MONTHLY_ELECTRICITY!K30,3),"") ->  | O31: =IF(VAL_MONTHLY_ELECTRICITY!M$3="Y",IF(VAL_MONTHLY_ELECTRICITY!L30="","A",VAL_MONTHLY_ELECTRICITY!L30),"") ->  | P31: =IF(VAL_MONTHLY_ELECTRICITY!M$3="Y",IF(VAL_MONTHLY_ELECTRICITY!M30="","F",VAL_MONTHLY_ELECTRICITY!M30),"") ->  | Q31: =IF(VAL_MONTHLY_ELECTRICITY!P$3="Y",ROUND(VAL_MONTHLY_ELECTRICITY!N30,3),"") -> 173.811 | R31: =IF(VAL_MONTHLY_ELECTRICITY!P$3="Y",IF(VAL_MONTHLY_ELECTRICITY!O30="","A",VAL_MONTHLY_ELECTRICITY!O30),"") -> A | S31: =IF(VAL_MONTHLY_ELECTRICITY!P$3="Y",IF(VAL_MONTHLY_ELECTRICITY!P30="","F",VAL_MONTHLY_ELECTRICITY!P30),"") -> F | T31: =IF(VAL_MONTHLY_ELECTRICITY!S$3="Y",ROUND(VAL_MONTHLY_ELECTRICITY!Q30,3),"") -> 15.555 | U31: =IF(VAL_MONTHLY_ELECTRICITY!S$3="Y",IF(VAL_MONTHLY_ELECTRICITY!R30="","A",VAL_MONTHLY_ELECTRICITY!R30),"") -> A | V31: =IF(VAL_MONTHLY_ELECTRICITY!S$3="Y",IF(VAL_MONTHLY_ELECTRICITY!S30="","F",VAL_MONTHLY_ELECTRICITY!S30),"") -> F | W31: =IF(VAL_MONTHLY_ELECTRICITY!V$3="Y",ROUND(VAL_MONTHLY_ELECTRICITY!T30,3),"") ->  | X31: =IF(VAL_MONTHLY_ELECTRICITY!V$3="Y",IF(VAL_MONTHLY_ELECTRICITY!U30="","A",VAL_MONTHLY_ELECTRICITY!U30),"") ->  | Y31: =IF(VAL_MONTHLY_ELECTRICITY!V$3="Y",IF(VAL_MONTHLY_ELECTRICITY!V30="","F",VAL_MONTHLY_ELECTRICITY!V30),"") ->  | Z31: =IF(VAL_MONTHLY_ELECTRICITY!Y$3="Y",ROUND(VAL_MONTHLY_ELECTRICITY!W30,3),"") ->  | AA31: =IF(VAL_MONTHLY_ELECTRICITY!Y$3="Y",IF(VAL_MONTHLY_ELECTRICITY!X30="","A",VAL_MONTHLY_ELECTRICITY!X30),"") ->  | AB31: =IF(VAL_MONTHLY_ELECTRICITY!Y$3="Y",IF(VAL_MONTHLY_ELECTRICITY!Y30="","F",VAL_MONTHLY_ELECTRICITY!Y30),"") ->  | AC31: =IF(VAL_MONTHLY_ELECTRICITY!AB$3="Y",ROUND(VAL_MONTHLY_ELECTRICITY!Z30,3),"") ->  | AD31: =IF(VAL_MONTHLY_ELECTRICITY!AB$3="Y",IF(VAL_MONTHLY_ELECTRICITY!AA30="","A",VAL_MONTHLY_ELECTRICITY!AA30),"") ->  | AE31: =IF(VAL_MONTHLY_ELECTRICITY!AB$3="Y",IF(VAL_MONTHLY_ELECTRICITY!AB30="","F",VAL_MONTHLY_ELECTRICITY!AB30),"") ->  | AF31: =IF(VAL_MONTHLY_ELECTRICITY!AE$3="Y",ROUND(VAL_MONTHLY_ELECTRICITY!AC30,3),"") ->  | AG31: =IF(VAL_MONTHLY_ELECTRICITY!AE$3="Y",IF(VAL_MONTHLY_ELECTRICITY!AD30="","A",VAL_MONTHLY_ELECTRICITY!AD30),"") ->  | AH31: =IF(VAL_MONTHLY_ELECTRICITY!AE$3="Y",IF(VAL_MONTHLY_ELECTRICITY!AE30="","F",VAL_MONTHLY_ELECTRICITY!AE30),"") ->  | AI31: =IF(VAL_MONTHLY_ELECTRICITY!AH$3="Y",ROUND(VAL_MONTHLY_ELECTRICITY!AF30,3),"") -> 0 | AJ31: =IF(VAL_MONTHLY_ELECTRICITY!AH$3="Y",IF(VAL_MONTHLY_ELECTRICITY!AG30="","A",VAL_MONTHLY_ELECTRICITY!AG30),"") -> A | AK31: =IF(VAL_MONTHLY_ELECTRICITY!AH$3="Y",IF(VAL_MONTHLY_ELECTRICITY!AH30="","F",VAL_MONTHLY_ELECTRICITY!AH30),"") -> F | AL31: =IF(VAL_MONTHLY_ELECTRICITY!AK$3="Y",ROUND(VAL_MONTHLY_ELECTRICITY!AI30,3),"") -> 0 | AM31: =IF(VAL_MONTHLY_ELECTRICITY!AK$3="Y",IF(VAL_MONTHLY_ELECTRICITY!AJ30="","A",VAL_MONTHLY_ELECTRICITY!AJ30),"") -> A | AN31: =IF(VAL_MONTHLY_ELECTRICITY!AK$3="Y",IF(VAL_MONTHLY_ELECTRICITY!AK30="","F",VAL_MONTHLY_ELECTRICITY!AK30),"") -> F | AO31: =IF(VAL_MONTHLY_ELECTRICITY!AN$3="Y",ROUND(VAL_MONTHLY_ELECTRICITY!AL30,3),"") -> 0 | AP31: =IF(VAL_MONTHLY_ELECTRICITY!AN$3="Y",IF(VAL_MONTHLY_ELECTRICITY!AM30="","A",VAL_MONTHLY_ELECTRICITY!AM30),"") -> A | AQ31: =IF(VAL_MONTHLY_ELECTRICITY!AN$3="Y",IF(VAL_MONTHLY_ELECTRICITY!AN30="","F",VAL_MONTHLY_ELECTRICITY!AN30),"") -> F
C32: IMPORTS | D32: _Z | E32: _Z | F32: B0 | G32: out of which from EU | H32: =IF(VAL_MONTHLY_ELECTRICITY!G$3="Y",ROUND(VAL_MONTHLY_ELECTRICITY!E31,3),"") ->  | I32: =IF(VAL_MONTHLY_ELECTRICITY!G$3="Y",IF(VAL_MONTHLY_ELECTRICITY!F31="","A",VAL_MONTHLY_ELECTRICITY!F31),"") ->  | J32: =IF(VAL_MONTHLY_ELECTRICITY!G$3="Y",IF(VAL_MONTHLY_ELECTRICITY!G31="","F",VAL_MONTHLY_ELECTRICITY!G31),"") ->  | K32: =IF(VAL_MONTHLY_ELECTRICITY!J$3="Y",ROUND(VAL_MONTHLY_ELECTRICITY!H31,3),"") ->  | L32: =IF(VAL_MONTHLY_ELECTRICITY!J$3="Y",IF(VAL_MONTHLY_ELECTRICITY!I31="","A",VAL_MONTHLY_ELECTRICITY!I31),"") ->  | M32: =IF(VAL_MONTHLY_ELECTRICITY!J$3="Y",IF(VAL_MONTHLY_ELECTRICITY!J31="","F",VAL_MONTHLY_ELECTRICITY!J31),"") ->  | N32: =IF(VAL_MONTHLY_ELECTRICITY!M$3="Y",ROUND(VAL_MONTHLY_ELECTRICITY!K31,3),"") ->  | O32: =IF(VAL_MONTHLY_ELECTRICITY!M$3="Y",IF(VAL_MONTHLY_ELECTRICITY!L31="","A",VAL_MONTHLY_ELECTRICITY!L31),"") ->  | P32: =IF(VAL_MONTHLY_ELECTRICITY!M$3="Y",IF(VAL_MONTHLY_ELECTRICITY!M31="","F",VAL_MONTHLY_ELECTRICITY!M31),"") ->  | Q32: =IF(VAL_MONTHLY_ELECTRICITY!P$3="Y",ROUND(VAL_MONTHLY_ELECTRICITY!N31,3),"") -> 0 | R32: =IF(VAL_MONTHLY_ELECTRICITY!P$3="Y",IF(VAL_MONTHLY_ELECTRICITY!O31="","A",VAL_MONTHLY_ELECTRICITY!O31),"") -> A | S32: =IF(VAL_MONTHLY_ELECTRICITY!P$3="Y",IF(VAL_MONTHLY_ELECTRICITY!P31="","F",VAL_MONTHLY_ELECTRICITY!P31),"") -> F | T32: =IF(VAL_MONTHLY_ELECTRICITY!S$3="Y",ROUND(VAL_MONTHLY_ELECTRICITY!Q31,3),"") -> 0 | U32: =IF(VAL_MONTHLY_ELECTRICITY!S$3="Y",IF(VAL_MONTHLY_ELECTRICITY!R31="","A",VAL_MONTHLY_ELECTRICITY!R31),"") -> A | V32: =IF(VAL_MONTHLY_ELECTRICITY!S$3="Y",IF(VAL_MONTHLY_ELECTRICITY!S31="","F",VAL_MONTHLY_ELECTRICITY!S31),"") -> F | W32: =IF(VAL_MONTHLY_ELECTRICITY!V$3="Y",ROUND(VAL_MONTHLY_ELECTRICITY!T31,3),"") ->  | X32: =IF(VAL_MONTHLY_ELECTRICITY!V$3="Y",IF(VAL_MONTHLY_ELECTRICITY!U31="","A",VAL_MONTHLY_ELECTRICITY!U31),"") ->  | Y32: =IF(VAL_MONTHLY_ELECTRICITY!V$3="Y",IF(VAL_MONTHLY_ELECTRICITY!V31="","F",VAL_MONTHLY_ELECTRICITY!V31),"") ->  | Z32: =IF(VAL_MONTHLY_ELECTRICITY!Y$3="Y",ROUND(VAL_MONTHLY_ELECTRICITY!W31,3),"") ->  | AA32: =IF(VAL_MONTHLY_ELECTRICITY!Y$3="Y",IF(VAL_MONTHLY_ELECTRICITY!X31="","A",VAL_MONTHLY_ELECTRICITY!X31),"") ->  | AB32: =IF(VAL_MONTHLY_ELECTRICITY!Y$3="Y",IF(VAL_MONTHLY_ELECTRICITY!Y31="","F",VAL_MONTHLY_ELECTRICITY!Y31),"") ->  | AC32: =IF(VAL_MONTHLY_ELECTRICITY!AB$3="Y",ROUND(VAL_MONTHLY_ELECTRICITY!Z31,3),"") ->  | AD32: =IF(VAL_MONTHLY_ELECTRICITY!AB$3="Y",IF(VAL_MONTHLY_ELECTRICITY!AA31="","A",VAL_MONTHLY_ELECTRICITY!AA31),"") ->  | AE32: =IF(VAL_MONTHLY_ELECTRICITY!AB$3="Y",IF(VAL_MONTHLY_ELECTRICITY!AB31="","F",VAL_MONTHLY_ELECTRICITY!AB31),"") ->  | AF32: =IF(VAL_MONTHLY_ELECTRICITY!AE$3="Y",ROUND(VAL_MONTHLY_ELECTRICITY!AC31,3),"") ->  | AG32: =IF(VAL_MONTHLY_ELECTRICITY!AE$3="Y",IF(VAL_MONTHLY_ELECTRICITY!AD31="","A",VAL_MONTHLY_ELECTRICITY!AD31),"") ->  | AH32: =IF(VAL_MONTHLY_ELECTRICITY!AE$3="Y",IF(VAL_MONTHLY_ELECTRICITY!AE31="","F",VAL_MONTHLY_ELECTRICITY!AE31),"") ->  | AI32: =IF(VAL_MONTHLY_ELECTRICITY!AH$3="Y",ROUND(VAL_MONTHLY_ELECTRICITY!AF31,3),"") -> 0 | AJ32: =IF(VAL_MONTHLY_ELECTRICITY!AH$3="Y",IF(VAL_MONTHLY_ELECTRICITY!AG31="","A",VAL_MONTHLY_ELECTRICITY!AG31),"") -> A | AK32: =IF(VAL_MONTHLY_ELECTRICITY!AH$3="Y",IF(VAL_MONTHLY_ELECTRICITY!AH31="","F",VAL_MONTHLY_ELECTRICITY!AH31),"") -> F | AL32: =IF(VAL_MONTHLY_ELECTRICITY!AK$3="Y",ROUND(VAL_MONTHLY_ELECTRICITY!AI31,3),"") -> 0 | AM32: =IF(VAL_MONTHLY_ELECTRICITY!AK$3="Y",IF(VAL_MONTHLY_ELECTRICITY!AJ31="","A",VAL_MONTHLY_ELECTRICITY!AJ31),"") -> A | AN32: =IF(VAL_MONTHLY_ELECTRICITY!AK$3="Y",IF(VAL_MONTHLY_ELECTRICITY!AK31="","F",VAL_MONTHLY_ELECTRICITY!AK31),"") -> F | AO32: =IF(VAL_MONTHLY_ELECTRICITY!AN$3="Y",ROUND(VAL_MONTHLY_ELECTRICITY!AL31,3),"") -> 0 | AP32: =IF(VAL_MONTHLY_ELECTRICITY!AN$3="Y",IF(VAL_MONTHLY_ELECTRICITY!AM31="","A",VAL_MONTHLY_ELECTRICITY!AM31),"") -> A | AQ32: =IF(VAL_MONTHLY_ELECTRICITY!AN$3="Y",IF(VAL_MONTHLY_ELECTRICITY!AN31="","F",VAL_MONTHLY_ELECTRICITY!AN31),"") -> F
C33: EXPORTS | D33: TOTEXPSB | E33: _Z | F33: _Z | G33: Total exports | H33: =IF(VAL_MONTHLY_ELECTRICITY!G$3="Y",ROUND(VAL_MONTHLY_ELECTRICITY!E32,3),"") ->  | I33: =IF(VAL_MONTHLY_ELECTRICITY!G$3="Y",IF(VAL_MONTHLY_ELECTRICITY!F32="","A",VAL_MONTHLY_ELECTRICITY!F32),"") ->  | J33: =IF(VAL_MONTHLY_ELECTRICITY!G$3="Y",IF(VAL_MONTHLY_ELECTRICITY!G32="","F",VAL_MONTHLY_ELECTRICITY!G32),"") ->  | K33: =IF(VAL_MONTHLY_ELECTRICITY!J$3="Y",ROUND(VAL_MONTHLY_ELECTRICITY!H32,3),"") ->  | L33: =IF(VAL_MONTHLY_ELECTRICITY!J$3="Y",IF(VAL_MONTHLY_ELECTRICITY!I32="","A",VAL_MONTHLY_ELECTRICITY!I32),"") ->  | M33: =IF(VAL_MONTHLY_ELECTRICITY!J$3="Y",IF(VAL_MONTHLY_ELECTRICITY!J32="","F",VAL_MONTHLY_ELECTRICITY!J32),"") ->  | N33: =IF(VAL_MONTHLY_ELECTRICITY!M$3="Y",ROUND(VAL_MONTHLY_ELECTRICITY!K32,3),"") ->  | O33: =IF(VAL_MONTHLY_ELECTRICITY!M$3="Y",IF(VAL_MONTHLY_ELECTRICITY!L32="","A",VAL_MONTHLY_ELECTRICITY!L32),"") ->  | P33: =IF(VAL_MONTHLY_ELECTRICITY!M$3="Y",IF(VAL_MONTHLY_ELECTRICITY!M32="","F",VAL_MONTHLY_ELECTRICITY!M32),"") ->  | Q33: =IF(VAL_MONTHLY_ELECTRICITY!P$3="Y",ROUND(VAL_MONTHLY_ELECTRICITY!N32,3),"") -> 0.043 | R33: =IF(VAL_MONTHLY_ELECTRICITY!P$3="Y",IF(VAL_MONTHLY_ELECTRICITY!O32="","A",VAL_MONTHLY_ELECTRICITY!O32),"") -> A | S33: =IF(VAL_MONTHLY_ELECTRICITY!P$3="Y",IF(VAL_MONTHLY_ELECTRICITY!P32="","F",VAL_MONTHLY_ELECTRICITY!P32),"") -> F | T33: =IF(VAL_MONTHLY_ELECTRICITY!S$3="Y",ROUND(VAL_MONTHLY_ELECTRICITY!Q32,3),"") -> 1.11 | U33: =IF(VAL_MONTHLY_ELECTRICITY!S$3="Y",IF(VAL_MONTHLY_ELECTRICITY!R32="","A",VAL_MONTHLY_ELECTRICITY!R32),"") -> A | V33: =IF(VAL_MONTHLY_ELECTRICITY!S$3="Y",IF(VAL_MONTHLY_ELECTRICITY!S32="","F",VAL_MONTHLY_ELECTRICITY!S32),"") -> F | W33: =IF(VAL_MONTHLY_ELECTRICITY!V$3="Y",ROUND(VAL_MONTHLY_ELECTRICITY!T32,3),"") ->  | X33: =IF(VAL_MONTHLY_ELECTRICITY!V$3="Y",IF(VAL_MONTHLY_ELECTRICITY!U32="","A",VAL_MONTHLY_ELECTRICITY!U32),"") ->  | Y33: =IF(VAL_MONTHLY_ELECTRICITY!V$3="Y",IF(VAL_MONTHLY_ELECTRICITY!V32="","F",VAL_MONTHLY_ELECTRICITY!V32),"") ->  | Z33: =IF(VAL_MONTHLY_ELECTRICITY!Y$3="Y",ROUND(VAL_MONTHLY_ELECTRICITY!W32,3),"") ->  | AA33: =IF(VAL_MONTHLY_ELECTRICITY!Y$3="Y",IF(VAL_MONTHLY_ELECTRICITY!X32="","A",VAL_MONTHLY_ELECTRICITY!X32),"") ->  | AB33: =IF(VAL_MONTHLY_ELECTRICITY!Y$3="Y",IF(VAL_MONTHLY_ELECTRICITY!Y32="","F",VAL_MONTHLY_ELECTRICITY!Y32),"") ->  | AC33: =IF(VAL_MONTHLY_ELECTRICITY!AB$3="Y",ROUND(VAL_MONTHLY_ELECTRICITY!Z32,3),"") ->  | AD33: =IF(VAL_MONTHLY_ELECTRICITY!AB$3="Y",IF(VAL_MONTHLY_ELECTRICITY!AA32="","A",VAL_MONTHLY_ELECTRICITY!AA32),"") ->  | AE33: =IF(VAL_MONTHLY_ELECTRICITY!AB$3="Y",IF(VAL_MONTHLY_ELECTRICITY!AB32="","F",VAL_MONTHLY_ELECTRICITY!AB32),"") ->  | AF33: =IF(VAL_MONTHLY_ELECTRICITY!AE$3="Y",ROUND(VAL_MONTHLY_ELECTRICITY!AC32,3),"") ->  | AG33: =IF(VAL_MONTHLY_ELECTRICITY!AE$3="Y",IF(VAL_MONTHLY_ELECTRICITY!AD32="","A",VAL_MONTHLY_ELECTRICITY!AD32),"") ->  | AH33: =IF(VAL_MONTHLY_ELECTRICITY!AE$3="Y",IF(VAL_MONTHLY_ELECTRICITY!AE32="","F",VAL_MONTHLY_ELECTRICITY!AE32),"") ->  | AI33: =IF(VAL_MONTHLY_ELECTRICITY!AH$3="Y",ROUND(VAL_MONTHLY_ELECTRICITY!AF32,3),"") -> 0 | AJ33: =IF(VAL_MONTHLY_ELECTRICITY!AH$3="Y",IF(VAL_MONTHLY_ELECTRICITY!AG32="","A",VAL_MONTHLY_ELECTRICITY!AG32),"") -> A | AK33: =IF(VAL_MONTHLY_ELECTRICITY!AH$3="Y",IF(VAL_MONTHLY_ELECTRICITY!AH32="","F",VAL_MONTHLY_ELECTRICITY!AH32),"") -> F | AL33: =IF(VAL_MONTHLY_ELECTRICITY!AK$3="Y",ROUND(VAL_MONTHLY_ELECTRICITY!AI32,3),"") -> 0 | AM33: =IF(VAL_MONTHLY_ELECTRICITY!AK$3="Y",IF(VAL_MONTHLY_ELECTRICITY!AJ32="","A",VAL_MONTHLY_ELECTRICITY!AJ32),"") -> A | AN33: =IF(VAL_MONTHLY_ELECTRICITY!AK$3="Y",IF(VAL_MONTHLY_ELECTRICITY!AK32="","F",VAL_MONTHLY_ELECTRICITY!AK32),"") -> F | AO33: =IF(VAL_MONTHLY_ELECTRICITY!AN$3="Y",ROUND(VAL_MONTHLY_ELECTRICITY!AL32,3),"") -> 0 | AP33: =IF(VAL_MONTHLY_ELECTRICITY!AN$3="Y",IF(VAL_MONTHLY_ELECTRICITY!AM32="","A",VAL_MONTHLY_ELECTRICITY!AM32),"") -> A | AQ33: =IF(VAL_MONTHLY_ELECTRICITY!AN$3="Y",IF(VAL_MONTHLY_ELECTRICITY!AN32="","F",VAL_MONTHLY_ELECTRICITY!AN32),"") -> F
C34: EXPORTS | D34: _Z | E34: _Z | F34: B0 | G34: out of which to EU | H34: =IF(VAL_MONTHLY_ELECTRICITY!G$3="Y",ROUND(VAL_MONTHLY_ELECTRICITY!E33,3),"") ->  | I34: =IF(VAL_MONTHLY_ELECTRICITY!G$3="Y",IF(VAL_MONTHLY_ELECTRICITY!F33="","A",VAL_MONTHLY_ELECTRICITY!F33),"") ->  | J34: =IF(VAL_MONTHLY_ELECTRICITY!G$3="Y",IF(VAL_MONTHLY_ELECTRICITY!G33="","F",VAL_MONTHLY_ELECTRICITY!G33),"") ->  | K34: =IF(VAL_MONTHLY_ELECTRICITY!J$3="Y",ROUND(VAL_MONTHLY_ELECTRICITY!H33,3),"") ->  | L34: =IF(VAL_MONTHLY_ELECTRICITY!J$3="Y",IF(VAL_MONTHLY_ELECTRICITY!I33="","A",VAL_MONTHLY_ELECTRICITY!I33),"") ->  | M34: =IF(VAL_MONTHLY_ELECTRICITY!J$3="Y",IF(VAL_MONTHLY_ELECTRICITY!J33="","F",VAL_MONTHLY_ELECTRICITY!J33),"") ->  | N34: =IF(VAL_MONTHLY_ELECTRICITY!M$3="Y",ROUND(VAL_MONTHLY_ELECTRICITY!K33,3),"") ->  | O34: =IF(VAL_MONTHLY_ELECTRICITY!M$3="Y",IF(VAL_MONTHLY_ELECTRICITY!L33="","A",VAL_MONTHLY_ELECTRICITY!L33),"") ->  | P34: =IF(VAL_MONTHLY_ELECTRICITY!M$3="Y",IF(VAL_MONTHLY_ELECTRICITY!M33="","F",VAL_MONTHLY_ELECTRICITY!M33),"") ->  | Q34: =IF(VAL_MONTHLY_ELECTRICITY!P$3="Y",ROUND(VAL_MONTHLY_ELECTRICITY!N33,3),"") -> 0 | R34: =IF(VAL_MONTHLY_ELECTRICITY!P$3="Y",IF(VAL_MONTHLY_ELECTRICITY!O33="","A",VAL_MONTHLY_ELECTRICITY!O33),"") -> A | S34: =IF(VAL_MONTHLY_ELECTRICITY!P$3="Y",IF(VAL_MONTHLY_ELECTRICITY!P33="","F",VAL_MONTHLY_ELECTRICITY!P33),"") -> F | T34: =IF(VAL_MONTHLY_ELECTRICITY!S$3="Y",ROUND(VAL_MONTHLY_ELECTRICITY!Q33,3),"") -> 0 | U34: =IF(VAL_MONTHLY_ELECTRICITY!S$3="Y",IF(VAL_MONTHLY_ELECTRICITY!R33="","A",VAL_MONTHLY_ELECTRICITY!R33),"") -> A | V34: =IF(VAL_MONTHLY_ELECTRICITY!S$3="Y",IF(VAL_MONTHLY_ELECTRICITY!S33="","F",VAL_MONTHLY_ELECTRICITY!S33),"") -> F | W34: =IF(VAL_MONTHLY_ELECTRICITY!V$3="Y",ROUND(VAL_MONTHLY_ELECTRICITY!T33,3),"") ->  | X34: =IF(VAL_MONTHLY_ELECTRICITY!V$3="Y",IF(VAL_MONTHLY_ELECTRICITY!U33="","A",VAL_MONTHLY_ELECTRICITY!U33),"") ->  | Y34: =IF(VAL_MONTHLY_ELECTRICITY!V$3="Y",IF(VAL_MONTHLY_ELECTRICITY!V33="","F",VAL_MONTHLY_ELECTRICITY!V33),"") ->  | Z34: =IF(VAL_MONTHLY_ELECTRICITY!Y$3="Y",ROUND(VAL_MONTHLY_ELECTRICITY!W33,3),"") ->  | AA34: =IF(VAL_MONTHLY_ELECTRICITY!Y$3="Y",IF(VAL_MONTHLY_ELECTRICITY!X33="","A",VAL_MONTHLY_ELECTRICITY!X33),"") ->  | AB34: =IF(VAL_MONTHLY_ELECTRICITY!Y$3="Y",IF(VAL_MONTHLY_ELECTRICITY!Y33="","F",VAL_MONTHLY_ELECTRICITY!Y33),"") ->  | AC34: =IF(VAL_MONTHLY_ELECTRICITY!AB$3="Y",ROUND(VAL_MONTHLY_ELECTRICITY!Z33,3),"") ->  | AD34: =IF(VAL_MONTHLY_ELECTRICITY!AB$3="Y",IF(VAL_MONTHLY_ELECTRICITY!AA33="","A",VAL_MONTHLY_ELECTRICITY!AA33),"") ->  | AE34: =IF(VAL_MONTHLY_ELECTRICITY!AB$3="Y",IF(VAL_MONTHLY_ELECTRICITY!AB33="","F",VAL_MONTHLY_ELECTRICITY!AB33),"") ->  | AF34: =IF(VAL_MONTHLY_ELECTRICITY!AE$3="Y",ROUND(VAL_MONTHLY_ELECTRICITY!AC33,3),"") ->  | AG34: =IF(VAL_MONTHLY_ELECTRICITY!AE$3="Y",IF(VAL_MONTHLY_ELECTRICITY!AD33="","A",VAL_MONTHLY_ELECTRICITY!AD33),"") ->  | AH34: =IF(VAL_MONTHLY_ELECTRICITY!AE$3="Y",IF(VAL_MONTHLY_ELECTRICITY!AE33="","F",VAL_MONTHLY_ELECTRICITY!AE33),"") ->  | AI34: =IF(VAL_MONTHLY_ELECTRICITY!AH$3="Y",ROUND(VAL_MONTHLY_ELECTRICITY!AF33,3),"") -> 0 | AJ34: =IF(VAL_MONTHLY_ELECTRICITY!AH$3="Y",IF(VAL_MONTHLY_ELECTRICITY!AG33="","A",VAL_MONTHLY_ELECTRICITY!AG33),"") -> A | AK34: =IF(VAL_MONTHLY_ELECTRICITY!AH$3="Y",IF(VAL_MONTHLY_ELECTRICITY!AH33="","F",VAL_MONTHLY_ELECTRICITY!AH33),"") -> F | AL34: =IF(VAL_MONTHLY_ELECTRICITY!AK$3="Y",ROUND(VAL_MONTHLY_ELECTRICITY!AI33,3),"") -> 0 | AM34: =IF(VAL_MONTHLY_ELECTRICITY!AK$3="Y",IF(VAL_MONTHLY_ELECTRICITY!AJ33="","A",VAL_MONTHLY_ELECTRICITY!AJ33),"") -> A | AN34: =IF(VAL_MONTHLY_ELECTRICITY!AK$3="Y",IF(VAL_MONTHLY_ELECTRICITY!AK33="","F",VAL_MONTHLY_ELECTRICITY!AK33),"") -> F | AO34: =IF(VAL_MONTHLY_ELECTRICITY!AN$3="Y",ROUND(VAL_MONTHLY_ELECTRICITY!AL33,3),"") -> 0 | AP34: =IF(VAL_MONTHLY_ELECTRICITY!AN$3="Y",IF(VAL_MONTHLY_ELECTRICITY!AM33="","A",VAL_MONTHLY_ELECTRICITY!AM33),"") -> A | AQ34: =IF(VAL_MONTHLY_ELECTRICITY!AN$3="Y",IF(VAL_MONTHLY_ELECTRICITY!AN33="","F",VAL_MONTHLY_ELECTRICITY!AN33),"") -> F
C35: ENERGUSE | D35: PUMPST | E35: _Z | F35: _Z | G35: Used for pumped storage | H35: =IF(VAL_MONTHLY_ELECTRICITY!G$3="Y",ROUND(VAL_MONTHLY_ELECTRICITY!E34,3),"") ->  | I35: =IF(VAL_MONTHLY_ELECTRICITY!G$3="Y",IF(VAL_MONTHLY_ELECTRICITY!F34="","A",VAL_MONTHLY_ELECTRICITY!F34),"") ->  | J35: =IF(VAL_MONTHLY_ELECTRICITY!G$3="Y",IF(VAL_MONTHLY_ELECTRICITY!G34="","F",VAL_MONTHLY_ELECTRICITY!G34),"") ->  | K35: =IF(VAL_MONTHLY_ELECTRICITY!J$3="Y",ROUND(VAL_MONTHLY_ELECTRICITY!H34,3),"") ->  | L35: =IF(VAL_MONTHLY_ELECTRICITY!J$3="Y",IF(VAL_MONTHLY_ELECTRICITY!I34="","A",VAL_MONTHLY_ELECTRICITY!I34),"") ->  | M35: =IF(VAL_MONTHLY_ELECTRICITY!J$3="Y",IF(VAL_MONTHLY_ELECTRICITY!J34="","F",VAL_MONTHLY_ELECTRICITY!J34),"") ->  | N35: =IF(VAL_MONTHLY_ELECTRICITY!M$3="Y",ROUND(VAL_MONTHLY_ELECTRICITY!K34,3),"") ->  | O35: =IF(VAL_MONTHLY_ELECTRICITY!M$3="Y",IF(VAL_MONTHLY_ELECTRICITY!L34="","A",VAL_MONTHLY_ELECTRICITY!L34),"") ->  | P35: =IF(VAL_MONTHLY_ELECTRICITY!M$3="Y",IF(VAL_MONTHLY_ELECTRICITY!M34="","F",VAL_MONTHLY_ELECTRICITY!M34),"") ->  | Q35: =IF(VAL_MONTHLY_ELECTRICITY!P$3="Y",ROUND(VAL_MONTHLY_ELECTRICITY!N34,3),"") -> 0 | R35: =IF(VAL_MONTHLY_ELECTRICITY!P$3="Y",IF(VAL_MONTHLY_ELECTRICITY!O34="","A",VAL_MONTHLY_ELECTRICITY!O34),"") -> A | S35: =IF(VAL_MONTHLY_ELECTRICITY!P$3="Y",IF(VAL_MONTHLY_ELECTRICITY!P34="","F",VAL_MONTHLY_ELECTRICITY!P34),"") -> F | T35: =IF(VAL_MONTHLY_ELECTRICITY!S$3="Y",ROUND(VAL_MONTHLY_ELECTRICITY!Q34,3),"") -> 0 | U35: =IF(VAL_MONTHLY_ELECTRICITY!S$3="Y",IF(VAL_MONTHLY_ELECTRICITY!R34="","A",VAL_MONTHLY_ELECTRICITY!R34),"") -> A | V35: =IF(VAL_MONTHLY_ELECTRICITY!S$3="Y",IF(VAL_MONTHLY_ELECTRICITY!S34="","F",VAL_MONTHLY_ELECTRICITY!S34),"") -> F | W35: =IF(VAL_MONTHLY_ELECTRICITY!V$3="Y",ROUND(VAL_MONTHLY_ELECTRICITY!T34,3),"") ->  | X35: =IF(VAL_MONTHLY_ELECTRICITY!V$3="Y",IF(VAL_MONTHLY_ELECTRICITY!U34="","A",VAL_MONTHLY_ELECTRICITY!U34),"") ->  | Y35: =IF(VAL_MONTHLY_ELECTRICITY!V$3="Y",IF(VAL_MONTHLY_ELECTRICITY!V34="","F",VAL_MONTHLY_ELECTRICITY!V34),"") ->  | Z35: =IF(VAL_MONTHLY_ELECTRICITY!Y$3="Y",ROUND(VAL_MONTHLY_ELECTRICITY!W34,3),"") ->  | AA35: =IF(VAL_MONTHLY_ELECTRICITY!Y$3="Y",IF(VAL_MONTHLY_ELECTRICITY!X34="","A",VAL_MONTHLY_ELECTRICITY!X34),"") ->  | AB35: =IF(VAL_MONTHLY_ELECTRICITY!Y$3="Y",IF(VAL_MONTHLY_ELECTRICITY!Y34="","F",VAL_MONTHLY_ELECTRICITY!Y34),"") ->  | AC35: =IF(VAL_MONTHLY_ELECTRICITY!AB$3="Y",ROUND(VAL_MONTHLY_ELECTRICITY!Z34,3),"") ->  | AD35: =IF(VAL_MONTHLY_ELECTRICITY!AB$3="Y",IF(VAL_MONTHLY_ELECTRICITY!AA34="","A",VAL_MONTHLY_ELECTRICITY!AA34),"") ->  | AE35: =IF(VAL_MONTHLY_ELECTRICITY!AB$3="Y",IF(VAL_MONTHLY_ELECTRICITY!AB34="","F",VAL_MONTHLY_ELECTRICITY!AB34),"") ->  | AF35: =IF(VAL_MONTHLY_ELECTRICITY!AE$3="Y",ROUND(VAL_MONTHLY_ELECTRICITY!AC34,3),"") ->  | AG35: =IF(VAL_MONTHLY_ELECTRICITY!AE$3="Y",IF(VAL_MONTHLY_ELECTRICITY!AD34="","A",VAL_MONTHLY_ELECTRICITY!AD34),"") ->  | AH35: =IF(VAL_MONTHLY_ELECTRICITY!AE$3="Y",IF(VAL_MONTHLY_ELECTRICITY!AE34="","F",VAL_MONTHLY_ELECTRICITY!AE34),"") ->  | AI35: =IF(VAL_MONTHLY_ELECTRICITY!AH$3="Y",ROUND(VAL_MONTHLY_ELECTRICITY!AF34,3),"") -> 0 | AJ35: =IF(VAL_MONTHLY_ELECTRICITY!AH$3="Y",IF(VAL_MONTHLY_ELECTRICITY!AG34="","A",VAL_MONTHLY_ELECTRICITY!AG34),"") -> A | AK35: =IF(VAL_MONTHLY_ELECTRICITY!AH$3="Y",IF(VAL_MONTHLY_ELECTRICITY!AH34="","F",VAL_MONTHLY_ELECTRICITY!AH34),"") -> F | AL35: =IF(VAL_MONTHLY_ELECTRICITY!AK$3="Y",ROUND(VAL_MONTHLY_ELECTRICITY!AI34,3),"") -> 0 | AM35: =IF(VAL_MONTHLY_ELECTRICITY!AK$3="Y",IF(VAL_MONTHLY_ELECTRICITY!AJ34="","A",VAL_MONTHLY_ELECTRICITY!AJ34),"") -> A | AN35: =IF(VAL_MONTHLY_ELECTRICITY!AK$3="Y",IF(VAL_MONTHLY_ELECTRICITY!AK34="","F",VAL_MONTHLY_ELECTRICITY!AK34),"") -> F | AO35: =IF(VAL_MONTHLY_ELECTRICITY!AN$3="Y",ROUND(VAL_MONTHLY_ELECTRICITY!AL34,3),"") -> 0 | AP35: =IF(VAL_MONTHLY_ELECTRICITY!AN$3="Y",IF(VAL_MONTHLY_ELECTRICITY!AM34="","A",VAL_MONTHLY_ELECTRICITY!AM34),"") -> A | AQ35: =IF(VAL_MONTHLY_ELECTRICITY!AN$3="Y",IF(VAL_MONTHLY_ELECTRICITY!AN34="","F",VAL_MONTHLY_ELECTRICITY!AN34),"") -> F
C36: LOSSES | D36: DISTLOSS | E36: _Z | F36: _Z | G36: Transmission and distribution losses | H36: =IF(VAL_MONTHLY_ELECTRICITY!G$3="Y",ROUND(VAL_MONTHLY_ELECTRICITY!E35,3),"") ->  | I36: =IF(VAL_MONTHLY_ELECTRICITY!G$3="Y",IF(VAL_MONTHLY_ELECTRICITY!F35="","A",VAL_MONTHLY_ELECTRICITY!F35),"") ->  | J36: =IF(VAL_MONTHLY_ELECTRICITY!G$3="Y",IF(VAL_MONTHLY_ELECTRICITY!G35="","F",VAL_MONTHLY_ELECTRICITY!G35),"") ->  | K36: =IF(VAL_MONTHLY_ELECTRICITY!J$3="Y",ROUND(VAL_MONTHLY_ELECTRICITY!H35,3),"") ->  | L36: =IF(VAL_MONTHLY_ELECTRICITY!J$3="Y",IF(VAL_MONTHLY_ELECTRICITY!I35="","A",VAL_MONTHLY_ELECTRICITY!I35),"") ->  | M36: =IF(VAL_MONTHLY_ELECTRICITY!J$3="Y",IF(VAL_MONTHLY_ELECTRICITY!J35="","F",VAL_MONTHLY_ELECTRICITY!J35),"") ->  | N36: =IF(VAL_MONTHLY_ELECTRICITY!M$3="Y",ROUND(VAL_MONTHLY_ELECTRICITY!K35,3),"") ->  | O36: =IF(VAL_MONTHLY_ELECTRICITY!M$3="Y",IF(VAL_MONTHLY_ELECTRICITY!L35="","A",VAL_MONTHLY_ELECTRICITY!L35),"") ->  | P36: =IF(VAL_MONTHLY_ELECTRICITY!M$3="Y",IF(VAL_MONTHLY_ELECTRICITY!M35="","F",VAL_MONTHLY_ELECTRICITY!M35),"") ->  | Q36: =IF(VAL_MONTHLY_ELECTRICITY!P$3="Y",ROUND(VAL_MONTHLY_ELECTRICITY!N35,3),"") -> 1110.882 | R36: =IF(VAL_MONTHLY_ELECTRICITY!P$3="Y",IF(VAL_MONTHLY_ELECTRICITY!O35="","A",VAL_MONTHLY_ELECTRICITY!O35),"") -> E | S36: =IF(VAL_MONTHLY_ELECTRICITY!P$3="Y",IF(VAL_MONTHLY_ELECTRICITY!P35="","F",VAL_MONTHLY_ELECTRICITY!P35),"") -> F | T36: =IF(VAL_MONTHLY_ELECTRICITY!S$3="Y",ROUND(VAL_MONTHLY_ELECTRICITY!Q35,3),"") -> 1197.645 | U36: =IF(VAL_MONTHLY_ELECTRICITY!S$3="Y",IF(VAL_MONTHLY_ELECTRICITY!R35="","A",VAL_MONTHLY_ELECTRICITY!R35),"") -> E | V36: =IF(VAL_MONTHLY_ELECTRICITY!S$3="Y",IF(VAL_MONTHLY_ELECTRICITY!S35="","F",VAL_MONTHLY_ELECTRICITY!S35),"") -> F | W36: =IF(VAL_MONTHLY_ELECTRICITY!V$3="Y",ROUND(VAL_MONTHLY_ELECTRICITY!T35,3),"") ->  | X36: =IF(VAL_MONTHLY_ELECTRICITY!V$3="Y",IF(VAL_MONTHLY_ELECTRICITY!U35="","A",VAL_MONTHLY_ELECTRICITY!U35),"") ->  | Y36: =IF(VAL_MONTHLY_ELECTRICITY!V$3="Y",IF(VAL_MONTHLY_ELECTRICITY!V35="","F",VAL_MONTHLY_ELECTRICITY!V35),"") ->  | Z36: =IF(VAL_MONTHLY_ELECTRICITY!Y$3="Y",ROUND(VAL_MONTHLY_ELECTRICITY!W35,3),"") ->  | AA36: =IF(VAL_MONTHLY_ELECTRICITY!Y$3="Y",IF(VAL_MONTHLY_ELECTRICITY!X35="","A",VAL_MONTHLY_ELECTRICITY!X35),"") ->  | AB36: =IF(VAL_MONTHLY_ELECTRICITY!Y$3="Y",IF(VAL_MONTHLY_ELECTRICITY!Y35="","F",VAL_MONTHLY_ELECTRICITY!Y35),"") ->  | AC36: =IF(VAL_MONTHLY_ELECTRICITY!AB$3="Y",ROUND(VAL_MONTHLY_ELECTRICITY!Z35,3),"") ->  | AD36: =IF(VAL_MONTHLY_ELECTRICITY!AB$3="Y",IF(VAL_MONTHLY_ELECTRICITY!AA35="","A",VAL_MONTHLY_ELECTRICITY!AA35),"") ->  | AE36: =IF(VAL_MONTHLY_ELECTRICITY!AB$3="Y",IF(VAL_MONTHLY_ELECTRICITY!AB35="","F",VAL_MONTHLY_ELECTRICITY!AB35),"") ->  | AF36: =IF(VAL_MONTHLY_ELECTRICITY!AE$3="Y",ROUND(VAL_MONTHLY_ELECTRICITY!AC35,3),"") ->  | AG36: =IF(VAL_MONTHLY_ELECTRICITY!AE$3="Y",IF(VAL_MONTHLY_ELECTRICITY!AD35="","A",VAL_MONTHLY_ELECTRICITY!AD35),"") ->  | AH36: =IF(VAL_MONTHLY_ELECTRICITY!AE$3="Y",IF(VAL_MONTHLY_ELECTRICITY!AE35="","F",VAL_MONTHLY_ELECTRICITY!AE35),"") ->  | AI36: =IF(VAL_MONTHLY_ELECTRICITY!AH$3="Y",ROUND(VAL_MONTHLY_ELECTRICITY!AF35,3),"") -> 0 | AJ36: =IF(VAL_MONTHLY_ELECTRICITY!AH$3="Y",IF(VAL_MONTHLY_ELECTRICITY!AG35="","A",VAL_MONTHLY_ELECTRICITY!AG35),"") -> A | AK36: =IF(VAL_MONTHLY_ELECTRICITY!AH$3="Y",IF(VAL_MONTHLY_ELECTRICITY!AH35="","F",VAL_MONTHLY_ELECTRICITY!AH35),"") -> F | AL36: =IF(VAL_MONTHLY_ELECTRICITY!AK$3="Y",ROUND(VAL_MONTHLY_ELECTRICITY!AI35,3),"") -> 0 | AM36: =IF(VAL_MONTHLY_ELECTRICITY!AK$3="Y",IF(VAL_MONTHLY_ELECTRICITY!AJ35="","A",VAL_MONTHLY_ELECTRICITY!AJ35),"") -> A | AN36: =IF(VAL_MONTHLY_ELECTRICITY!AK$3="Y",IF(VAL_MONTHLY_ELECTRICITY!AK35="","F",VAL_MONTHLY_ELECTRICITY!AK35),"") -> F | AO36: =IF(VAL_MONTHLY_ELECTRICITY!AN$3="Y",ROUND(VAL_MONTHLY_ELECTRICITY!AL35,3),"") -> 0 | AP36: =IF(VAL_MONTHLY_ELECTRICITY!AN$3="Y",IF(VAL_MONTHLY_ELECTRICITY!AM35="","A",VAL_MONTHLY_ELECTRICITY!AM35),"") -> A | AQ36: =IF(VAL_MONTHLY_ELECTRICITY!AN$3="Y",IF(VAL_MONTHLY_ELECTRICITY!AN35="","F",VAL_MONTHLY_ELECTRICITY!AN35),"") -> F
C37: ENERGUSE | D37: FINCONSC | E37: _Z | F37: _Z | G37: Total consumption (calculated) | H37: =IF(VAL_MONTHLY_ELECTRICITY!G$3="Y",ROUND(VAL_MONTHLY_ELECTRICITY!E36,3),"") ->  | I37: =IF(VAL_MONTHLY_ELECTRICITY!G$3="Y",IF(VAL_MONTHLY_ELECTRICITY!F36="","A",VAL_MONTHLY_ELECTRICITY!F36),"") ->  | J37: =IF(VAL_MONTHLY_ELECTRICITY!G$3="Y",IF(VAL_MONTHLY_ELECTRICITY!G36="","F",VAL_MONTHLY_ELECTRICITY!G36),"") ->  | K37: =IF(VAL_MONTHLY_ELECTRICITY!J$3="Y",ROUND(VAL_MONTHLY_ELECTRICITY!H36,3),"") ->  | L37: =IF(VAL_MONTHLY_ELECTRICITY!J$3="Y",IF(VAL_MONTHLY_ELECTRICITY!I36="","A",VAL_MONTHLY_ELECTRICITY!I36),"") ->  | M37: =IF(VAL_MONTHLY_ELECTRICITY!J$3="Y",IF(VAL_MONTHLY_ELECTRICITY!J36="","F",VAL_MONTHLY_ELECTRICITY!J36),"") ->  | N37: =IF(VAL_MONTHLY_ELECTRICITY!M$3="Y",ROUND(VAL_MONTHLY_ELECTRICITY!K36,3),"") ->  | O37: =IF(VAL_MONTHLY_ELECTRICITY!M$3="Y",IF(VAL_MONTHLY_ELECTRICITY!L36="","A",VAL_MONTHLY_ELECTRICITY!L36),"") ->  | P37: =IF(VAL_MONTHLY_ELECTRICITY!M$3="Y",IF(VAL_MONTHLY_ELECTRICITY!M36="","F",VAL_MONTHLY_ELECTRICITY!M36),"") ->  | Q37: =IF(VAL_MONTHLY_ELECTRICITY!P$3="Y",ROUND(VAL_MONTHLY_ELECTRICITY!N36,3),"") -> 4889.106 | R37: =IF(VAL_MONTHLY_ELECTRICITY!P$3="Y",IF(VAL_MONTHLY_ELECTRICITY!O36="","A",VAL_MONTHLY_ELECTRICITY!O36),"") -> A | S37: =IF(VAL_MONTHLY_ELECTRICITY!P$3="Y",IF(VAL_MONTHLY_ELECTRICITY!P36="","F",VAL_MONTHLY_ELECTRICITY!P36),"") -> F | T37: =IF(VAL_MONTHLY_ELECTRICITY!S$3="Y",ROUND(VAL_MONTHLY_ELECTRICITY!Q36,3),"") -> 4814.593 | U37: =IF(VAL_MONTHLY_ELECTRICITY!S$3="Y",IF(VAL_MONTHLY_ELECTRICITY!R36="","A",VAL_MONTHLY_ELECTRICITY!R36),"") -> A | V37: =IF(VAL_MONTHLY_ELECTRICITY!S$3="Y",IF(VAL_MONTHLY_ELECTRICITY!S36="","F",VAL_MONTHLY_ELECTRICITY!S36),"") -> F | W37: =IF(VAL_MONTHLY_ELECTRICITY!V$3="Y",ROUND(VAL_MONTHLY_ELECTRICITY!T36,3),"") ->  | X37: =IF(VAL_MONTHLY_ELECTRICITY!V$3="Y",IF(VAL_MONTHLY_ELECTRICITY!U36="","A",VAL_MONTHLY_ELECTRICITY!U36),"") ->  | Y37: =IF(VAL_MONTHLY_ELECTRICITY!V$3="Y",IF(VAL_MONTHLY_ELECTRICITY!V36="","F",VAL_MONTHLY_ELECTRICITY!V36),"") ->  | Z37: =IF(VAL_MONTHLY_ELECTRICITY!Y$3="Y",ROUND(VAL_MONTHLY_ELECTRICITY!W36,3),"") ->  | AA37: =IF(VAL_MONTHLY_ELECTRICITY!Y$3="Y",IF(VAL_MONTHLY_ELECTRICITY!X36="","A",VAL_MONTHLY_ELECTRICITY!X36),"") ->  | AB37: =IF(VAL_MONTHLY_ELECTRICITY!Y$3="Y",IF(VAL_MONTHLY_ELECTRICITY!Y36="","F",VAL_MONTHLY_ELECTRICITY!Y36),"") ->  | AC37: =IF(VAL_MONTHLY_ELECTRICITY!AB$3="Y",ROUND(VAL_MONTHLY_ELECTRICITY!Z36,3),"") ->  | AD37: =IF(VAL_MONTHLY_ELECTRICITY!AB$3="Y",IF(VAL_MONTHLY_ELECTRICITY!AA36="","A",VAL_MONTHLY_ELECTRICITY!AA36),"") ->  | AE37: =IF(VAL_MONTHLY_ELECTRICITY!AB$3="Y",IF(VAL_MONTHLY_ELECTRICITY!AB36="","F",VAL_MONTHLY_ELECTRICITY!AB36),"") ->  | AF37: =IF(VAL_MONTHLY_ELECTRICITY!AE$3="Y",ROUND(VAL_MONTHLY_ELECTRICITY!AC36,3),"") ->  | AG37: =IF(VAL_MONTHLY_ELECTRICITY!AE$3="Y",IF(VAL_MONTHLY_ELECTRICITY!AD36="","A",VAL_MONTHLY_ELECTRICITY!AD36),"") ->  | AH37: =IF(VAL_MONTHLY_ELECTRICITY!AE$3="Y",IF(VAL_MONTHLY_ELECTRICITY!AE36="","F",VAL_MONTHLY_ELECTRICITY!AE36),"") ->  | AI37: =IF(VAL_MONTHLY_ELECTRICITY!AH$3="Y",ROUND(VAL_MONTHLY_ELECTRICITY!AF36,3),"") -> 0 | AJ37: =IF(VAL_MONTHLY_ELECTRICITY!AH$3="Y",IF(VAL_MONTHLY_ELECTRICITY!AG36="","A",VAL_MONTHLY_ELECTRICITY!AG36),"") -> A | AK37: =IF(VAL_MONTHLY_ELECTRICITY!AH$3="Y",IF(VAL_MONTHLY_ELECTRICITY!AH36="","F",VAL_MONTHLY_ELECTRICITY!AH36),"") -> F | AL37: =IF(VAL_MONTHLY_ELECTRICITY!AK$3="Y",ROUND(VAL_MONTHLY_ELECTRICITY!AI36,3),"") -> 0 | AM37: =IF(VAL_MONTHLY_ELECTRICITY!AK$3="Y",IF(VAL_MONTHLY_ELECTRICITY!AJ36="","A",VAL_MONTHLY_ELECTRICITY!AJ36),"") -> A | AN37: =IF(VAL_MONTHLY_ELECTRICITY!AK$3="Y",IF(VAL_MONTHLY_ELECTRICITY!AK36="","F",VAL_MONTHLY_ELECTRICITY!AK36),"") -> F | AO37: =IF(VAL_MONTHLY_ELECTRICITY!AN$3="Y",ROUND(VAL_MONTHLY_ELECTRICITY!AL36,3),"") -> 0 | AP37: =IF(VAL_MONTHLY_ELECTRICITY!AN$3="Y",IF(VAL_MONTHLY_ELECTRICITY!AM36="","A",VAL_MONTHLY_ELECTRICITY!AM36),"") -> A | AQ37: =IF(VAL_MONTHLY_ELECTRICITY!AN$3="Y",IF(VAL_MONTHLY_ELECTRICITY!AN36="","F",VAL_MONTHLY_ELECTRICITY!AN36),"") -> F
